﻿Directorate,Service,Division,Responsible Unit,Expense Type,Payment Date,Trans No,Net Amount,Supplier Name
Adults Services,Adult Social Care,Older People (Aged 65 or over) including Older Mental Ill,Older People Commissioning,Social Care - Nursing Care,02/11/2015,3527733,"2,130.90",Bakers Court Nursing Home
Adults Services,Adult Social Care,Older People (Aged 65 or over) including Older Mental Ill,Older People Commissioning,Social Care - Residential Care,02/11/2015,3527734,"2,076.64",Bakers Court Nursing Home
Adults Services,Public Health,Smoking and Tobacco,Public Health Team - 2,Payments to Private Contractors - Other Contractors,02/11/2015,3528405,670.20,Guardian Pharmacy t/a Lansbury Chemist
Adults Services,No Service Specified,No Division Specified,Community Equipment Store,Community Equipment  Supplies - Aids and Appliances,02/11/2015,3530951,"2,324.00",Cubitt Town Pharmacy
Adults Services,Adult Social Care,Older People (Aged 65 or over) including Older Mental Ill,Learning Dis Commissioning,Social Care - Residential Care,02/11/2015,3537017,"10,973.76",ROYAL BOROUGH OF WINDSOR AND MAIDENHEAD
Adults Services,Adult Social Care,Older People (Aged 65 or over) including Older Mental Ill,Learning Dis Commissioning,Social Care - Day Care,02/11/2015,3537018,"1,588.57",ROYAL BOROUGH OF WINDSOR AND MAIDENHEAD
Adults Services,Adult Social Care,Older People (Aged 65 or over) including Older Mental Ill,Mental Health Commissioning,Social Care - Supported Accommodation,02/11/2015,3538876,"2,121.14",HAROLD LODGE
Adults Services,Adult Social Care,Older People (Aged 65 or over) including Older Mental Ill,Mental Health Commissioning,Social Care - Supported Accommodation,02/11/2015,3538913,"2,192.14",HAROLD LODGE
Adults Services,Adult Social Care,Older People (Aged 65 or over) including Older Mental Ill,Physical Dis Commissioning,Social Care - Day Care,02/11/2015,3538919,686.80,HEADWAY EAST LONDON
Adults Services,Adult Social Care,Older People (Aged 65 or over) including Older Mental Ill,Physical Dis Commissioning,Social Care - Day Care,02/11/2015,3538921,686.80,HEADWAY EAST LONDON
Adults Services,Adult Social Care,Older People (Aged 65 or over) including Older Mental Ill,Physical Dis Commissioning,Social Care - Day Care,02/11/2015,3538922,686.80,HEADWAY EAST LONDON
Adults Services,Adult Social Care,Older People (Aged 65 or over) including Older Mental Ill,Older People Commissioning,Social Care - Residential Care,02/11/2015,3539184,"2,435.71",Cheriton Residential Care Home
Adults Services,Adult Social Care,Older People (Aged 65 or over) including Older Mental Ill,Older People Commissioning,Social Care - Residential Care,02/11/2015,3539865,"2,287.84",CARE UK COMMUNITY PARTNERSHIPS LTD
Adults Services,Adult Social Care,Older People (Aged 65 or over) including Older Mental Ill,Older People Commissioning,Social Care - Nursing Care,02/11/2015,3539869,"3,223.07",Catchpole Court Care Home
Adults Services,Adult Social Care,Older People (Aged 65 or over) including Older Mental Ill,Older People Commissioning,Social Care - Nursing Care,02/11/2015,3539920,"1,998.84",Grace Manor Care Limited
Adults Services,Adult Social Care,Older People (Aged 65 or over) including Older Mental Ill,Older People Commissioning,Social Care - Nursing Care,02/11/2015,3539940,"3,716.06",Havelock Court (Bupa)
Adults Services,Adult Social Care,Older People (Aged 65 or over) including Older Mental Ill,Older People Commissioning,Social Care - Residential Care,02/11/2015,3539941,"2,209.86",Abbeyfield Kent Greensted
Adults Services,Adult Social Care,Older People (Aged 65 or over) including Older Mental Ill,Older People Commissioning,Social Care - Nursing Care,02/11/2015,3539996,"2,899.03",CARE UK COMMUNITY PARTNERSHIPS LTD
Adults Services,Adult Social Care,Older People (Aged 65 or over) including Older Mental Ill,Learning Dis Commissioning,Social Care - Help to Live at Home,02/11/2015,3540000,"1,879.44",Precious Homes LTD
Adults Services,Adult Social Care,Older People (Aged 65 or over) including Older Mental Ill,Older People Commissioning,Social Care - Nursing Care,02/11/2015,3540088,"2,382.57",Ladyville Lodge Care Home (part of Four Seasons Health Care Ltd
Adults Services,Adult Social Care,Older People (Aged 65 or over) including Older Mental Ill,Older People Commissioning,Social Care - Nursing Care,02/11/2015,3540120,"2,680.04",Sunhill Court
Adults Services,No Service Specified,No Division Specified,Capital-Minor Works (SC),Other External Fees - Consultants Fees,02/11/2015,3540600,"2,940.00",Cyril Sweett LTD
Adults Services,Public Health,Smoking and Tobacco,Public Health Team - 2,Payments to Private Contractors - Other Contractors,02/11/2015,3541877,"4,955.00",Intermedical (UK) Ltd
Adults Services,Adult Social Care,Older People (Aged 65 or over) including Older Mental Ill,Riverside Centre,Materials - Cleaning Materials,04/11/2015,3505706,517.28,Office Depot (Catalogue)
Adults Services,Adult Social Care,Other Adult Services,Better Care Fund/Integrate Trans Fund - LBTH,Services - Professional Fees - Consultants Fees,04/11/2015,3516110,"6,500.00",CS Works
Adults Services,Adult Social Care,Older People (Aged 65 or over) including Older Mental Ill,Mental Health Commissioning,Social Care - Homecare,04/11/2015,3532758,546.04,Capital Homecare (UK) Limited
Adults Services,Adult Social Care,Older People (Aged 65 or over) including Older Mental Ill,Mental Health Commissioning,Social Care - Homecare,04/11/2015,3532759,546.04,Capital Homecare (UK) Limited
Adults Services,Adult Social Care,Older People (Aged 65 or over) including Older Mental Ill,Mental Health Commissioning,Social Care - Homecare,04/11/2015,3532760,546.04,Capital Homecare (UK) Limited
Adults Services,Adult Social Care,Older People (Aged 65 or over) including Older Mental Ill,Mental Health Commissioning,Social Care - Homecare,04/11/2015,3532761,546.04,Capital Homecare (UK) Limited
Adults Services,Adult Social Care,Older People (Aged 65 or over) including Older Mental Ill,Mental Health Commissioning,Social Care - Homecare,04/11/2015,3532762,546.04,Capital Homecare (UK) Limited
Adults Services,Adult Social Care,Adults Aged Under 65 with Mental Health Needs,MH Commissioner,Social Care - Prevention & Support - Block,04/11/2015,3532866,"5,000.00",Mind in Tower Hamlets and Newham
Adults Services,Adult Social Care,Older People (Aged 65 or over) including Older Mental Ill,Learning Dis Commissioning,Social Care - Residential Care,04/11/2015,3533056,"8,028.13",Outward Housing
Adults Services,Adult Social Care,Older People (Aged 65 or over) including Older Mental Ill,Older People Commissioning,Social Care - Residential Care,04/11/2015,3535227,"1,011.43",BARCHESTER HEALTHCARE
Adults Services,Adult Social Care,Older People (Aged 65 or over) including Older Mental Ill,Learning Dis Commissioning,Social Care - Residential Care,04/11/2015,3535427,"26,656.37",MENCAP
Adults Services,Adult Social Care,Older People (Aged 65 or over) including Older Mental Ill,Learning Dis Commissioning,Social Care - Residential Care,04/11/2015,3536687,"5,360.00",ROSELOCK LTD
Adults Services,Adult Social Care,Older People (Aged 65 or over) including Older Mental Ill,Learning Dis Commissioning,Social Care - Residential Care,04/11/2015,3536695,"4,807.80",ROSELOCK LTD
Adults Services,Adult Social Care,Older People (Aged 65 or over) including Older Mental Ill,Learning Dis Commissioning,Client Contributions for Social Care - Residential Care,04/11/2015,3536695,-505.20,ROSELOCK LTD
Adults Services,Adult Social Care,Older People (Aged 65 or over) including Older Mental Ill,Learning Dis Commissioning,Social Care - Homecare,04/11/2015,3536907,"1,086.90",Outward Housing
Adults Services,Adult Social Care,Older People (Aged 65 or over) including Older Mental Ill,Learning Dis Commissioning,Social Care - Homecare,04/11/2015,3536908,"1,317.30",Outward Housing
Adults Services,Adult Social Care,Older People (Aged 65 or over) including Older Mental Ill,Learning Dis Commissioning,Social Care - Homecare,04/11/2015,3536909,675.30,Outward Housing
Adults Services,Adult Social Care,Older People (Aged 65 or over) including Older Mental Ill,Learning Dis Commissioning,Social Care - Homecare,04/11/2015,3536910,"2,371.20",Outward Housing
Adults Services,Adult Social Care,Older People (Aged 65 or over) including Older Mental Ill,Learning Dis Commissioning,Social Care - Homecare,04/11/2015,3536911,691.80,Outward Housing
Adults Services,Adult Social Care,Older People (Aged 65 or over) including Older Mental Ill,Learning Dis Commissioning,Social Care - Homecare,04/11/2015,3536912,623.37,Outward Housing
Adults Services,Adult Social Care,Older People (Aged 65 or over) including Older Mental Ill,Older People Commissioning,Social Care - Residential Care,04/11/2015,3538899,"2,590.71",BARCHESTER HEALTHCARE
Adults Services,Adult Social Care,Older People (Aged 65 or over) including Older Mental Ill,Older People Commissioning,Social Care - Residential Care,04/11/2015,3538900,"2,795.54",BARCHESTER HEALTHCARE
Adults Services,Adult Social Care,Older People (Aged 65 or over) including Older Mental Ill,Older People Commissioning,Social Care - Residential Care,04/11/2015,3538901,"2,480.00",BARCHESTER HEALTHCARE
Adults Services,Adult Social Care,Older People (Aged 65 or over) including Older Mental Ill,Older People Commissioning,Social Care - Nursing Care,04/11/2015,3538902,"2,426.86",BARCHESTER HEALTHCARE
Adults Services,Adult Social Care,Older People (Aged 65 or over) including Older Mental Ill,Older People Commissioning,Social Care - Residential Care,04/11/2015,3538903,"2,325.00",BARCHESTER HEALTHCARE
Adults Services,Adult Social Care,Older People (Aged 65 or over) including Older Mental Ill,Older People Commissioning,Social Care - Residential Care,04/11/2015,3538903,-559.33,BARCHESTER HEALTHCARE
Adults Services,Adult Social Care,Older People (Aged 65 or over) including Older Mental Ill,Physical Dis Commissioning,Social Care - Residential Care,04/11/2015,3538904,"4,415.29",BARCHESTER HEALTHCARE
Adults Services,Adult Social Care,Older People (Aged 65 or over) including Older Mental Ill,Older People Commissioning,Social Care - Nursing Care,04/11/2015,3538905,"2,426.86",BARCHESTER HEALTHCARE
Adults Services,Adult Social Care,Older People (Aged 65 or over) including Older Mental Ill,Older People Commissioning,Social Care - Residential Care,04/11/2015,3538906,"2,797.75",BARCHESTER HEALTHCARE
Adults Services,Adult Social Care,Older People (Aged 65 or over) including Older Mental Ill,Physical Dis Commissioning,Social Care - Nursing Care,04/11/2015,3538907,"3,919.29",BARCHESTER HEALTHCARE
Adults Services,Adult Social Care,Older People (Aged 65 or over) including Older Mental Ill,Older People Commissioning,Social Care - Nursing Care,04/11/2015,3538908,"2,714.71",BARCHESTER HEALTHCARE
Adults Services,Adult Social Care,Older People (Aged 65 or over) including Older Mental Ill,Older People Commissioning,Social Care - Nursing Care,04/11/2015,3538909,"3,268.29",BARCHESTER HEALTHCARE
Adults Services,Adult Social Care,Older People (Aged 65 or over) including Older Mental Ill,Physical Dis Commissioning,Social Care - Residential Care,04/11/2015,3539202,"3,764.29",OULTON PARK CARE CENTRE
Adults Services,Adult Social Care,Older People (Aged 65 or over) including Older Mental Ill,Older People Commissioning,Social Care - Personal Budgets - Cash,04/11/2015,3539227,"-1,595.90",D D PAYROLL SERVICES
Adults Services,Adult Social Care,Older People (Aged 65 or over) including Older Mental Ill,Older People Commissioning,Social Care - Residential Care,04/11/2015,3539852,"2,480.48",Forest Drive Residential Home Ltd
Adults Services,Adult Social Care,Older People (Aged 65 or over) including Older Mental Ill,Older People Commissioning,Social Care - Residential Care,04/11/2015,3539852,"-1,330.08",Forest Drive Residential Home Ltd
Adults Services,Adult Social Care,Older People (Aged 65 or over) including Older Mental Ill,Learning Dis Commissioning,Social Care - Day Care,04/11/2015,3539874,"1,255.51",ROSELOCK LTD
Adults Services,Adult Social Care,Older People (Aged 65 or over) including Older Mental Ill,Physical Dis Commissioning,Social Care - Nursing Care,04/11/2015,3539993,"3,100.00",TOPCARE LTD
Adults Services,Adult Social Care,Older People (Aged 65 or over) including Older Mental Ill,Learning Dis Commissioning,Social Care - Residential Care,04/11/2015,3540123,"7,971.43",ELEANOR NURSING CARE LTD
Adults Services,Adult Social Care,Older People (Aged 65 or over) including Older Mental Ill,Learning Dis Commissioning,Social Care - Day Care,04/11/2015,3542623,"1,692.00",VIBRANCE
Adults Services,Adult Social Care,Older People (Aged 65 or over) including Older Mental Ill,Learning Dis Commissioning,Social Care - Day Care,04/11/2015,3542624,"1,974.00",VIBRANCE
Adults Services,Adult Social Care,Older People (Aged 65 or over) including Older Mental Ill,Learning Dis Commissioning,Social Care - Day Care,04/11/2015,3542625,"2,820.00",VIBRANCE
Adults Services,Adult Social Care,Older People (Aged 65 or over) including Older Mental Ill,Learning Dis Commissioning,Social Care - Day Care,04/11/2015,3542626,"2,820.00",VIBRANCE
Adults Services,Adult Social Care,Older People (Aged 65 or over) including Older Mental Ill,Learning Dis Commissioning,Social Care - Day Care,04/11/2015,3542627,"2,679.00",VIBRANCE
Adults Services,Adult Social Care,Older People (Aged 65 or over) including Older Mental Ill,Learning Dis Commissioning,Social Care - Day Care,04/11/2015,3542628,"2,820.00",VIBRANCE
Adults Services,Adult Social Care,Older People (Aged 65 or over) including Older Mental Ill,Learning Dis Commissioning,Non Staff Transport Costs - Client Transport Costs,04/11/2015,3542629,"2,820.00",VIBRANCE
Adults Services,Adult Social Care,Older People (Aged 65 or over) including Older Mental Ill,Learning Dis Commissioning,Social Care - Day Care,04/11/2015,3542630,"2,820.00",VIBRANCE
Adults Services,Adult Social Care,Older People (Aged 65 or over) including Older Mental Ill,Learning Dis Commissioning,Social Care - Day Care,04/11/2015,3542631,"1,128.00",VIBRANCE
Adults Services,Adult Social Care,Older People (Aged 65 or over) including Older Mental Ill,Learning Dis Commissioning,Social Care - Day Care,04/11/2015,3542632,"1,240.00",VIBRANCE
Adults Services,Adult Social Care,Older People (Aged 65 or over) including Older Mental Ill,Learning Dis Commissioning,Social Care - Day Care,04/11/2015,3542634,"1,178.00",VIBRANCE
Adults Services,Adult Social Care,Older People (Aged 65 or over) including Older Mental Ill,Learning Dis Commissioning,Social Care - Day Care,04/11/2015,3542635,"1,184.00",VIBRANCE
Adults Services,Adult Social Care,Older People (Aged 65 or over) including Older Mental Ill,Learning Dis Commissioning,Social Care - Day Care,04/11/2015,3542636,"1,692.00",VIBRANCE
Adults Services,Adult Social Care,Older People (Aged 65 or over) including Older Mental Ill,Learning Dis Commissioning,Social Care - Day Care,04/11/2015,3542637,"1,128.00",VIBRANCE
Adults Services,Adult Social Care,Older People (Aged 65 or over) including Older Mental Ill,Learning Dis Commissioning,Social Care - Day Care,04/11/2015,3542638,744.00,VIBRANCE
Adults Services,Adult Social Care,Older People (Aged 65 or over) including Older Mental Ill,Learning Dis Commissioning,Social Care - Day Care,04/11/2015,3542639,"1,240.00",VIBRANCE
Adults Services,Adult Social Care,Older People (Aged 65 or over) including Older Mental Ill,Learning Dis Commissioning,Social Care - Day Care,04/11/2015,3542640,992.00,VIBRANCE
Adults Services,Adult Social Care,Older People (Aged 65 or over) including Older Mental Ill,Learning Dis Commissioning,Social Care - Day Care,04/11/2015,3542641,558.00,VIBRANCE
Adults Services,Adult Social Care,Older People (Aged 65 or over) including Older Mental Ill,Learning Dis Commissioning,Social Care - Day Care,04/11/2015,3542642,"2,820.00",VIBRANCE
Adults Services,Adult Social Care,Older People (Aged 65 or over) including Older Mental Ill,Learning Dis Commissioning,Social Care - Day Care,04/11/2015,3542643,"3,900.00",VIBRANCE
Adults Services,Adult Social Care,Older People (Aged 65 or over) including Older Mental Ill,Learning Dis Commissioning,Social Care - Day Care,04/11/2015,3542644,"1,240.00",VIBRANCE
Adults Services,Adult Social Care,Older People (Aged 65 or over) including Older Mental Ill,Learning Dis Commissioning,Social Care - Day Care,04/11/2015,3542645,"2,820.00",VIBRANCE
Adults Services,Adult Social Care,Older People (Aged 65 or over) including Older Mental Ill,Learning Dis Commissioning,Social Care - Day Care,04/11/2015,3542646,"1,624.00",VIBRANCE
Adults Services,Adult Social Care,Older People (Aged 65 or over) including Older Mental Ill,Learning Dis Commissioning,Social Care - Day Care,04/11/2015,3542647,"1,556.00",VIBRANCE
Adults Services,Adult Social Care,Older People (Aged 65 or over) including Older Mental Ill,Learning Dis Commissioning,Social Care - Day Care,04/11/2015,3542648,992.00,VIBRANCE
Adults Services,Adult Social Care,Older People (Aged 65 or over) including Older Mental Ill,Learning Dis Commissioning,Social Care - Day Care,04/11/2015,3542649,930.00,VIBRANCE
Adults Services,Adult Social Care,Older People (Aged 65 or over) including Older Mental Ill,Learning Dis Commissioning,Social Care - Day Care,04/11/2015,3542650,"1,240.00",VIBRANCE
Adults Services,Adult Social Care,Older People (Aged 65 or over) including Older Mental Ill,Learning Dis Commissioning,Social Care - Day Care,04/11/2015,3542651,"1,240.00",VIBRANCE
Adults Services,Adult Social Care,Older People (Aged 65 or over) including Older Mental Ill,Learning Dis Commissioning,Social Care - Day Care,04/11/2015,3542652,"1,240.00",VIBRANCE
Adults Services,Adult Social Care,Older People (Aged 65 or over) including Older Mental Ill,Learning Dis Commissioning,Social Care - Day Care,04/11/2015,3542653,"1,240.00",VIBRANCE
Adults Services,Adult Social Care,Older People (Aged 65 or over) including Older Mental Ill,Learning Dis Commissioning,Social Care - Day Care,04/11/2015,3542656,"74,727.00",Look Ahead Care & Support Ltd
Adults Services,Adult Social Care,Older People (Aged 65 or over) including Older Mental Ill,Learning Dis Commissioning,Social Care - Day Care,04/11/2015,3542658,"74,727.00",Look Ahead Care & Support Ltd
Adults Services,Adult Social Care,Older People (Aged 65 or over) including Older Mental Ill,Mental Health Commissioning,Social Care - Supported Accommodation,04/11/2015,3542659,"1,762.57",J M CAREHOMES LIMITED
Adults Services,Adult Social Care,Older People (Aged 65 or over) including Older Mental Ill,Physical Dis Commissioning,Social Care - Homecare,04/11/2015,3542660,738.40,AQUAFLO CARE LTD
Adults Services,Adult Social Care,Older People (Aged 65 or over) including Older Mental Ill,Physical Dis Commissioning,Social Care - Homecare,04/11/2015,3542661,"2,196.10",AQUAFLO CARE LTD
Adults Services,Adult Social Care,Older People (Aged 65 or over) including Older Mental Ill,Older People Commissioning,Social Care - Homecare,04/11/2015,3542662,"1,831.80",AQUAFLO CARE LTD
Adults Services,Adult Social Care,Older People (Aged 65 or over) including Older Mental Ill,Older People Commissioning,Social Care - Homecare,04/11/2015,3542663,"1,391.60",AQUAFLO CARE LTD
Adults Services,Adult Social Care,Older People (Aged 65 or over) including Older Mental Ill,Physical Dis Commissioning,Social Care - Homecare,04/11/2015,3542664,543.15,AQUAFLO CARE LTD
Adults Services,Adult Social Care,Older People (Aged 65 or over) including Older Mental Ill,Older People Commissioning,Social Care - Homecare,04/11/2015,3542667,560.90,AQUAFLO CARE LTD
Adults Services,Adult Social Care,Older People (Aged 65 or over) including Older Mental Ill,Older People Commissioning,Social Care - Nursing Care,04/11/2015,3542668,"1,995.07",Chadderton Total care Unit Ltd
Adults Services,Adult Social Care,Older People (Aged 65 or over) including Older Mental Ill,Older People Commissioning,Client Contributions for Social Care - Nursing Care,04/11/2015,3542668,-559.33,Chadderton Total care Unit Ltd
Adults Services,Adult Social Care,Older People (Aged 65 or over) including Older Mental Ill,Older People Commissioning,Social Care - Residential Care,04/11/2015,3542669,"3,118.38",WEST LONDON MISSION SOCIAL WORK ACCOUNT
Adults Services,Adult Social Care,Older People (Aged 65 or over) including Older Mental Ill,Older People Commissioning,Social Care - Residential Care,04/11/2015,3542669,-559.33,WEST LONDON MISSION SOCIAL WORK ACCOUNT
Adults Services,Adult Social Care,Older People (Aged 65 or over) including Older Mental Ill,Physical Dis Commissioning,Social Care - Homecare,04/11/2015,3542672,591.00,Active Assistance
Adults Services,Adult Social Care,Older People (Aged 65 or over) including Older Mental Ill,Physical Dis Commissioning,Social Care - Homecare,04/11/2015,3542674,985.00,Active Assistance
Adults Services,Adult Social Care,Older People (Aged 65 or over) including Older Mental Ill,Physical Dis Commissioning,Social Care - Homecare,04/11/2015,3542677,594.09,FOCUS CARE LINK LTD
Adults Services,Adult Social Care,Older People (Aged 65 or over) including Older Mental Ill,Physical Dis Commissioning,Social Care - Homecare,04/11/2015,3542689,"2,934.06",ATHLONE CARE LTD
Adults Services,Adult Social Care,Older People (Aged 65 or over) including Older Mental Ill,Physical Dis Commissioning,Social Care - Homecare,04/11/2015,3542690,"1,682.87",ATHLONE CARE LTD
Adults Services,Adult Social Care,Older People (Aged 65 or over) including Older Mental Ill,Older People Commissioning,Social Care - Homecare,04/11/2015,3542696,586.57,ATHLONE CARE LTD
Adults Services,Adult Social Care,Older People (Aged 65 or over) including Older Mental Ill,Physical Dis Commissioning,Social Care - Homecare,04/11/2015,3542708,637.56,FOCUS CARE LINK LTD
Adults Services,Adult Social Care,Older People (Aged 65 or over) including Older Mental Ill,Physical Dis Commissioning,Social Care - Homecare,04/11/2015,3542710,637.56,FOCUS CARE LINK LTD
Adults Services,Adult Social Care,Older People (Aged 65 or over) including Older Mental Ill,Physical Dis Commissioning,Social Care - Homecare,04/11/2015,3542712,637.56,FOCUS CARE LINK LTD
Adults Services,Adult Social Care,Older People (Aged 65 or over) including Older Mental Ill,Physical Dis Commissioning,Social Care - Homecare,04/11/2015,3542713,637.56,FOCUS CARE LINK LTD
Adults Services,Adult Social Care,Older People (Aged 65 or over) including Older Mental Ill,Older People Commissioning,Social Care - Homecare,04/11/2015,3542716,"1,786.62",FOCUS CARE LINK LTD
Adults Services,Adult Social Care,Older People (Aged 65 or over) including Older Mental Ill,Older People Commissioning,Social Care - Homecare,04/11/2015,3542743,680.40,Mantra Recruitment
Adults Services,Adult Social Care,Older People (Aged 65 or over) including Older Mental Ill,Learning Dis Commissioning,Social Care - Homecare,04/11/2015,3542751,"1,202.85",Mantra Recruitment
Adults Services,Adult Social Care,Older People (Aged 65 or over) including Older Mental Ill,Older People Commissioning,Social Care - Homecare,04/11/2015,3542752,721.93,Mantra Recruitment
Adults Services,Adult Social Care,Older People (Aged 65 or over) including Older Mental Ill,Physical Dis Commissioning,Social Care - Homecare,04/11/2015,3542769,"1,078.84",Mantra Recruitment
Adults Services,Adult Social Care,Older People (Aged 65 or over) including Older Mental Ill,Older People Commissioning,Social Care - Homecare,04/11/2015,3542801,"4,082.40",Mantra Recruitment
Adults Services,Adult Social Care,Older People (Aged 65 or over) including Older Mental Ill,Older People Commissioning,Social Care - Homecare,04/11/2015,3542826,510.30,Mantra Recruitment
Adults Services,Adult Social Care,Older People (Aged 65 or over) including Older Mental Ill,Physical Dis Commissioning,Social Care - Homecare,04/11/2015,3542835,681.03,FOCUS CARE LINK LTD
Adults Services,Adult Social Care,Older People (Aged 65 or over) including Older Mental Ill,Physical Dis Commissioning,Social Care - Homecare,04/11/2015,3542845,"4,062.88",Excelcare (Home Care Division) LTD
Adults Services,Adult Social Care,Older People (Aged 65 or over) including Older Mental Ill,Physical Dis Commissioning,Social Care - Homecare,04/11/2015,3542846,680.83,Excelcare (Home Care Division) LTD
Adults Services,Adult Social Care,Older People (Aged 65 or over) including Older Mental Ill,Older People Commissioning,Social Care - Homecare,04/11/2015,3542853,992.47,Excelcare (Home Care Division) LTD
Adults Services,Adult Social Care,Older People (Aged 65 or over) including Older Mental Ill,Older People Commissioning,Social Care - Homecare,04/11/2015,3542857,525.36,Excelcare (Home Care Division) LTD
Adults Services,Adult Social Care,Older People (Aged 65 or over) including Older Mental Ill,Older People Commissioning,Social Care - Homecare,04/11/2015,3542867,973.43,Excelcare (Home Care Division) LTD
Adults Services,Adult Social Care,Older People (Aged 65 or over) including Older Mental Ill,Older People Commissioning,Social Care - Homecare,04/11/2015,3542870,549.24,Excelcare (Home Care Division) LTD
Adults Services,Adult Social Care,Older People (Aged 65 or over) including Older Mental Ill,Older People Commissioning,Social Care - Homecare,04/11/2015,3542873,610.68,Excelcare (Home Care Division) LTD
Adults Services,Adult Social Care,Older People (Aged 65 or over) including Older Mental Ill,Older People Commissioning,Social Care - Homecare,04/11/2015,3542878,"1,116.24",Excelcare (Home Care Division) LTD
Adults Services,Adult Social Care,Older People (Aged 65 or over) including Older Mental Ill,Physical Dis Commissioning,Social Care - Homecare,04/11/2015,3542891,"4,695.62",Excelcare (Home Care Division) LTD
Adults Services,Adult Social Care,Older People (Aged 65 or over) including Older Mental Ill,Older People Commissioning,Social Care - Homecare,04/11/2015,3542894,578.21,Excelcare (Home Care Division) LTD
Adults Services,Adult Social Care,Older People (Aged 65 or over) including Older Mental Ill,Older People Commissioning,Social Care - Homecare,04/11/2015,3542899,697.97,Excelcare (Home Care Division) LTD
Adults Services,Adult Social Care,Older People (Aged 65 or over) including Older Mental Ill,Older People Commissioning,Social Care - Homecare,04/11/2015,3542900,"1,010.52",Excelcare (Home Care Division) LTD
Adults Services,Adult Social Care,Older People (Aged 65 or over) including Older Mental Ill,Older People Commissioning,Social Care - Homecare,04/11/2015,3542904,"1,203.16",Excelcare (Home Care Division) LTD
Adults Services,Adult Social Care,Older People (Aged 65 or over) including Older Mental Ill,Older People Commissioning,Social Care - Homecare,04/11/2015,3542907,523.68,Excelcare (Home Care Division) LTD
Adults Services,Adult Social Care,Older People (Aged 65 or over) including Older Mental Ill,Older People Commissioning,Social Care - Homecare,04/11/2015,3542911,"2,238.65",Excelcare (Home Care Division) LTD
Adults Services,Adult Social Care,Older People (Aged 65 or over) including Older Mental Ill,Older People Commissioning,Social Care - Homecare,04/11/2015,3542928,842.89,Excelcare (Home Care Division) LTD
Adults Services,Adult Social Care,Older People (Aged 65 or over) including Older Mental Ill,Learning Dis Commissioning,Social Care - Homecare,04/11/2015,3542934,"1,566.41",Excelcare (Home Care Division) LTD
Adults Services,Adult Social Care,Adults Aged Under 65 with Mental Health Needs,MH Commissioner,Social Care - Prevention & Support - Block,04/11/2015,3542936,"74,968.76",Working Well Trust
Adults Services,Adult Social Care,Older People (Aged 65 or over) including Older Mental Ill,Older People Commissioning,Social Care - Homecare,04/11/2015,3542937,554.40,East Thames Group Ltd
Adults Services,Adult Social Care,Older People (Aged 65 or over) including Older Mental Ill,Physical Dis Commissioning,Social Care - Homecare,04/11/2015,3542939,575.98,FOCUS CARE LINK LTD
Adults Services,Adult Social Care,Older People (Aged 65 or over) including Older Mental Ill,Learning Dis Commissioning,Social Care - Personal Budgets - Cash,04/11/2015,3542956,"1,006.20",D D PAYROLL SERVICES
Adults Services,Adult Social Care,Older People (Aged 65 or over) including Older Mental Ill,Mental Health Commissioning,Social Care - Residential Care,04/11/2015,3542961,715.00,APPROACH LODGE LTD
Adults Services,Adult Social Care,Older People (Aged 65 or over) including Older Mental Ill,Physical Dis Commissioning,Social Care - Nursing Care,04/11/2015,3542962,756.99,HAVERING COURT NURSING HOME
Adults Services,Adult Social Care,Older People (Aged 65 or over) including Older Mental Ill,Older People Commissioning,Social Care - Homecare,04/11/2015,3542972,594.50,SEVACARE UK LTD
Adults Services,Adult Social Care,Older People (Aged 65 or over) including Older Mental Ill,Older People Commissioning,Social Care - Homecare,04/11/2015,3542980,"1,116.50",SEVACARE UK LTD
Adults Services,Adult Social Care,Older People (Aged 65 or over) including Older Mental Ill,Older People Commissioning,Social Care - Homecare,04/11/2015,3542983,"1,116.50",SEVACARE UK LTD
Adults Services,Adult Social Care,Older People (Aged 65 or over) including Older Mental Ill,Older People Commissioning,Social Care - Homecare,04/11/2015,3542987,558.25,SEVACARE UK LTD
Adults Services,Adult Social Care,Older People (Aged 65 or over) including Older Mental Ill,Older People Commissioning,Social Care - Homecare,04/11/2015,3542992,851.88,SEVACARE UK LTD
Adults Services,Adult Social Care,Older People (Aged 65 or over) including Older Mental Ill,Older People Commissioning,Social Care - Homecare,04/11/2015,3542999,"1,116.50",SEVACARE UK LTD
Adults Services,Adult Social Care,Older People (Aged 65 or over) including Older Mental Ill,Older People Commissioning,Social Care - Homecare,04/11/2015,3543000,638.00,SEVACARE UK LTD
Adults Services,Adult Social Care,Older People (Aged 65 or over) including Older Mental Ill,Older People Commissioning,Social Care - Homecare,04/11/2015,3543001,"1,087.50",SEVACARE UK LTD
Adults Services,Adult Social Care,Older People (Aged 65 or over) including Older Mental Ill,Older People Commissioning,Social Care - Homecare,04/11/2015,3543008,781.60,SEVACARE UK LTD
Adults Services,Adult Social Care,Older People (Aged 65 or over) including Older Mental Ill,Older People Commissioning,Social Care - Homecare,04/11/2015,3543014,"1,015.00",SEVACARE UK LTD
Adults Services,Adult Social Care,Older People (Aged 65 or over) including Older Mental Ill,Older People Commissioning,Social Care - Homecare,04/11/2015,3543020,565.50,SEVACARE UK LTD
Adults Services,Adult Social Care,Older People (Aged 65 or over) including Older Mental Ill,Older People Commissioning,Social Care - Homecare,04/11/2015,3543028,884.50,SEVACARE UK LTD
Adults Services,Adult Social Care,Older People (Aged 65 or over) including Older Mental Ill,Physical Dis Commissioning,Social Care - Homecare,04/11/2015,3543036,"1,261.50",SEVACARE UK LTD
Adults Services,Adult Social Care,Older People (Aged 65 or over) including Older Mental Ill,Older People Commissioning,Social Care - Homecare,04/11/2015,3543044,522.00,SEVACARE UK LTD
Adults Services,Adult Social Care,Older People (Aged 65 or over) including Older Mental Ill,Older People Commissioning,Social Care - Homecare,04/11/2015,3543057,565.50,SEVACARE UK LTD
Adults Services,Adult Social Care,Older People (Aged 65 or over) including Older Mental Ill,Older People Commissioning,Social Care - Homecare,04/11/2015,3543065,511.13,SEVACARE UK LTD
Adults Services,Adult Social Care,Older People (Aged 65 or over) including Older Mental Ill,Older People Commissioning,Social Care - Homecare,04/11/2015,3543066,572.75,SEVACARE UK LTD
Adults Services,Adult Social Care,Older People (Aged 65 or over) including Older Mental Ill,Older People Commissioning,Social Care - Homecare,04/11/2015,3543073,594.50,SEVACARE UK LTD
Adults Services,Adult Social Care,Older People (Aged 65 or over) including Older Mental Ill,Older People Commissioning,Social Care - Homecare,04/11/2015,3543080,"1,116.50",SEVACARE UK LTD
Adults Services,Adult Social Care,Older People (Aged 65 or over) including Older Mental Ill,Older People Commissioning,Social Care - Homecare,04/11/2015,3543083,"1,116.50",SEVACARE UK LTD
Adults Services,Adult Social Care,Older People (Aged 65 or over) including Older Mental Ill,Older People Commissioning,Social Care - Homecare,04/11/2015,3543087,543.75,SEVACARE UK LTD
Adults Services,Adult Social Care,Older People (Aged 65 or over) including Older Mental Ill,Older People Commissioning,Social Care - Homecare,04/11/2015,3543092,946.13,SEVACARE UK LTD
Adults Services,Adult Social Care,Older People (Aged 65 or over) including Older Mental Ill,Older People Commissioning,Social Care - Homecare,04/11/2015,3543099,942.50,SEVACARE UK LTD
Adults Services,Adult Social Care,Older People (Aged 65 or over) including Older Mental Ill,Older People Commissioning,Social Care - Homecare,04/11/2015,3543100,638.00,SEVACARE UK LTD
Adults Services,Adult Social Care,Older People (Aged 65 or over) including Older Mental Ill,Learning Dis Commissioning,Social Care - Residential Care,04/11/2015,3543101,"4,350.00",The Pines
Adults Services,Adult Social Care,Older People (Aged 65 or over) including Older Mental Ill,Learning Dis Commissioning,Social Care - Residential Care,04/11/2015,3543102,"4,495.00",The Pines
Adults Services,Adult Social Care,Older People (Aged 65 or over) including Older Mental Ill,Learning Dis Commissioning,Social Care - Homecare,04/11/2015,3543110,864.00,Oasis Care & Training Agency
Adults Services,Adult Social Care,Older People (Aged 65 or over) including Older Mental Ill,Physical Dis Commissioning,Social Care - Homecare,04/11/2015,3543116,762.75,Oasis Care & Training Agency
Adults Services,Adult Social Care,Older People (Aged 65 or over) including Older Mental Ill,Physical Dis Commissioning,Social Care - Homecare,04/11/2015,3543117,580.50,Oasis Care & Training Agency
Adults Services,Adult Social Care,Older People (Aged 65 or over) including Older Mental Ill,Older People Commissioning,Social Care - Homecare,04/11/2015,3543118,513.00,Oasis Care & Training Agency
Adults Services,Adult Social Care,Older People (Aged 65 or over) including Older Mental Ill,Older People Commissioning,Social Care - Homecare,04/11/2015,3543119,519.75,Oasis Care & Training Agency
Adults Services,Adult Social Care,Older People (Aged 65 or over) including Older Mental Ill,Older People Commissioning,Social Care - Homecare,04/11/2015,3543126,519.75,Oasis Care & Training Agency
Adults Services,Adult Social Care,Older People (Aged 65 or over) including Older Mental Ill,Learning Dis Commissioning,Social Care - Homecare,04/11/2015,3543135,864.00,Oasis Care & Training Agency
Adults Services,Adult Social Care,Older People (Aged 65 or over) including Older Mental Ill,Physical Dis Commissioning,Social Care - Homecare,04/11/2015,3543140,762.75,Oasis Care & Training Agency
Adults Services,Adult Social Care,Older People (Aged 65 or over) including Older Mental Ill,Physical Dis Commissioning,Social Care - Homecare,04/11/2015,3543141,580.50,Oasis Care & Training Agency
Adults Services,Adult Social Care,Older People (Aged 65 or over) including Older Mental Ill,Older People Commissioning,Social Care - Homecare,04/11/2015,3543142,513.00,Oasis Care & Training Agency
Adults Services,Adult Social Care,Older People (Aged 65 or over) including Older Mental Ill,Older People Commissioning,Social Care - Homecare,04/11/2015,3543143,519.75,Oasis Care & Training Agency
Adults Services,Adult Social Care,Older People (Aged 65 or over) including Older Mental Ill,Older People Commissioning,Social Care - Homecare,04/11/2015,3543150,519.75,Oasis Care & Training Agency
Adults Services,Adult Social Care,Older People (Aged 65 or over) including Older Mental Ill,Physical Dis Commissioning,Social Care - Homecare,04/11/2015,3543156,645.54,FOCUS CARE LINK LTD
Adults Services,Adult Social Care,Older People (Aged 65 or over) including Older Mental Ill,Physical Dis Commissioning,Social Care - Homecare,04/11/2015,3543157,661.03,FOCUS CARE LINK LTD
Adults Services,Adult Social Care,Older People (Aged 65 or over) including Older Mental Ill,Physical Dis Commissioning,Social Care - Homecare,04/11/2015,3543165,637.56,FOCUS CARE LINK LTD
Adults Services,Adult Social Care,Older People (Aged 65 or over) including Older Mental Ill,Physical Dis Commissioning,Social Care - Homecare,04/11/2015,3543166,637.56,FOCUS CARE LINK LTD
Adults Services,Adult Social Care,Older People (Aged 65 or over) including Older Mental Ill,Older People Commissioning,Social Care - Homecare,04/11/2015,3543190,702.00,Supporting Care
Adults Services,Adult Social Care,Older People (Aged 65 or over) including Older Mental Ill,Older People Commissioning,Social Care - Homecare,04/11/2015,3543191,702.00,Supporting Care
Adults Services,Adult Social Care,Older People (Aged 65 or over) including Older Mental Ill,Older People Commissioning,Social Care - Residential Care,04/11/2015,3543194,"1,951.54",ASHBOURNE HEALTHCARE
Adults Services,Adult Social Care,Older People (Aged 65 or over) including Older Mental Ill,Older People Commissioning,Social Care - Residential Care,04/11/2015,3543194,-556.76,ASHBOURNE HEALTHCARE
Adults Services,Adult Social Care,Older People (Aged 65 or over) including Older Mental Ill,Learning Dis Commissioning,Social Care - Day Care,04/11/2015,3543195,"1,427.22",ROSELOCK LTD
Adults Services,Adult Social Care,Older People (Aged 65 or over) including Older Mental Ill,Learning Dis Commissioning,Social Care - Day Care,04/11/2015,3543196,"1,255.51",ROSELOCK LTD
Adults Services,Adult Social Care,Older People (Aged 65 or over) including Older Mental Ill,Older People Commissioning,Social Care - Homecare,04/11/2015,3543201,734.02,MiHOMECARE LIMITED
Adults Services,Adult Social Care,Older People (Aged 65 or over) including Older Mental Ill,Physical Dis Commissioning,Social Care - Homecare,04/11/2015,3543205,563.71,MiHOMECARE LIMITED
Adults Services,Adult Social Care,Older People (Aged 65 or over) including Older Mental Ill,Older People Commissioning,Social Care - Homecare,04/11/2015,3543209,808.40,MiHOMECARE LIMITED
Adults Services,Adult Social Care,Older People (Aged 65 or over) including Older Mental Ill,Learning Dis Commissioning,Social Care - Homecare,04/11/2015,3543227,538.84,MiHOMECARE LIMITED
Adults Services,Adult Social Care,Older People (Aged 65 or over) including Older Mental Ill,Older People Commissioning,Social Care - Homecare,04/11/2015,3543239,528.22,MiHOMECARE LIMITED
Adults Services,Adult Social Care,Older People (Aged 65 or over) including Older Mental Ill,Older People Commissioning,Social Care - Homecare,04/11/2015,3543242,928.79,MiHOMECARE LIMITED
Adults Services,Adult Social Care,Older People (Aged 65 or over) including Older Mental Ill,Older People Commissioning,Social Care - Homecare,04/11/2015,3543246,"3,871.14",MiHOMECARE LIMITED
Adults Services,Adult Social Care,Older People (Aged 65 or over) including Older Mental Ill,Older People Commissioning,Social Care - Homecare,04/11/2015,3543248,990.19,MiHOMECARE LIMITED
Adults Services,Adult Social Care,Older People (Aged 65 or over) including Older Mental Ill,Mental Health Commissioning,Social Care - Homecare,04/11/2015,3543252,503.46,MiHOMECARE LIMITED
Adults Services,Adult Social Care,Older People (Aged 65 or over) including Older Mental Ill,Physical Dis Commissioning,Social Care - Homecare,04/11/2015,3543253,"4,705.44",MiHOMECARE LIMITED
Adults Services,Adult Social Care,Older People (Aged 65 or over) including Older Mental Ill,Learning Dis Commissioning,Social Care - Homecare,04/11/2015,3543254,992.60,MiHOMECARE LIMITED
Adults Services,Adult Social Care,Older People (Aged 65 or over) including Older Mental Ill,Older People Commissioning,Social Care - Residential Care,04/11/2015,3543260,"3,882.44",ACTION ON HEARING LOSS
Adults Services,Adult Social Care,Older People (Aged 65 or over) including Older Mental Ill,Older People Commissioning,Social Care - Homecare,04/11/2015,3543264,870.00,CIRCLE SUPPORT CONSORTIUM
Adults Services,Adult Social Care,Older People (Aged 65 or over) including Older Mental Ill,Older People Commissioning,Social Care - Homecare,04/11/2015,3543267,681.50,CIRCLE SUPPORT CONSORTIUM
Adults Services,Adult Social Care,Older People (Aged 65 or over) including Older Mental Ill,Older People Commissioning,Social Care - Homecare,04/11/2015,3543269,529.25,CIRCLE SUPPORT CONSORTIUM
Adults Services,Adult Social Care,Older People (Aged 65 or over) including Older Mental Ill,Older People Commissioning,Social Care - Homecare,04/11/2015,3543272,638.00,CIRCLE SUPPORT CONSORTIUM
Adults Services,Adult Social Care,Older People (Aged 65 or over) including Older Mental Ill,Older People Commissioning,Social Care - Homecare,04/11/2015,3543277,870.00,CIRCLE SUPPORT CONSORTIUM
Adults Services,Adult Social Care,Older People (Aged 65 or over) including Older Mental Ill,Older People Commissioning,Social Care - Homecare,04/11/2015,3543280,681.50,CIRCLE SUPPORT CONSORTIUM
Adults Services,Adult Social Care,Older People (Aged 65 or over) including Older Mental Ill,Older People Commissioning,Social Care - Homecare,04/11/2015,3543282,529.25,CIRCLE SUPPORT CONSORTIUM
Adults Services,Adult Social Care,Older People (Aged 65 or over) including Older Mental Ill,Older People Commissioning,Social Care - Homecare,04/11/2015,3543290,870.00,CIRCLE SUPPORT CONSORTIUM
Adults Services,Adult Social Care,Older People (Aged 65 or over) including Older Mental Ill,Older People Commissioning,Social Care - Homecare,04/11/2015,3543293,681.50,CIRCLE SUPPORT CONSORTIUM
Adults Services,Adult Social Care,Older People (Aged 65 or over) including Older Mental Ill,Older People Commissioning,Social Care - Homecare,04/11/2015,3543296,529.25,CIRCLE SUPPORT CONSORTIUM
Adults Services,Adult Social Care,Older People (Aged 65 or over) including Older Mental Ill,Older People Commissioning,Social Care - Homecare,04/11/2015,3543300,638.00,CIRCLE SUPPORT CONSORTIUM
Adults Services,Adult Social Care,Older People (Aged 65 or over) including Older Mental Ill,Older People Commissioning,Social Care - Homecare,04/11/2015,3543302,638.00,CIRCLE SUPPORT CONSORTIUM
Adults Services,Adult Social Care,Older People (Aged 65 or over) including Older Mental Ill,Older People Commissioning,Social Care - Homecare,04/11/2015,3543305,"2,751.00",Supporting Care
Adults Services,Adult Social Care,Older People (Aged 65 or over) including Older Mental Ill,Strategic Commissioning,Social Care - Prevention & Support - Block,04/11/2015,3543306,"19,689.25",AGE UK EAST LONDON
Adults Services,Adult Social Care,Older People (Aged 65 or over) including Older Mental Ill,Strategic Commissioning,Social Care - Prevention & Support - Block,04/11/2015,3543307,"14,000.00",AGE UK EAST LONDON
Adults Services,Adult Social Care,Older People (Aged 65 or over) including Older Mental Ill,Strategic Commissioning,Social Care - Prevention & Support - Block,04/11/2015,3543308,"9,875.00",AGE UK EAST LONDON
Adults Services,Adult Social Care,Older People (Aged 65 or over) including Older Mental Ill,Learning Dis Commissioning,Social Care - Day Care,04/11/2015,3543319,"1,710.00",POETRY IN WOOD
Adults Services,Adult Social Care,Older People (Aged 65 or over) including Older Mental Ill,Learning Dis Commissioning,Social Care - Homecare,04/11/2015,3543323,826.19,East Thames Group Ltd
Adults Services,Adult Social Care,Older People (Aged 65 or over) including Older Mental Ill,Older People Commissioning,Social Care - Homecare,04/11/2015,3543324,610.00,Supporting Care
Adults Services,Adult Social Care,Older People (Aged 65 or over) including Older Mental Ill,Older People Commissioning,Social Care - Homecare,04/11/2015,3543325,602.00,Supporting Care
Adults Services,Adult Social Care,Older People (Aged 65 or over) including Older Mental Ill,Older People Commissioning,Social Care - Homecare,04/11/2015,3543326,602.00,Supporting Care
Adults Services,Adult Social Care,Older People (Aged 65 or over) including Older Mental Ill,Older People Commissioning,Social Care - Homecare,04/11/2015,3543329,627.46,SANCTUARY HOME CARE LIMITED
Adults Services,Adult Social Care,Older People (Aged 65 or over) including Older Mental Ill,Older People Commissioning,Social Care - Homecare,04/11/2015,3543334,"1,033.86",SANCTUARY HOME CARE LIMITED
Adults Services,Adult Social Care,Older People (Aged 65 or over) including Older Mental Ill,Older People Commissioning,Social Care - Homecare,04/11/2015,3543336,"1,033.86",SANCTUARY HOME CARE LIMITED
Adults Services,Adult Social Care,Older People (Aged 65 or over) including Older Mental Ill,Older People Commissioning,Social Care - Residential Care,04/11/2015,3543337,"3,401.29",J M CAREHOMES LIMITED
Adults Services,Adult Social Care,Older People (Aged 65 or over) including Older Mental Ill,Older People Commissioning,Social Care - Homecare,04/11/2015,3543349,598.50,Soma Healthcare Ltd
Adults Services,Adult Social Care,Older People (Aged 65 or over) including Older Mental Ill,Older People Commissioning,Social Care - Homecare,04/11/2015,3543351,584.25,Soma Healthcare Ltd
Adults Services,Adult Social Care,Older People (Aged 65 or over) including Older Mental Ill,Physical Dis Commissioning,Social Care - Homecare,04/11/2015,3543352,"2,019.38",Soma Healthcare Ltd
Adults Services,Adult Social Care,Older People (Aged 65 or over) including Older Mental Ill,Older People Commissioning,Social Care - Homecare,04/11/2015,3543353,"1,111.50",Soma Healthcare Ltd
Adults Services,Adult Social Care,Older People (Aged 65 or over) including Older Mental Ill,Older People Commissioning,Social Care - Homecare,04/11/2015,3543354,509.44,Soma Healthcare Ltd
Adults Services,Adult Social Care,Older People (Aged 65 or over) including Older Mental Ill,Older People Commissioning,Social Care - Homecare,04/11/2015,3543355,"1,254.00",Soma Healthcare Ltd
Adults Services,Adult Social Care,Older People (Aged 65 or over) including Older Mental Ill,Older People Commissioning,Social Care - Homecare,04/11/2015,3543357,919.13,Soma Healthcare Ltd
Adults Services,Adult Social Care,Older People (Aged 65 or over) including Older Mental Ill,Older People Commissioning,Social Care - Homecare,04/11/2015,3543359,555.75,Soma Healthcare Ltd
Adults Services,Adult Social Care,Older People (Aged 65 or over) including Older Mental Ill,Older People Commissioning,Social Care - Homecare,04/11/2015,3543361,548.63,Soma Healthcare Ltd
Adults Services,Adult Social Care,Older People (Aged 65 or over) including Older Mental Ill,Older People Commissioning,Social Care - Homecare,04/11/2015,3543363,"1,106.60",Soma Healthcare Ltd
Adults Services,Adult Social Care,Older People (Aged 65 or over) including Older Mental Ill,Learning Dis Commissioning,Social Care - Residential Care,04/11/2015,3543364,"4,025.57",Precious Homes LTD
Adults Services,Overland CC,Overland CC,Overland CC,General,05/11/2015,Payment Card,517.28,mothercare direct-e-co
Adults Services,Public Health,Smoking and Tobacco,Public Health Team - 2,Third Party Payments - Other Establishments,06/11/2015,3492571,"32,406.99",Central and NW London NHS Foundation
Adults Services,Public Health,Smoking and Tobacco,Public Health Team - 2,Third Party Payments - Other Establishments,06/11/2015,3496208,"32,406.99",Central and NW London NHS Foundation
Adults Services,Public Health,Children 519 Public Health Programmes,Public Health Team 1,Third Party Payments - Voluntary Associations,06/11/2015,3538761,"91,666.67",Stifford Centre
Adults Services,Adult Social Care,Older People (Aged 65 or over) including Older Mental Ill,Older People Commissioning,Social Care - Homecare,06/11/2015,3544887,"1,076.46",Carewatch Newham Ltd
Adults Services,Adult Social Care,Older People (Aged 65 or over) including Older Mental Ill,Physical Dis Commissioning,Social Care - Homecare,06/11/2015,3544889,"1,013.56",Carewatch Newham Ltd
Adults Services,Adult Social Care,Older People (Aged 65 or over) including Older Mental Ill,Mental Health Commissioning,Social Care - Homecare,06/11/2015,3544891,559.20,Carewatch Newham Ltd
Adults Services,Adult Social Care,Older People (Aged 65 or over) including Older Mental Ill,Older People Commissioning,Social Care - Homecare,06/11/2015,3544900,680.40,Mantra Recruitment
Adults Services,Adult Social Care,Older People (Aged 65 or over) including Older Mental Ill,Older People Commissioning,Social Care - Homecare,06/11/2015,3544908,880.74,Carewatch Newham Ltd
Adults Services,Adult Social Care,Older People (Aged 65 or over) including Older Mental Ill,Older People Commissioning,Social Care - Homecare,06/11/2015,3544909,978.60,Carewatch Newham Ltd
Adults Services,Adult Social Care,Older People (Aged 65 or over) including Older Mental Ill,Learning Dis Commissioning,Social Care - Homecare,06/11/2015,3544916,"1,202.85",Mantra Recruitment
Adults Services,Adult Social Care,Older People (Aged 65 or over) including Older Mental Ill,Older People Commissioning,Social Care - Homecare,06/11/2015,3544917,580.32,Carewatch Newham Ltd
Adults Services,Adult Social Care,Older People (Aged 65 or over) including Older Mental Ill,Older People Commissioning,Social Care - Homecare,06/11/2015,3544918,721.93,Mantra Recruitment
Adults Services,Adult Social Care,Older People (Aged 65 or over) including Older Mental Ill,Older People Commissioning,Social Care - Homecare,06/11/2015,3544937,978.60,Carewatch Newham Ltd
Adults Services,Adult Social Care,Older People (Aged 65 or over) including Older Mental Ill,Physical Dis Commissioning,Social Care - Homecare,06/11/2015,3544940,566.20,Carewatch Newham Ltd
Adults Services,Adult Social Care,Older People (Aged 65 or over) including Older Mental Ill,Older People Commissioning,Social Care - Homecare,06/11/2015,3544947,559.20,Carewatch Newham Ltd
Adults Services,Adult Social Care,Older People (Aged 65 or over) including Older Mental Ill,Older People Commissioning,Social Care - Homecare,06/11/2015,3544958,"1,370.04",Carewatch Newham Ltd
Adults Services,Adult Social Care,Older People (Aged 65 or over) including Older Mental Ill,Older People Commissioning,Social Care - Homecare,06/11/2015,3544968,"1,087.50",SEVACARE UK LTD
Adults Services,Adult Social Care,Older People (Aged 65 or over) including Older Mental Ill,Older People Commissioning,Social Care - Homecare,06/11/2015,3544976,716.35,SEVACARE UK LTD
Adults Services,Adult Social Care,Older People (Aged 65 or over) including Older Mental Ill,Older People Commissioning,Social Care - Homecare,06/11/2015,3544983,"1,015.00",SEVACARE UK LTD
Adults Services,Adult Social Care,Older People (Aged 65 or over) including Older Mental Ill,Older People Commissioning,Social Care - Homecare,06/11/2015,3544990,565.50,SEVACARE UK LTD
Adults Services,Adult Social Care,Older People (Aged 65 or over) including Older Mental Ill,Older People Commissioning,Social Care - Homecare,06/11/2015,3545000,884.50,SEVACARE UK LTD
Adults Services,Adult Social Care,Older People (Aged 65 or over) including Older Mental Ill,Older People Commissioning,Social Care - Homecare,06/11/2015,3545003,609.00,SEVACARE UK LTD
Adults Services,Adult Social Care,Older People (Aged 65 or over) including Older Mental Ill,Physical Dis Commissioning,Social Care - Homecare,06/11/2015,3545004,507.50,SEVACARE UK LTD
Adults Services,Adult Social Care,Older People (Aged 65 or over) including Older Mental Ill,Physical Dis Commissioning,Social Care - Homecare,06/11/2015,3545009,"1,616.75",SEVACARE UK LTD
Adults Services,Adult Social Care,Older People (Aged 65 or over) including Older Mental Ill,Older People Commissioning,Social Care - Homecare,06/11/2015,3545016,522.00,SEVACARE UK LTD
Adults Services,Adult Social Care,Older People (Aged 65 or over) including Older Mental Ill,Older People Commissioning,Social Care - Homecare,06/11/2015,3545031,851.88,SEVACARE UK LTD
Adults Services,Adult Social Care,Older People (Aged 65 or over) including Older Mental Ill,Mental Health Commissioning,Social Care - Homecare,06/11/2015,3545036,812.00,SEVACARE UK LTD
Adults Services,Adult Social Care,Older People (Aged 65 or over) including Older Mental Ill,Older People Commissioning,Social Care - Homecare,06/11/2015,3545038,554.63,SEVACARE UK LTD
Adults Services,Adult Social Care,Older People (Aged 65 or over) including Older Mental Ill,Older People Commissioning,Social Care - Homecare,06/11/2015,3545039,572.75,SEVACARE UK LTD
Adults Services,Adult Social Care,Older People (Aged 65 or over) including Older Mental Ill,Older People Commissioning,Social Care - Homecare,06/11/2015,3545055,797.83,MiHOMECARE LIMITED
Adults Services,Adult Social Care,Older People (Aged 65 or over) including Older Mental Ill,Older People Commissioning,Social Care - Homecare,06/11/2015,3545061,531.81,MiHOMECARE LIMITED
Adults Services,Adult Social Care,Older People (Aged 65 or over) including Older Mental Ill,Older People Commissioning,Social Care - Homecare,06/11/2015,3545063,507.50,CIRCLE SUPPORT CONSORTIUM
Adults Services,Adult Social Care,Older People (Aged 65 or over) including Older Mental Ill,Older People Commissioning,Social Care - Homecare,06/11/2015,3545070,507.50,CIRCLE SUPPORT CONSORTIUM
Adults Services,Adult Social Care,Older People (Aged 65 or over) including Older Mental Ill,Older People Commissioning,Social Care - Homecare,06/11/2015,3545072,529.25,CIRCLE SUPPORT CONSORTIUM
Adults Services,Adult Social Care,Older People (Aged 65 or over) including Older Mental Ill,Older People Commissioning,Social Care - Homecare,06/11/2015,3545076,913.50,CIRCLE SUPPORT CONSORTIUM
Adults Services,Adult Social Care,Older People (Aged 65 or over) including Older Mental Ill,Physical Dis Commissioning,Social Care - Homecare,06/11/2015,3545082,"1,160.00",CIRCLE SUPPORT CONSORTIUM
Adults Services,Adult Social Care,Older People (Aged 65 or over) including Older Mental Ill,Older People Commissioning,Social Care - Homecare,06/11/2015,3545084,507.50,CIRCLE SUPPORT CONSORTIUM
Adults Services,Adult Social Care,Older People (Aged 65 or over) including Older Mental Ill,Older People Commissioning,Social Care - Homecare,06/11/2015,3545086,"1,624.00",CIRCLE SUPPORT CONSORTIUM
Adults Services,Adult Social Care,Older People (Aged 65 or over) including Older Mental Ill,Older People Commissioning,Social Care - Homecare,06/11/2015,3545099,507.50,CIRCLE SUPPORT CONSORTIUM
Adults Services,Adult Social Care,Older People (Aged 65 or over) including Older Mental Ill,Older People Commissioning,Social Care - Homecare,06/11/2015,3545109,892.50,APASENTH
Adults Services,Adult Social Care,Older People (Aged 65 or over) including Older Mental Ill,Older People Commissioning,Social Care - Homecare,06/11/2015,3545115,716.57,SANCTUARY HOME CARE LIMITED
Adults Services,Adult Social Care,Older People (Aged 65 or over) including Older Mental Ill,Physical Dis Commissioning,Social Care - Homecare,06/11/2015,3545123,629.96,Soma Healthcare Ltd
Adults Services,Adult Social Care,Older People (Aged 65 or over) including Older Mental Ill,Older People Commissioning,Social Care - Homecare,06/11/2015,3545131,"1,296.75",Soma Healthcare Ltd
Adults Services,Adult Social Care,Older People (Aged 65 or over) including Older Mental Ill,Learning Dis Commissioning,Social Care - Homecare,06/11/2015,3545132,855.00,Soma Healthcare Ltd
Adults Services,Adult Social Care,Older People (Aged 65 or over) including Older Mental Ill,Older People Commissioning,Social Care - Homecare,06/11/2015,3545133,598.50,Soma Healthcare Ltd
Adults Services,Adult Social Care,Older People (Aged 65 or over) including Older Mental Ill,Physical Dis Commissioning,Social Care - Homecare,06/11/2015,3545135,612.75,Soma Healthcare Ltd
Adults Services,Adult Social Care,Older People (Aged 65 or over) including Older Mental Ill,Older People Commissioning,Social Care - Homecare,06/11/2015,3545140,"1,539.00",Soma Healthcare Ltd
Adults Services,Adult Social Care,Older People (Aged 65 or over) including Older Mental Ill,Older People Commissioning,Social Care - Homecare,06/11/2015,3545145,741.00,Soma Healthcare Ltd
Adults Services,Adult Social Care,Older People (Aged 65 or over) including Older Mental Ill,Mental Health Commissioning,Social Care - Homecare,06/11/2015,3545147,541.50,Soma Healthcare Ltd
Adults Services,Adult Social Care,Older People (Aged 65 or over) including Older Mental Ill,Mental Health Commissioning,Social Care - Homecare,06/11/2015,3545153,684.00,Soma Healthcare Ltd
Adults Services,Adult Social Care,Older People (Aged 65 or over) including Older Mental Ill,Physical Dis Commissioning,Social Care - Homecare,06/11/2015,3545156,"2,037.75",Soma Healthcare Ltd
Adults Services,Adult Social Care,Older People (Aged 65 or over) including Older Mental Ill,Older People Commissioning,Social Care - Homecare,06/11/2015,3545157,861.40,Soma Healthcare Ltd
Adults Services,Adult Social Care,Older People (Aged 65 or over) including Older Mental Ill,Older People Commissioning,Social Care - Homecare,06/11/2015,3545164,"1,197.00",Soma Healthcare Ltd
Adults Services,Adult Social Care,Older People (Aged 65 or over) including Older Mental Ill,Older People Commissioning,Social Care - Homecare,06/11/2015,3545167,"1,596.00",Soma Healthcare Ltd
Adults Services,Adult Social Care,Older People (Aged 65 or over) including Older Mental Ill,Older People Commissioning,Social Care - Homecare,06/11/2015,3545170,983.25,Soma Healthcare Ltd
Adults Services,Adult Social Care,Older People (Aged 65 or over) including Older Mental Ill,Older People Commissioning,Social Care - Homecare,06/11/2015,3545175,555.75,Soma Healthcare Ltd
Adults Services,Adult Social Care,Older People (Aged 65 or over) including Older Mental Ill,Older People Commissioning,Social Care - Homecare,06/11/2015,3545179,527.25,Soma Healthcare Ltd
Adults Services,Adult Social Care,Older People (Aged 65 or over) including Older Mental Ill,Older People Commissioning,Social Care - Homecare,06/11/2015,3545182,"1,097.25",Soma Healthcare Ltd
Adults Services,Adult Social Care,Older People (Aged 65 or over) including Older Mental Ill,Older People Commissioning,Social Care - Homecare,06/11/2015,3545184,513.00,Soma Healthcare Ltd
Adults Services,Adult Social Care,Older People (Aged 65 or over) including Older Mental Ill,Physical Dis Commissioning,Social Care - Homecare,06/11/2015,3545185,"1,624.50",Soma Healthcare Ltd
Adults Services,Adult Social Care,Older People (Aged 65 or over) including Older Mental Ill,Older People Commissioning,Social Care - Homecare,06/11/2015,3545186,"1,346.63",Soma Healthcare Ltd
Adults Services,Adult Social Care,Older People (Aged 65 or over) including Older Mental Ill,Older People Commissioning,Social Care - Homecare,06/11/2015,3545190,605.63,Soma Healthcare Ltd
Adults Services,Adult Social Care,Older People (Aged 65 or over) including Older Mental Ill,Older People Commissioning,Social Care - Homecare,06/11/2015,3545194,"1,368.00",Soma Healthcare Ltd
Adults Services,Adult Social Care,Older People (Aged 65 or over) including Older Mental Ill,Physical Dis Commissioning,Social Care - Homecare,06/11/2015,3545195,"1,054.50",Soma Healthcare Ltd
Adults Services,Adult Social Care,Older People (Aged 65 or over) including Older Mental Ill,Older People Commissioning,Social Care - Homecare,06/11/2015,3545199,541.50,Soma Healthcare Ltd
Adults Services,Adult Social Care,Older People (Aged 65 or over) including Older Mental Ill,Physical Dis Commissioning,Social Care - Homecare,06/11/2015,3545201,669.75,Soma Healthcare Ltd
Adults Services,Adult Social Care,Older People (Aged 65 or over) including Older Mental Ill,Older People Commissioning,Social Care - Homecare,06/11/2015,3545203,545.06,Soma Healthcare Ltd
Adults Services,Adult Social Care,Older People (Aged 65 or over) including Older Mental Ill,Older People Commissioning,Social Care - Homecare,06/11/2015,3545209,537.94,Soma Healthcare Ltd
Adults Services,Adult Social Care,Older People (Aged 65 or over) including Older Mental Ill,Older People Commissioning,Social Care - Homecare,06/11/2015,3545212,993.94,Soma Healthcare Ltd
Adults Services,Adult Social Care,Older People (Aged 65 or over) including Older Mental Ill,Older People Commissioning,Social Care - Homecare,06/11/2015,3545214,527.25,Soma Healthcare Ltd
Adults Services,Adult Social Care,Older People (Aged 65 or over) including Older Mental Ill,Older People Commissioning,Social Care - Homecare,06/11/2015,3545215,598.50,Soma Healthcare Ltd
Adults Services,Adult Social Care,Older People (Aged 65 or over) including Older Mental Ill,Older People Commissioning,Social Care - Homecare,06/11/2015,3545217,"1,727.81",Soma Healthcare Ltd
Adults Services,Adult Social Care,Older People (Aged 65 or over) including Older Mental Ill,Physical Dis Commissioning,Social Care - Homecare,06/11/2015,3545221,776.63,Soma Healthcare Ltd
Adults Services,Adult Social Care,Older People (Aged 65 or over) including Older Mental Ill,Physical Dis Commissioning,Social Care - Homecare,06/11/2015,3545222,"1,862.63",Soma Healthcare Ltd
Adults Services,Adult Social Care,Older People (Aged 65 or over) including Older Mental Ill,Learning Dis Commissioning,Social Care - Homecare,06/11/2015,3545223,584.25,Soma Healthcare Ltd
Adults Services,Adult Social Care,Older People (Aged 65 or over) including Older Mental Ill,Older People Commissioning,Social Care - Homecare,06/11/2015,3545225,997.50,Soma Healthcare Ltd
Adults Services,Adult Social Care,Older People (Aged 65 or over) including Older Mental Ill,Older People Commissioning,Social Care - Homecare,06/11/2015,3545244,562.88,Soma Healthcare Ltd
Adults Services,Adult Social Care,Older People (Aged 65 or over) including Older Mental Ill,Older People Commissioning,Social Care - Homecare,06/11/2015,3545245,"1,097.25",Soma Healthcare Ltd
Adults Services,Adult Social Care,Older People (Aged 65 or over) including Older Mental Ill,Older People Commissioning,Social Care - Homecare,06/11/2015,3545255,555.75,Soma Healthcare Ltd
Adults Services,Adult Social Care,Older People (Aged 65 or over) including Older Mental Ill,Older People Commissioning,Social Care - Homecare,06/11/2015,3545267,527.25,Soma Healthcare Ltd
Adults Services,Adult Social Care,Older People (Aged 65 or over) including Older Mental Ill,Older People Commissioning,Social Care - Homecare,06/11/2015,3545269,505.88,Soma Healthcare Ltd
Adults Services,Adult Social Care,Older People (Aged 65 or over) including Older Mental Ill,Older People Commissioning,Social Care - Homecare,06/11/2015,3545273,"1,767.00",Soma Healthcare Ltd
Adults Services,No Service Specified,No Division Specified,Capital-Minor Works (SC),Building Works - Main Works,06/11/2015,3545330,"11,913.00",GLOBAL KIDS DAY CARE
Adults Services,Adult Social Care,Older People (Aged 65 or over) including Older Mental Ill,Older People Commissioning,Social Care - Homecare,09/11/2015,3536750,676.17,POSITIVE CARE LINK
Adults Services,Adult Social Care,Older People (Aged 65 or over) including Older Mental Ill,Learning Dis Commissioning,Social Care - Homecare,09/11/2015,3536917,"2,526.48",Outward Housing
Adults Services,Adult Social Care,Older People (Aged 65 or over) including Older Mental Ill,Learning Dis Commissioning,Social Care - Homecare,09/11/2015,3536919,765.60,Outward Housing
Adults Services,Adult Social Care,Older People (Aged 65 or over) including Older Mental Ill,Learning Dis Commissioning,Social Care - Homecare,09/11/2015,3536921,918.72,Outward Housing
Adults Services,Adult Social Care,Older People (Aged 65 or over) including Older Mental Ill,Learning Dis Commissioning,Social Care - Homecare,09/11/2015,3536922,612.48,Outward Housing
Adults Services,Adult Social Care,Older People (Aged 65 or over) including Older Mental Ill,Learning Dis Commissioning,Social Care - Homecare,09/11/2015,3536925,612.48,Outward Housing
Adults Services,Adult Social Care,Older People (Aged 65 or over) including Older Mental Ill,Learning Dis Commissioning,Social Care - Homecare,09/11/2015,3536926,803.88,Outward Housing
Adults Services,Adult Social Care,Older People (Aged 65 or over) including Older Mental Ill,Learning Dis Commissioning,Social Care - Homecare,09/11/2015,3536927,"2,679.60",Outward Housing
Adults Services,Adult Social Care,Older People (Aged 65 or over) including Older Mental Ill,Learning Dis Commissioning,Social Care - Homecare,09/11/2015,3536928,612.48,Outward Housing
Adults Services,Adult Social Care,Older People (Aged 65 or over) including Older Mental Ill,Learning Dis Commissioning,Social Care - Homecare,09/11/2015,3536930,"1,224.96",Outward Housing
Adults Services,Adult Social Care,Older People (Aged 65 or over) including Older Mental Ill,Learning Dis Commissioning,Social Care - Homecare,09/11/2015,3536931,"1,454.64",Outward Housing
Adults Services,Adult Social Care,Older People (Aged 65 or over) including Older Mental Ill,Learning Dis Commissioning,Social Care - Homecare,09/11/2015,3536933,765.60,Outward Housing
Adults Services,Adult Social Care,Older People (Aged 65 or over) including Older Mental Ill,Learning Dis Commissioning,Social Care - Homecare,09/11/2015,3536936,"1,071.84",Outward Housing
Adults Services,Adult Social Care,Older People (Aged 65 or over) including Older Mental Ill,Learning Dis Commissioning,Social Care - Homecare,09/11/2015,3536937,507.21,Outward Housing
Adults Services,Adult Social Care,Older People (Aged 65 or over) including Older Mental Ill,Learning Dis Commissioning,Social Care - Homecare,09/11/2015,3536938,631.62,Outward Housing
Adults Services,Adult Social Care,Older People (Aged 65 or over) including Older Mental Ill,Older People Commissioning,Social Care - Residential Care,09/11/2015,3538877,"3,188.57",Federation of Jewish Services
Adults Services,Adult Social Care,Older People (Aged 65 or over) including Older Mental Ill,Older People Commissioning,Social Care - Residential Care,09/11/2015,3539855,"3,764.29",HEALTH & HOME LTD (ALEXANDER HOUSE)
Adults Services,Adult Social Care,Older People (Aged 65 or over) including Older Mental Ill,Older People Commissioning,Social Care - Residential Care,09/11/2015,3539859,"4,180.57",HEALTH & HOME LTD (ALEXANDER HOUSE)
Adults Services,Adult Social Care,Older People (Aged 65 or over) including Older Mental Ill,Older People Commissioning,Social Care - Residential Care,09/11/2015,3540101,"3,927.61",HEALTH & HOME LTD (ALEXANDER HOUSE)
Adults Services,Adult Social Care,Older People (Aged 65 or over) including Older Mental Ill,Physical Dis Commissioning,Social Care - Residential Care,09/11/2015,3540102,"6,084.90",HEALTH & HOME LTD (ALEXANDER HOUSE)
Adults Services,Adult Social Care,Older People (Aged 65 or over) including Older Mental Ill,Learning Dis Commissioning,Social Care - Help to Live at Home,09/11/2015,3543153,"7,611.00",SPENCER & ARLINGTON LTD
Adults Services,No Service Specified,No Division Specified,Capital-Minor Works (SC),Building Works - Main Works,09/11/2015,3545337,"6,332.98",Account 3 Ltd
Adults Services,Queen Mary,Queen Mary,Queen Mary,Materials (Non-Stores),10/11/2015,Payment Card,434.17,john lewis
Adults Services,Public Health,Children 519 Public Health Programmes,Public Health Team 1,Third Party Payments - Voluntary Associations,11/11/2015,3533947,"20,040.50",Sustrans
Adults Services,Adult Social Care,Older People (Aged 65 or over) including Older Mental Ill,Learning Dis Commissioning,Social Care - Prevention & Support,11/11/2015,3535193,"1,279.20",Look Ahead Care & Support Ltd
Adults Services,Adult Social Care,Older People (Aged 65 or over) including Older Mental Ill,Learning Dis Commissioning,Social Care - Personal Budgets - Non-Trad Service,11/11/2015,3535518,"3,097.64",Jan Malinowski Centre
Adults Services,Adult Social Care,Older People (Aged 65 or over) including Older Mental Ill,Mental Health Commissioning,Social Care - Supported Accommodation,11/11/2015,3536688,749.00,Look Ahead Care & Support Ltd
Adults Services,Adult Social Care,Older People (Aged 65 or over) including Older Mental Ill,Mental Health Commissioning,Social Care - Supported Accommodation,11/11/2015,3536689,678.92,Look Ahead Care & Support Ltd
Adults Services,Adult Social Care,Older People (Aged 65 or over) including Older Mental Ill,Mental Health Commissioning,Social Care - Supported Accommodation,11/11/2015,3536690,619.80,Look Ahead Care & Support Ltd
Adults Services,Adult Social Care,Older People (Aged 65 or over) including Older Mental Ill,Mental Health Commissioning,Social Care - Supported Accommodation,11/11/2015,3536691,616.92,Look Ahead Care & Support Ltd
Adults Services,Adult Social Care,Older People (Aged 65 or over) including Older Mental Ill,Mental Health Commissioning,Social Care - Supported Accommodation,11/11/2015,3536692,678.92,Look Ahead Care & Support Ltd
Adults Services,Adult Social Care,Older People (Aged 65 or over) including Older Mental Ill,Mental Health Commissioning,Social Care - Supported Accommodation,11/11/2015,3536693,629.44,Look Ahead Care & Support Ltd
Adults Services,Adult Social Care,Older People (Aged 65 or over) including Older Mental Ill,Mental Health Commissioning,Social Care - Supported Accommodation,11/11/2015,3536694,561.84,Look Ahead Care & Support Ltd
Adults Services,Adult Social Care,Older People (Aged 65 or over) including Older Mental Ill,Older People Commissioning,Social Care - Day Care,11/11/2015,3536714,878.78,Peabody Trust
Adults Services,Adult Social Care,Older People (Aged 65 or over) including Older Mental Ill,Older People Commissioning,Social Care - Day Care,11/11/2015,3536715,526.12,Peabody Trust
Adults Services,Adult Social Care,Older People (Aged 65 or over) including Older Mental Ill,Older People Commissioning,Social Care - Day Care,11/11/2015,3536716,624.42,Peabody Trust
Adults Services,Adult Social Care,Older People (Aged 65 or over) including Older Mental Ill,Mental Health Commissioning,Social Care - Day Care,11/11/2015,3536717,936.36,Peabody Trust
Adults Services,Adult Social Care,Older People (Aged 65 or over) including Older Mental Ill,Older People Commissioning,Social Care - Day Care,11/11/2015,3536718,526.12,Peabody Trust
Adults Services,Adult Social Care,Older People (Aged 65 or over) including Older Mental Ill,Older People Commissioning,Social Care - Day Care,11/11/2015,3536728,864.34,Peabody Trust
Adults Services,Adult Social Care,Older People (Aged 65 or over) including Older Mental Ill,Older People Commissioning,Social Care - Day Care,11/11/2015,3536729,526.12,Peabody Trust
Adults Services,Adult Social Care,Older People (Aged 65 or over) including Older Mental Ill,Older People Commissioning,Social Care - Day Care,11/11/2015,3536734,563.70,Peabody Trust
Adults Services,Adult Social Care,Older People (Aged 65 or over) including Older Mental Ill,Older People Commissioning,Social Care - Day Care,11/11/2015,3536735,878.78,Peabody Trust
Adults Services,Adult Social Care,Older People (Aged 65 or over) including Older Mental Ill,Older People Commissioning,Social Care - Day Care,11/11/2015,3536736,526.12,Peabody Trust
Adults Services,Adult Social Care,Older People (Aged 65 or over) including Older Mental Ill,Older People Commissioning,Social Care - Day Care,11/11/2015,3536738,676.44,Peabody Trust
Adults Services,Adult Social Care,Older People (Aged 65 or over) including Older Mental Ill,Older People Commissioning,Social Care - Day Care,11/11/2015,3536741,618.68,Peabody Trust
Adults Services,Adult Social Care,Older People (Aged 65 or over) including Older Mental Ill,Strategic Commissioning,Social Care - MSG Prevention Health & Wellbeing,11/11/2015,3536742,826.76,Peabody Trust
Adults Services,No Service Specified,No Division Specified,Community Equipment Store,Services - Professional Fees - Financial Services Fees,11/11/2015,3537072,"192,000.00",London Borough Of Croydon
Adults Services,Adult Social Care,Older People (Aged 65 or over) including Older Mental Ill,Older People Commissioning,Social Care - Residential Care,11/11/2015,3539790,"2,078.06",LUGANO
Adults Services,Adult Social Care,Older People (Aged 65 or over) including Older Mental Ill,Older People Commissioning,Social Care - Nursing Care,11/11/2015,3539992,"2,558.48",H-C ONE LTD - TOWER BRIDGE
Adults Services,Adult Social Care,Older People (Aged 65 or over) including Older Mental Ill,Older People Commissioning,Client Contributions for Social Care - Nursing Care,11/11/2015,3539992,-559.33,H-C ONE LTD - TOWER BRIDGE
Adults Services,Adult Social Care,Older People (Aged 65 or over) including Older Mental Ill,Strategic Commissioning,Social Care - MSG Prevention Health & Wellbeing,11/11/2015,3540092,"5,000.00",Ability Bow
Adults Services,Adult Social Care,Older People (Aged 65 or over) including Older Mental Ill,Learning Dis Commissioning,Social Care - Homecare,11/11/2015,3542657,"1,199.64",Look Ahead Care & Support Ltd
Adults Services,Adult Social Care,Older People (Aged 65 or over) including Older Mental Ill,Older People Commissioning,Social Care - Homecare,11/11/2015,3543189,702.00,Supporting Care
Adults Services,Adult Social Care,Older People (Aged 65 or over) including Older Mental Ill,Older People Commissioning,Social Care - Homecare,11/11/2015,3543192,702.00,Supporting Care
Adults Services,Adult Social Care,Older People (Aged 65 or over) including Older Mental Ill,Older People Commissioning,Social Care - Homecare,11/11/2015,3543303,"2,751.00",Supporting Care
Adults Services,Adult Social Care,Older People (Aged 65 or over) including Older Mental Ill,Older People Commissioning,Social Care - Homecare,11/11/2015,3543304,"2,751.00",Supporting Care
Adults Services,Adult Social Care,Older People (Aged 65 or over) including Older Mental Ill,Mental Health Commissioning,Social Care - Prevention & Support,11/11/2015,3545360,"3,637.65",SANCTUARY HOUSING ASSOCIATION
Adults Services,Public Health,Smoking and Tobacco,Public Health Team - 2,Third Party Payments - Other Establishments,11/11/2015,3545542,"26,251.00",Guy's & St Thomas' NHS Foundation Trust
Adults Services,Public Health,Smoking and Tobacco,Public Health Team - 2,Payments to Private Contractors - Other Contractors,11/11/2015,3545624,976.00,FLORIDA PHARMACY
Adults Services,Public Health,Smoking and Tobacco,Public Health Team - 2,Payments to Private Contractors - Other Contractors,11/11/2015,3545625,935.55,FLORIDA PHARMACY
Adults Services,Adult Social Care,Older People (Aged 65 or over) including Older Mental Ill,Mental Health Commissioning,Social Care - Prevention & Support,11/11/2015,3545746,916.20,SANCTUARY HOUSING ASSOCIATION
Adults Services,Public Health,Smoking and Tobacco,Public Health Team - 2,Third Party Payments - Other Establishments,11/11/2015,3545767,"26,251.00",Guy's & St Thomas' NHS Foundation Trust
Adults Services,Adult Social Care,Older People (Aged 65 or over) including Older Mental Ill,Learning Dis Commissioning,Social Care - Day Care,11/11/2015,3546401,930.00,STALLCOMBE HOUSE
Adults Services,Adult Social Care,Older People (Aged 65 or over) including Older Mental Ill,Mental Health Commissioning,Social Care - Day Care,11/11/2015,3546402,630.00,CORE ARTS LTD
Adults Services,Adult Social Care,Older People (Aged 65 or over) including Older Mental Ill,Older People Commissioning,Social Care - Homecare,11/11/2015,3546405,557.87,FOCUS CARE LINK LTD
Adults Services,Adult Social Care,Older People (Aged 65 or over) including Older Mental Ill,Older People Commissioning,Social Care - Residential Care,11/11/2015,3546410,"2,492.09",DURY FALLS COURT NURSING HOME
Adults Services,Adult Social Care,Older People (Aged 65 or over) including Older Mental Ill,Older People Commissioning,Social Care - Residential Care,11/11/2015,3546410,-568.85,DURY FALLS COURT NURSING HOME
Adults Services,Adult Social Care,Older People (Aged 65 or over) including Older Mental Ill,Physical Dis Commissioning,Social Care - Nursing Care,11/11/2015,3546411,"11,504.82",SUE RYDER CARE
Adults Services,Adult Social Care,Older People (Aged 65 or over) including Older Mental Ill,Physical Dis Commissioning,Social Care - Nursing Care,11/11/2015,3546412,"8,813.34",SUE RYDER CARE
Adults Services,Adult Social Care,Older People (Aged 65 or over) including Older Mental Ill,Physical Dis Commissioning,Social Care - Nursing Care,11/11/2015,3546413,"8,529.04",SUE RYDER CARE
Adults Services,Adult Social Care,Older People (Aged 65 or over) including Older Mental Ill,Physical Dis Commissioning,Social Care - Nursing Care,11/11/2015,3546414,"8,813.34",SUE RYDER CARE
Adults Services,Adult Social Care,Older People (Aged 65 or over) including Older Mental Ill,Physical Dis Commissioning,Social Care - Nursing Care,11/11/2015,3546415,"8,813.34",SUE RYDER CARE
Adults Services,Adult Social Care,Older People (Aged 65 or over) including Older Mental Ill,Mental Health Commissioning,Social Care - Homecare,11/11/2015,3546427,796.95,FOCUS CARE LINK LTD
Adults Services,Adult Social Care,Older People (Aged 65 or over) including Older Mental Ill,Older People Commissioning,Social Care - Residential Care,11/11/2015,3546429,"3,410.00",St Georges Nursing Home
Adults Services,Adult Social Care,Older People (Aged 65 or over) including Older Mental Ill,Mental Health Commissioning,Social Care - Supported Accommodation,11/11/2015,3546440,"2,037.01",ANTRIM CARE SERVICES LIMITED
Adults Services,Adult Social Care,Older People (Aged 65 or over) including Older Mental Ill,Mental Health Commissioning,Social Care - Supported Accommodation,11/11/2015,3546445,"2,037.01",ANTRIM CARE SERVICES LIMITED
Adults Services,Adult Social Care,Older People (Aged 65 or over) including Older Mental Ill,Learning Dis Commissioning,Social Care - Day Care,11/11/2015,3546448,"2,720.00",ST MARKS DAY SERVICE
Adults Services,Adult Social Care,Older People (Aged 65 or over) including Older Mental Ill,Physical Dis Commissioning,Social Care - Homecare,11/11/2015,3546454,934.61,FOCUS CARE LINK LTD
Adults Services,Adult Social Care,Older People (Aged 65 or over) including Older Mental Ill,Physical Dis Commissioning,Social Care - Homecare,11/11/2015,3546457,550.62,FOCUS CARE LINK LTD
Adults Services,Adult Social Care,Older People (Aged 65 or over) including Older Mental Ill,Older People Commissioning,Social Care - Homecare,11/11/2015,3546459,978.08,FOCUS CARE LINK LTD
Adults Services,Adult Social Care,Older People (Aged 65 or over) including Older Mental Ill,Older People Commissioning,Social Care - Homecare,11/11/2015,3546476,508.27,Excelcare (Home Care Division) LTD
Adults Services,Adult Social Care,Older People (Aged 65 or over) including Older Mental Ill,Older People Commissioning,Social Care - Homecare,11/11/2015,3546481,617.53,Excelcare (Home Care Division) LTD
Adults Services,Adult Social Care,Older People (Aged 65 or over) including Older Mental Ill,Learning Dis Commissioning,Social Care - Homecare,11/11/2015,3546497,717.60,MEARS CARE LTD
Adults Services,Adult Social Care,Older People (Aged 65 or over) including Older Mental Ill,Learning Dis Commissioning,Social Care - Homecare,11/11/2015,3546498,"1,743.33",MEARS CARE LTD
Adults Services,Adult Social Care,Older People (Aged 65 or over) including Older Mental Ill,Learning Dis Commissioning,Social Care - Homecare,11/11/2015,3546499,"2,599.80",MEARS CARE LTD
Adults Services,Adult Social Care,Older People (Aged 65 or over) including Older Mental Ill,Learning Dis Commissioning,Social Care - Homecare,11/11/2015,3546502,717.60,MEARS CARE LTD
Adults Services,Adult Social Care,Older People (Aged 65 or over) including Older Mental Ill,Learning Dis Commissioning,Social Care - Homecare,11/11/2015,3546503,"1,743.33",MEARS CARE LTD
Adults Services,Adult Social Care,Older People (Aged 65 or over) including Older Mental Ill,Learning Dis Commissioning,Social Care - Homecare,11/11/2015,3546504,"2,599.80",MEARS CARE LTD
Adults Services,Adult Social Care,Older People (Aged 65 or over) including Older Mental Ill,Learning Dis Commissioning,Social Care - Residential Care,11/11/2015,3546506,"9,200.00",Coppice Care Burgess Hill LLP
Adults Services,Adult Social Care,Older People (Aged 65 or over) including Older Mental Ill,Mental Health Commissioning,Social Care - Day Care,11/11/2015,3546509,900.00,BANGLADESHI PARENTS & CARERS ASSOCIATION
Adults Services,Adult Social Care,Older People (Aged 65 or over) including Older Mental Ill,Learning Dis Commissioning,Social Care - Day Care,11/11/2015,3546510,"1,779.75",BANGLADESHI PARENTS & CARERS ASSOCIATION
Adults Services,Adult Social Care,Older People (Aged 65 or over) including Older Mental Ill,Learning Dis Commissioning,Social Care - Day Care,11/11/2015,3546511,675.00,BANGLADESHI PARENTS & CARERS ASSOCIATION
Adults Services,Adult Social Care,Older People (Aged 65 or over) including Older Mental Ill,Learning Dis Commissioning,Social Care - Day Care,11/11/2015,3546514,"1,806.20",BANGLADESHI PARENTS & CARERS ASSOCIATION
Adults Services,Adult Social Care,Older People (Aged 65 or over) including Older Mental Ill,Learning Dis Commissioning,Social Care - Day Care,11/11/2015,3546515,"2,464.00",BANGLADESHI PARENTS & CARERS ASSOCIATION
Adults Services,Adult Social Care,Older People (Aged 65 or over) including Older Mental Ill,Learning Dis Commissioning,Social Care - Day Care,11/11/2015,3546516,"1,806.20",BANGLADESHI PARENTS & CARERS ASSOCIATION
Adults Services,Adult Social Care,Older People (Aged 65 or over) including Older Mental Ill,Learning Dis Commissioning,Social Care - Day Care,11/11/2015,3546517,"1,779.75",BANGLADESHI PARENTS & CARERS ASSOCIATION
Adults Services,Adult Social Care,Older People (Aged 65 or over) including Older Mental Ill,Learning Dis Commissioning,Social Care - Day Care,11/11/2015,3546518,990.00,BANGLADESHI PARENTS & CARERS ASSOCIATION
Adults Services,Adult Social Care,Older People (Aged 65 or over) including Older Mental Ill,Mental Health Commissioning,Social Care - Residential Care,11/11/2015,3546522,"34,440.00",THE GROVE RESIDENTIAL HOME
Adults Services,Adult Social Care,Older People (Aged 65 or over) including Older Mental Ill,Older People Commissioning,Social Care - Personal Budgets - Cash,11/11/2015,3546523,"3,399.12",D D PAYROLL SERVICES
Adults Services,Adult Social Care,Older People (Aged 65 or over) including Older Mental Ill,Mental Health Commissioning,Social Care - Personal Budgets - Cash,11/11/2015,3546529,800.00,East London NHS Foundation Trust
Adults Services,Adult Social Care,Older People (Aged 65 or over) including Older Mental Ill,Physical Dis Commissioning,Social Care - Residential Care,11/11/2015,3546531,"1,191.39",CAMBRIDGE NURSING HOME
Adults Services,Adult Social Care,Older People (Aged 65 or over) including Older Mental Ill,Physical Dis Commissioning,Social Care - Residential Care,11/11/2015,3546532,874.20,PARK HOMES (UK) LTD
Adults Services,Adult Social Care,Older People (Aged 65 or over) including Older Mental Ill,Physical Dis Commissioning,Social Care - Residential Care,11/11/2015,3546533,"2,232.41",ACTION ON HEARING LOSS
Adults Services,Adult Social Care,Older People (Aged 65 or over) including Older Mental Ill,Physical Dis Commissioning,Social Care - Residential Care,11/11/2015,3546534,"2,254.95",ACTION ON HEARING LOSS
Adults Services,Adult Social Care,Older People (Aged 65 or over) including Older Mental Ill,Physical Dis Commissioning,Social Care - Residential Care,11/11/2015,3546536,"1,508.89",WEST LONDON MISSION SOCIAL WORK ACCOUNT
Adults Services,Adult Social Care,Older People (Aged 65 or over) including Older Mental Ill,Physical Dis Commissioning,Social Care - Residential Care,11/11/2015,3546537,"1,629.30",MISSION CARE
Adults Services,Adult Social Care,Older People (Aged 65 or over) including Older Mental Ill,Physical Dis Commissioning,Social Care - Residential Care,11/11/2015,3546538,"1,254.62",ROBERTA HOUSE & ELIZABETH HOUSE
Adults Services,Adult Social Care,Older People (Aged 65 or over) including Older Mental Ill,Physical Dis Commissioning,Social Care - Residential Care,11/11/2015,3546539,"1,272.92",ROBERTA HOUSE & ELIZABETH HOUSE
Adults Services,Adult Social Care,Older People (Aged 65 or over) including Older Mental Ill,Physical Dis Commissioning,Social Care - Residential Care,11/11/2015,3546540,"1,719.60",ROBERTA HOUSE & ELIZABETH HOUSE
Adults Services,Adult Social Care,Older People (Aged 65 or over) including Older Mental Ill,Physical Dis Commissioning,Social Care - Residential Care,11/11/2015,3546541,"1,345.29",ROBERTA HOUSE & ELIZABETH HOUSE
Adults Services,Adult Social Care,Older People (Aged 65 or over) including Older Mental Ill,Physical Dis Commissioning,Social Care - Residential Care,11/11/2015,3546542,"1,253.25",ROBERTA HOUSE & ELIZABETH HOUSE
Adults Services,Adult Social Care,Older People (Aged 65 or over) including Older Mental Ill,Physical Dis Commissioning,Social Care - Nursing Care,11/11/2015,3546543,"2,023.63",HAVERING COURT NURSING HOME
Adults Services,Adult Social Care,Older People (Aged 65 or over) including Older Mental Ill,Physical Dis Commissioning,Social Care - Nursing Care,11/11/2015,3546544,"1,345.18",BUPA CARE HOMES
Adults Services,Adult Social Care,Older People (Aged 65 or over) including Older Mental Ill,Physical Dis Commissioning,Social Care - Nursing Care,11/11/2015,3546545,"1,856.85",LEONARD CHESHIRE FOUNDATION
Adults Services,Adult Social Care,Older People (Aged 65 or over) including Older Mental Ill,Physical Dis Commissioning,Social Care - Nursing Care,11/11/2015,3546546,"1,410.75",SANCTUARY CARE LTD
Adults Services,Adult Social Care,Older People (Aged 65 or over) including Older Mental Ill,Physical Dis Commissioning,Social Care - Nursing Care,11/11/2015,3546547,"1,170.75",SANCTUARY CARE LTD
Adults Services,Adult Social Care,Older People (Aged 65 or over) including Older Mental Ill,Physical Dis Commissioning,Social Care - Residential Care,11/11/2015,3546548,"2,056.54",ABLE SUPPORTED HOUSING
Adults Services,Adult Social Care,Older People (Aged 65 or over) including Older Mental Ill,Physical Dis Commissioning,Social Care - Residential Care,11/11/2015,3546549,"3,630.13",ASHTEAD HOUSE LTD
Adults Services,Adult Social Care,Older People (Aged 65 or over) including Older Mental Ill,Physical Dis Commissioning,Social Care - Residential Care,11/11/2015,3546550,"1,167.86",EXCELCARE HOLDING PLC
Adults Services,Adult Social Care,Older People (Aged 65 or over) including Older Mental Ill,Physical Dis Commissioning,Social Care - Residential Care,11/11/2015,3546551,"3,308.55",The Shelley Park Neuro-Care Centre
Adults Services,Adult Social Care,Older People (Aged 65 or over) including Older Mental Ill,Physical Dis Commissioning,Social Care - Nursing Care,11/11/2015,3546553,"1,731.00",BUPA CARE HOMES
Adults Services,Adult Social Care,Older People (Aged 65 or over) including Older Mental Ill,Physical Dis Commissioning,Social Care - Residential Care,11/11/2015,3546555,"1,375.50",THE ISLAND RESIDENTIAL HOME LTD
Adults Services,Adult Social Care,Older People (Aged 65 or over) including Older Mental Ill,Physical Dis Commissioning,Social Care - Residential Care,11/11/2015,3546558,"1,224.49",HIGH MEADOW - TERRANCE HOUSE CARE LTD
Adults Services,Adult Social Care,Older People (Aged 65 or over) including Older Mental Ill,Physical Dis Commissioning,Social Care - Residential Care,11/11/2015,3546560,"-2,940.98",ROBERTA HOUSE & ELIZABETH HOUSE
Adults Services,Adult Social Care,Older People (Aged 65 or over) including Older Mental Ill,Physical Dis Commissioning,Social Care - Residential Care,11/11/2015,3546561,"1,247.99",LEONARD CHESHIRE FOUNDATION
Adults Services,Adult Social Care,Older People (Aged 65 or over) including Older Mental Ill,Physical Dis Commissioning,Social Care - Residential Care,11/11/2015,3546562,"1,867.60",LEONARD CHESHIRE FOUNDATION
Adults Services,Adult Social Care,Older People (Aged 65 or over) including Older Mental Ill,Physical Dis Commissioning,Social Care - Residential Care,11/11/2015,3546563,"1,353.45",ST MUNGO ASSOCIATION
Adults Services,Adult Social Care,Older People (Aged 65 or over) including Older Mental Ill,Mental Health Commissioning,Social Care - Residential Care,11/11/2015,3546564,"1,962.86",East Thames Group Ltd
Adults Services,Adult Social Care,Older People (Aged 65 or over) including Older Mental Ill,Mental Health Commissioning,Social Care - Residential Care,11/11/2015,3546565,"1,748.74",SHANTI HEALTHCARE LTD
Adults Services,Adult Social Care,Older People (Aged 65 or over) including Older Mental Ill,Mental Health Commissioning,Social Care - Residential Care,11/11/2015,3546566,"1,792.56",ROSENMANOR LIMITED
Adults Services,Adult Social Care,Older People (Aged 65 or over) including Older Mental Ill,Mental Health Commissioning,Social Care - Residential Care,11/11/2015,3546567,"2,012.85",LAROSA RESIDENTIAL CARE HOME
Adults Services,Adult Social Care,Older People (Aged 65 or over) including Older Mental Ill,Mental Health Commissioning,Social Care - Residential Care,11/11/2015,3546568,"2,142.86",LEYTON HOUSE COMMUNITY CARE
Adults Services,Adult Social Care,Older People (Aged 65 or over) including Older Mental Ill,Mental Health Commissioning,Social Care - Residential Care,11/11/2015,3546569,"1,714.29",ASHLEY HEALTHCARE LTD
Adults Services,Adult Social Care,Older People (Aged 65 or over) including Older Mental Ill,Mental Health Commissioning,Social Care - Residential Care,11/11/2015,3546570,"2,142.86",ROSENMANOR LIMITED
Adults Services,Adult Social Care,Older People (Aged 65 or over) including Older Mental Ill,Mental Health Commissioning,Social Care - Residential Care,11/11/2015,3546571,"1,950.00",APPROACH LODGE LTD
Adults Services,Adult Social Care,Older People (Aged 65 or over) including Older Mental Ill,Mental Health Commissioning,Social Care - Residential Care,11/11/2015,3546572,"1,950.00",APPROACH LODGE LTD
Adults Services,Adult Social Care,Older People (Aged 65 or over) including Older Mental Ill,Mental Health Commissioning,Social Care - Residential Care,11/11/2015,3546573,"1,780.67",SHANTI HEALTHCARE LTD
Adults Services,Adult Social Care,Older People (Aged 65 or over) including Older Mental Ill,Mental Health Commissioning,Social Care - Residential Care,11/11/2015,3546574,"1,950.00",APPROACH LODGE LTD
Adults Services,Adult Social Care,Older People (Aged 65 or over) including Older Mental Ill,Mental Health Commissioning,Social Care - Residential Care,11/11/2015,3546575,"1,501.31",SHANTI HEALTHCARE LTD
Adults Services,Adult Social Care,Older People (Aged 65 or over) including Older Mental Ill,Mental Health Commissioning,Social Care - Residential Care,11/11/2015,3546576,"1,418.70",CARMEN LODGE
Adults Services,Adult Social Care,Older People (Aged 65 or over) including Older Mental Ill,Mental Health Commissioning,Social Care - Residential Care,11/11/2015,3546577,"2,035.71",RIVERSIDE HOUSE PROJECT
Adults Services,Adult Social Care,Older People (Aged 65 or over) including Older Mental Ill,Mental Health Commissioning,Social Care - Residential Care,11/11/2015,3546578,"1,821.43",LEYTON HOUSE COMMUNITY CARE
Adults Services,Adult Social Care,Older People (Aged 65 or over) including Older Mental Ill,Mental Health Commissioning,Social Care - Residential Care,11/11/2015,3546579,"2,142.86",RIVERSIDE HOUSE PROJECT
Adults Services,Adult Social Care,Older People (Aged 65 or over) including Older Mental Ill,Mental Health Commissioning,Social Care - Residential Care,11/11/2015,3546580,"1,981.89",CHURCHILL HOUSE
Adults Services,Adult Social Care,Older People (Aged 65 or over) including Older Mental Ill,Mental Health Commissioning,Social Care - Residential Care,11/11/2015,3546581,"2,035.71",APPROACH LODGE LTD
Adults Services,Adult Social Care,Older People (Aged 65 or over) including Older Mental Ill,Mental Health Commissioning,Social Care - Residential Care,11/11/2015,3546582,"1,636.48",CARMEN LODGE
Adults Services,Adult Social Care,Older People (Aged 65 or over) including Older Mental Ill,Mental Health Commissioning,Social Care - Residential Care,11/11/2015,3546583,"2,239.07",Vani Ltd ( trading under SAIVAN CARE Services Ltd)
Adults Services,Adult Social Care,Older People (Aged 65 or over) including Older Mental Ill,Mental Health Commissioning,Social Care - Residential Care,11/11/2015,3546584,"1,797.00",CAMERON LODGE
Adults Services,Adult Social Care,Older People (Aged 65 or over) including Older Mental Ill,Mental Health Commissioning,Social Care - Residential Care,11/11/2015,3546585,"1,970.87",BUPA CARE HOMES
Adults Services,Adult Social Care,Older People (Aged 65 or over) including Older Mental Ill,Mental Health Commissioning,Social Care - Residential Care,11/11/2015,3546586,"2,035.71",Partnerships in Care
Adults Services,Adult Social Care,Older People (Aged 65 or over) including Older Mental Ill,Mental Health Commissioning,Social Care - Residential Care,11/11/2015,3546587,"1,505.38",ST MICHAELS LODGE T/A SHAKTHI HEALTHCARE LIMITED
Adults Services,Adult Social Care,Older People (Aged 65 or over) including Older Mental Ill,Mental Health Commissioning,Social Care - Residential Care,11/11/2015,3546588,"1,854.66",ST MICHAELS LODGE T/A SHAKTHI HEALTHCARE LIMITED
Adults Services,Adult Social Care,Older People (Aged 65 or over) including Older Mental Ill,Mental Health Commissioning,Social Care - Residential Care,11/11/2015,3546589,"1,324.07",SHANTI HEALTHCARE LTD
Adults Services,Adult Social Care,Older People (Aged 65 or over) including Older Mental Ill,Mental Health Commissioning,Social Care - Residential Care,11/11/2015,3546590,"1,821.43",LEYTON HOUSE COMMUNITY CARE
Adults Services,Adult Social Care,Older People (Aged 65 or over) including Older Mental Ill,Mental Health Commissioning,Social Care - Residential Care,11/11/2015,3546591,"2,142.86",LEYTON HOUSE COMMUNITY CARE
Adults Services,Adult Social Care,Older People (Aged 65 or over) including Older Mental Ill,Mental Health Commissioning,Social Care - Residential Care,11/11/2015,3546592,698.64,ROBERTA HOUSE & ELIZABETH HOUSE
Adults Services,Adult Social Care,Older People (Aged 65 or over) including Older Mental Ill,Mental Health Commissioning,Social Care - Residential Care,11/11/2015,3546593,"2,059.48",CAMERON LODGE
Adults Services,Adult Social Care,Older People (Aged 65 or over) including Older Mental Ill,Mental Health Commissioning,Social Care - Residential Care,11/11/2015,3546594,"1,223.36",JEWISH CARE
Adults Services,Adult Social Care,Older People (Aged 65 or over) including Older Mental Ill,Mental Health Commissioning,Social Care - Residential Care,11/11/2015,3546595,"1,577.10",SHANTI HEALTHCARE LTD
Adults Services,Adult Social Care,Older People (Aged 65 or over) including Older Mental Ill,Mental Health Commissioning,Social Care - Residential Care,11/11/2015,3546595,-531.00,SHANTI HEALTHCARE LTD
Adults Services,Adult Social Care,Older People (Aged 65 or over) including Older Mental Ill,Mental Health Commissioning,Social Care - Residential Care,11/11/2015,3546596,"1,669.35",SHANTI HEALTHCARE LTD
Adults Services,Adult Social Care,Older People (Aged 65 or over) including Older Mental Ill,Mental Health Commissioning,Social Care - Residential Care,11/11/2015,3546596,-526.22,SHANTI HEALTHCARE LTD
Adults Services,Adult Social Care,Older People (Aged 65 or over) including Older Mental Ill,Mental Health Commissioning,Social Care - Residential Care,11/11/2015,3546597,"1,748.74",SHANTI HEALTHCARE LTD
Adults Services,Adult Social Care,Older People (Aged 65 or over) including Older Mental Ill,Mental Health Commissioning,Social Care - Residential Care,11/11/2015,3546598,"1,577.10",SHANTI HEALTHCARE LTD
Adults Services,Adult Social Care,Older People (Aged 65 or over) including Older Mental Ill,Mental Health Commissioning,Social Care - Residential Care,11/11/2015,3546599,"2,035.71",THE JENNIFER HOME LTD
Adults Services,Adult Social Care,Older People (Aged 65 or over) including Older Mental Ill,Mental Health Commissioning,Social Care - Supported Accommodation,11/11/2015,3546600,507.49,Providence Row Housing Association
Adults Services,Adult Social Care,Older People (Aged 65 or over) including Older Mental Ill,Mental Health Commissioning,Social Care - Residential Care,11/11/2015,3546601,"2,035.71",PIH London Ltd
Adults Services,Adult Social Care,Older People (Aged 65 or over) including Older Mental Ill,Mental Health Commissioning,Social Care - Residential Care,11/11/2015,3546602,"2,035.71",PIH London Ltd
Adults Services,Adult Social Care,Older People (Aged 65 or over) including Older Mental Ill,Mental Health Commissioning,Social Care - Residential Care,11/11/2015,3546603,"2,035.71",PIH London Ltd
Adults Services,Adult Social Care,Older People (Aged 65 or over) including Older Mental Ill,Mental Health Commissioning,Social Care - Residential Care,11/11/2015,3546604,"2,380.31",PIH London Ltd
Adults Services,Adult Social Care,Older People (Aged 65 or over) including Older Mental Ill,Mental Health Commissioning,Social Care - Residential Care,11/11/2015,3546605,"1,028.57",QUEEN ANN HOUSE
Adults Services,Adult Social Care,Older People (Aged 65 or over) including Older Mental Ill,Mental Health Commissioning,Social Care - Residential Care,11/11/2015,3546606,"1,687.31",QUEEN ANN HOUSE
Adults Services,Adult Social Care,Older People (Aged 65 or over) including Older Mental Ill,Mental Health Commissioning,Social Care - Residential Care,11/11/2015,3546607,"1,821.43",SHANTI HEALTHCARE LTD
Adults Services,Adult Social Care,Older People (Aged 65 or over) including Older Mental Ill,Mental Health Commissioning,Social Care - Residential Care,11/11/2015,3546608,974.01,AK SUPPORTED HOUSING LTD
Adults Services,Adult Social Care,Older People (Aged 65 or over) including Older Mental Ill,Mental Health Commissioning,Social Care - Residential Care,11/11/2015,3546609,"1,071.43",GROVE RESIDENTIAL HOME
Adults Services,Adult Social Care,Older People (Aged 65 or over) including Older Mental Ill,Mental Health Commissioning,Social Care - Residential Care,11/11/2015,3546610,"1,607.14",CARMEN LODGE
Adults Services,Adult Social Care,Older People (Aged 65 or over) including Older Mental Ill,Mental Health Commissioning,Social Care - Residential Care,11/11/2015,3546611,"2,100.00",THE GROVE RESIDENTIAL HOME
Adults Services,Adult Social Care,Older People (Aged 65 or over) including Older Mental Ill,Mental Health Commissioning,Social Care - Residential Care,11/11/2015,3546612,"1,839.64",CLANDON HOUSE
Adults Services,Adult Social Care,Older People (Aged 65 or over) including Older Mental Ill,Mental Health Commissioning,Social Care - Residential Care,11/11/2015,3546613,"1,748.74",SHANTI HEALTHCARE LTD
Adults Services,Adult Social Care,Older People (Aged 65 or over) including Older Mental Ill,Mental Health Commissioning,Social Care - Supported Accommodation,11/11/2015,3546614,973.93,HAROLD LODGE
Adults Services,Adult Social Care,Older People (Aged 65 or over) including Older Mental Ill,Mental Health Commissioning,Social Care - Supported Accommodation,11/11/2015,3546615,642.86,HAROLD LODGE
Adults Services,Adult Social Care,Older People (Aged 65 or over) including Older Mental Ill,Mental Health Commissioning,Social Care - Residential Care,11/11/2015,3546616,"2,035.71",PIH London Ltd
Adults Services,Adult Social Care,Older People (Aged 65 or over) including Older Mental Ill,Mental Health Commissioning,Social Care - Residential Care,11/11/2015,3546618,"1,714.29",CARMEN LODGE
Adults Services,Adult Social Care,Older People (Aged 65 or over) including Older Mental Ill,Mental Health Commissioning,Social Care - Residential Care,11/11/2015,3546619,"2,921.79",Sign Health
Adults Services,Adult Social Care,Older People (Aged 65 or over) including Older Mental Ill,Mental Health Commissioning,Social Care - Residential Care,11/11/2015,3546620,"1,623.21",SHANTI HEALTHCARE LTD
Adults Services,Adult Social Care,Older People (Aged 65 or over) including Older Mental Ill,Mental Health Commissioning,Social Care - Residential Care,11/11/2015,3546621,"1,950.00",APPROACH LODGE LTD
Adults Services,Adult Social Care,Older People (Aged 65 or over) including Older Mental Ill,Mental Health Commissioning,Social Care - Residential Care,11/11/2015,3546623,"1,821.43",THE JENNIFER HOME LTD
Adults Services,Adult Social Care,Older People (Aged 65 or over) including Older Mental Ill,Mental Health Commissioning,Social Care - Residential Care,11/11/2015,3546624,"2,035.71",THE GROVE RESIDENTIAL HOME
Adults Services,Adult Social Care,Older People (Aged 65 or over) including Older Mental Ill,Mental Health Commissioning,Social Care - Residential Care,11/11/2015,3546625,"1,821.43",PIH London Ltd
Adults Services,Adult Social Care,Older People (Aged 65 or over) including Older Mental Ill,Mental Health Commissioning,Social Care - Residential Care,11/11/2015,3546626,"1,071.43",GROVE RESIDENTIAL HOME
Adults Services,Adult Social Care,Older People (Aged 65 or over) including Older Mental Ill,Mental Health Commissioning,Social Care - Residential Care,11/11/2015,3546627,"1,714.29",CARMEN LODGE
Adults Services,Adult Social Care,Older People (Aged 65 or over) including Older Mental Ill,Mental Health Commissioning,Social Care - Residential Care,11/11/2015,3546628,"1,714.29",SHANTI HEALTHCARE LTD
Adults Services,Adult Social Care,Older People (Aged 65 or over) including Older Mental Ill,Mental Health Commissioning,Social Care - Residential Care,11/11/2015,3546629,910.71,PIH London Ltd
Adults Services,Adult Social Care,Older People (Aged 65 or over) including Older Mental Ill,Mental Health Commissioning,Social Care - Residential Care,11/11/2015,3546630,"1,821.43",PIH London Ltd
Adults Services,Adult Social Care,Older People (Aged 65 or over) including Older Mental Ill,Mental Health Commissioning,Social Care - Residential Care,11/11/2015,3546631,"1,607.14",ST MICHAELS LODGE T/A SHAKTHI HEALTHCARE LIMITED
Adults Services,Adult Social Care,Older People (Aged 65 or over) including Older Mental Ill,Mental Health Commissioning,Social Care - Residential Care,11/11/2015,3546632,"1,446.43",CARMEN LODGE
Adults Services,Adult Social Care,Older People (Aged 65 or over) including Older Mental Ill,Mental Health Commissioning,Social Care - Residential Care,11/11/2015,3546633,"1,446.43",CARMEN LODGE
Adults Services,Adult Social Care,Older People (Aged 65 or over) including Older Mental Ill,Mental Health Commissioning,Social Care - Residential Care,11/11/2015,3546634,"1,339.29",THE JENNIFER HOME LTD
Adults Services,Adult Social Care,Older People (Aged 65 or over) including Older Mental Ill,Mental Health Commissioning,Social Care - Residential Care,11/11/2015,3546635,"1,821.43",PIH London Ltd
Adults Services,Adult Social Care,Older People (Aged 65 or over) including Older Mental Ill,Mental Health Commissioning,Social Care - Residential Care,11/11/2015,3546636,"1,714.29",CARMEN LODGE
Adults Services,Adult Social Care,Older People (Aged 65 or over) including Older Mental Ill,Mental Health Commissioning,Social Care - Residential Care,11/11/2015,3546637,"1,446.43",CARMEN LODGE
Adults Services,Adult Social Care,Older People (Aged 65 or over) including Older Mental Ill,Mental Health Commissioning,Social Care - Residential Care,11/11/2015,3546638,"1,714.29",East Thames Group Ltd
Adults Services,Adult Social Care,Older People (Aged 65 or over) including Older Mental Ill,Mental Health Commissioning,Social Care - Residential Care,11/11/2015,3546639,"1,464.64",THE ISLAND RESIDENTIAL HOME LTD
Adults Services,Adult Social Care,Older People (Aged 65 or over) including Older Mental Ill,Mental Health Commissioning,Social Care - Residential Care,11/11/2015,3546640,"1,607.14",ST MICHAELS LODGE T/A SHAKTHI HEALTHCARE LIMITED
Adults Services,Adult Social Care,Older People (Aged 65 or over) including Older Mental Ill,Mental Health Commissioning,Social Care - Residential Care,11/11/2015,3546641,"1,471.71",CARMEN LODGE
Adults Services,Adult Social Care,Older People (Aged 65 or over) including Older Mental Ill,Mental Health Commissioning,Social Care - Residential Care,11/11/2015,3546642,"1,178.57",GATEWAY HOUSING ASSOCIATION
Adults Services,Adult Social Care,Older People (Aged 65 or over) including Older Mental Ill,Mental Health Commissioning,Social Care - Residential Care,11/11/2015,3546643,"1,963.59",East Thames Group Ltd
Adults Services,Adult Social Care,Older People (Aged 65 or over) including Older Mental Ill,Mental Health Commissioning,Social Care - Residential Care,11/11/2015,3546644,"1,446.43",CARMEN LODGE
Adults Services,Adult Social Care,Older People (Aged 65 or over) including Older Mental Ill,Mental Health Commissioning,Social Care - Residential Care,11/11/2015,3546645,"1,821.43",PIH London Ltd
Adults Services,Adult Social Care,Older People (Aged 65 or over) including Older Mental Ill,Mental Health Commissioning,Social Care - Residential Care,11/11/2015,3546646,"1,167.86",EXCELCARE HOLDING PLC
Adults Services,Adult Social Care,Older People (Aged 65 or over) including Older Mental Ill,Mental Health Commissioning,Social Care - Residential Care,11/11/2015,3546647,"1,821.43",NEWNTON HOUSE RESIDENTIAL CARE HOME
Adults Services,Adult Social Care,Older People (Aged 65 or over) including Older Mental Ill,Mental Health Commissioning,Social Care - Residential Care,11/11/2015,3546648,"1,178.57",GATEWAY HOUSING ASSOCIATION
Adults Services,Adult Social Care,Older People (Aged 65 or over) including Older Mental Ill,Mental Health Commissioning,Social Care - Residential Care,11/11/2015,3546649,"2,040.00",THE GROVE RESIDENTIAL HOME
Adults Services,Adult Social Care,Older People (Aged 65 or over) including Older Mental Ill,Mental Health Commissioning,Social Care - Residential Care,11/11/2015,3546650,"1,703.57",SHANTI HEALTHCARE LTD
Adults Services,Adult Social Care,Older People (Aged 65 or over) including Older Mental Ill,Mental Health Commissioning,Social Care - Residential Care,11/11/2015,3546651,"1,950.00",APPROACH LODGE LTD
Adults Services,Adult Social Care,Older People (Aged 65 or over) including Older Mental Ill,Mental Health Commissioning,Social Care - Residential Care,11/11/2015,3546652,"1,060.71",CARMEN LODGE
Adults Services,Adult Social Care,Older People (Aged 65 or over) including Older Mental Ill,Mental Health Commissioning,Social Care - Residential Care,11/11/2015,3546653,"1,167.86",EXCELCARE HOLDING PLC
Adults Services,Adult Social Care,Older People (Aged 65 or over) including Older Mental Ill,Mental Health Commissioning,Social Care - Residential Care,11/11/2015,3546654,"11,250.00",SHANTI HEALTHCARE LTD
Adults Services,Adult Social Care,Older People (Aged 65 or over) including Older Mental Ill,Learning Dis Commissioning,Client Contributions for Social Care - Residential Care,11/11/2015,3546655,-590.81,STALLCOMBE HOUSE
Adults Services,Adult Social Care,Older People (Aged 65 or over) including Older Mental Ill,Learning Dis Commissioning,Client Contributions for Social Care - Residential Care,11/11/2015,3546656,"1,243.38",CRAEGMOOR HEALTHCARE
Adults Services,Adult Social Care,Older People (Aged 65 or over) including Older Mental Ill,Learning Dis Commissioning,Social Care - Residential Care,11/11/2015,3546658,"8,944.20",AITCH CARE HOMES LONDON LTD
Adults Services,Adult Social Care,Older People (Aged 65 or over) including Older Mental Ill,Learning Dis Commissioning,Social Care - Residential Care,11/11/2015,3546659,687.15,SAHARA HOMES LIMITED
Adults Services,Adult Social Care,Older People (Aged 65 or over) including Older Mental Ill,Learning Dis Commissioning,Social Care - Residential Care,11/11/2015,3546663,"18,831.19",CRAEGMOOR HEALTHCARE
Adults Services,Adult Social Care,Older People (Aged 65 or over) including Older Mental Ill,Older People Commissioning,Social Care - Residential Care,11/11/2015,3546667,"-2,000.00",GATEWAY HOUSING ASSOCIATION
Adults Services,Adult Social Care,Older People (Aged 65 or over) including Older Mental Ill,Older People Commissioning,Social Care - Residential Care,11/11/2015,3546668,"6,000.00",GATEWAY HOUSING ASSOCIATION
Adults Services,Adult Social Care,Older People (Aged 65 or over) including Older Mental Ill,Learning Dis Commissioning,Social Care - Homecare,11/11/2015,3546670,"5,070.36",Tower Project
Adults Services,Adult Social Care,Older People (Aged 65 or over) including Older Mental Ill,Learning Dis Commissioning,Social Care - Homecare,11/11/2015,3546671,"5,192.36",Tower Project
Adults Services,Adult Social Care,Older People (Aged 65 or over) including Older Mental Ill,Learning Dis Commissioning,Social Care - Day Care,11/11/2015,3546672,"1,521.60",Tower Project
Adults Services,Adult Social Care,Older People (Aged 65 or over) including Older Mental Ill,Physical Dis Commissioning,Social Care - Prevention & Support,11/11/2015,3546673,"1,808.00",CITY VIEW HOTEL LTD
Adults Services,Adult Social Care,Older People (Aged 65 or over) including Older Mental Ill,Physical Dis Commissioning,Social Care - Prevention & Support,11/11/2015,3546674,"1,764.00",CITY VIEW HOTEL LTD
Adults Services,Adult Social Care,Older People (Aged 65 or over) including Older Mental Ill,Physical Dis Commissioning,Social Care - Prevention & Support,11/11/2015,3546675,"1,808.00",CITY VIEW HOTEL LTD
Adults Services,Adult Social Care,Older People (Aged 65 or over) including Older Mental Ill,Physical Dis Commissioning,Social Care - Homecare,11/11/2015,3546679,883.89,FOCUS CARE LINK LTD
Adults Services,Adult Social Care,Older People (Aged 65 or over) including Older Mental Ill,Older People Commissioning,Social Care - Homecare,11/11/2015,3546681,912.87,FOCUS CARE LINK LTD
Adults Services,Adult Social Care,Older People (Aged 65 or over) including Older Mental Ill,Physical Dis Commissioning,Social Care - Homecare,11/11/2015,3546690,550.62,FOCUS CARE LINK LTD
Adults Services,Adult Social Care,Older People (Aged 65 or over) including Older Mental Ill,Mental Health Commissioning,Social Care - Homecare,11/11/2015,3546691,681.03,FOCUS CARE LINK LTD
Adults Services,Adult Social Care,Older People (Aged 65 or over) including Older Mental Ill,Older People Commissioning,Social Care - Homecare,11/11/2015,3546692,"1,883.70",FOCUS CARE LINK LTD
Adults Services,Adult Social Care,Older People (Aged 65 or over) including Older Mental Ill,Older People Commissioning,Social Care - Residential Care,11/11/2015,3546693,"1,372.91",JEWISH CARE
Adults Services,Adult Social Care,Older People (Aged 65 or over) including Older Mental Ill,Older People Commissioning,Social Care - Residential Care,11/11/2015,3546694,"2,461.97",JEWISH CARE
Adults Services,Adult Social Care,Older People (Aged 65 or over) including Older Mental Ill,Older People Commissioning,Social Care - Residential Care,11/11/2015,3546694,-559.33,JEWISH CARE
Adults Services,Adult Social Care,Older People (Aged 65 or over) including Older Mental Ill,Older People Commissioning,Social Care - Residential Care,11/11/2015,3546695,"2,525.41",JEWISH CARE
Adults Services,Adult Social Care,Older People (Aged 65 or over) including Older Mental Ill,Older People Commissioning,Social Care - Residential Care,11/11/2015,3546695,-559.33,JEWISH CARE
Adults Services,Adult Social Care,Older People (Aged 65 or over) including Older Mental Ill,Physical Dis Commissioning,Social Care - Homecare,11/11/2015,3546697,"1,223.52",FOCUS CARE LINK LTD
Adults Services,Adult Social Care,Older People (Aged 65 or over) including Older Mental Ill,Older People Commissioning,Social Care - Homecare,11/11/2015,3546698,"2,165.80",FOCUS CARE LINK LTD
Adults Services,Adult Social Care,Older People (Aged 65 or over) including Older Mental Ill,Physical Dis Commissioning,Social Care - Homecare,11/11/2015,3546699,775.95,FOCUS CARE LINK LTD
Adults Services,Adult Social Care,Older People (Aged 65 or over) including Older Mental Ill,Older People Commissioning,Social Care - Homecare,11/11/2015,3546700,864.30,REDSPOT HOMECARE (CONTRACTS) LTD
Adults Services,Adult Social Care,Older People (Aged 65 or over) including Older Mental Ill,Older People Commissioning,Social Care - Homecare,11/11/2015,3546701,612.75,REDSPOT HOMECARE (CONTRACTS) LTD
Adults Services,Adult Social Care,Older People (Aged 65 or over) including Older Mental Ill,Older People Commissioning,Social Care - Homecare,11/11/2015,3546703,722.40,REDSPOT HOMECARE (CONTRACTS) LTD
Adults Services,Adult Social Care,Older People (Aged 65 or over) including Older Mental Ill,Physical Dis Commissioning,Social Care - Homecare,11/11/2015,3546704,"1,190.03",REDSPOT HOMECARE (CONTRACTS) LTD
Adults Services,Adult Social Care,Older People (Aged 65 or over) including Older Mental Ill,Older People Commissioning,Social Care - Homecare,11/11/2015,3546711,535.35,REDSPOT HOMECARE (CONTRACTS) LTD
Adults Services,Adult Social Care,Older People (Aged 65 or over) including Older Mental Ill,Physical Dis Commissioning,Social Care - Homecare,11/11/2015,3546713,541.80,REDSPOT HOMECARE (CONTRACTS) LTD
Adults Services,Adult Social Care,Older People (Aged 65 or over) including Older Mental Ill,Older People Commissioning,Social Care - Homecare,11/11/2015,3546721,632.10,REDSPOT HOMECARE (CONTRACTS) LTD
Adults Services,Adult Social Care,Older People (Aged 65 or over) including Older Mental Ill,Older People Commissioning,Social Care - Homecare,11/11/2015,3546722,"1,048.13",REDSPOT HOMECARE (CONTRACTS) LTD
Adults Services,Adult Social Care,Older People (Aged 65 or over) including Older Mental Ill,Physical Dis Commissioning,Social Care - Homecare,11/11/2015,3546727,812.70,REDSPOT HOMECARE (CONTRACTS) LTD
Adults Services,Adult Social Care,Older People (Aged 65 or over) including Older Mental Ill,Older People Commissioning,Social Care - Homecare,11/11/2015,3546737,541.80,REDSPOT HOMECARE (CONTRACTS) LTD
Adults Services,Adult Social Care,Older People (Aged 65 or over) including Older Mental Ill,Older People Commissioning,Social Care - Homecare,11/11/2015,3546740,851.40,REDSPOT HOMECARE (CONTRACTS) LTD
Adults Services,Adult Social Care,Older People (Aged 65 or over) including Older Mental Ill,Older People Commissioning,Social Care - Homecare,11/11/2015,3546748,812.70,REDSPOT HOMECARE (CONTRACTS) LTD
Adults Services,Adult Social Care,Older People (Aged 65 or over) including Older Mental Ill,Older People Commissioning,Social Care - Homecare,11/11/2015,3546753,586.95,REDSPOT HOMECARE (CONTRACTS) LTD
Adults Services,Adult Social Care,Older People (Aged 65 or over) including Older Mental Ill,Physical Dis Commissioning,Social Care - Homecare,11/11/2015,3546754,557.27,FOCUS CARE LINK LTD
Adults Services,Adult Social Care,Older People (Aged 65 or over) including Older Mental Ill,Older People Commissioning,Social Care - Homecare,11/11/2015,3546755,877.20,REDSPOT HOMECARE (CONTRACTS) LTD
Adults Services,Adult Social Care,Older People (Aged 65 or over) including Older Mental Ill,Older People Commissioning,Social Care - Homecare,11/11/2015,3546756,612.75,REDSPOT HOMECARE (CONTRACTS) LTD
Adults Services,Adult Social Care,Older People (Aged 65 or over) including Older Mental Ill,Older People Commissioning,Social Care - Homecare,11/11/2015,3546758,722.40,REDSPOT HOMECARE (CONTRACTS) LTD
Adults Services,Adult Social Care,Older People (Aged 65 or over) including Older Mental Ill,Physical Dis Commissioning,Social Care - Homecare,11/11/2015,3546759,"1,170.68",REDSPOT HOMECARE (CONTRACTS) LTD
Adults Services,Adult Social Care,Older People (Aged 65 or over) including Older Mental Ill,Older People Commissioning,Social Care - Homecare,11/11/2015,3546767,528.90,REDSPOT HOMECARE (CONTRACTS) LTD
Adults Services,Adult Social Care,Older People (Aged 65 or over) including Older Mental Ill,Older People Commissioning,Social Care - Homecare,11/11/2015,3546776,632.10,REDSPOT HOMECARE (CONTRACTS) LTD
Adults Services,Adult Social Care,Older People (Aged 65 or over) including Older Mental Ill,Older People Commissioning,Social Care - Homecare,11/11/2015,3546780,"1,044.90",REDSPOT HOMECARE (CONTRACTS) LTD
Adults Services,Adult Social Care,Older People (Aged 65 or over) including Older Mental Ill,Physical Dis Commissioning,Social Care - Homecare,11/11/2015,3546785,812.70,REDSPOT HOMECARE (CONTRACTS) LTD
Adults Services,Adult Social Care,Older People (Aged 65 or over) including Older Mental Ill,Older People Commissioning,Social Care - Homecare,11/11/2015,3546796,541.80,REDSPOT HOMECARE (CONTRACTS) LTD
Adults Services,Adult Social Care,Older People (Aged 65 or over) including Older Mental Ill,Older People Commissioning,Social Care - Homecare,11/11/2015,3546799,851.40,REDSPOT HOMECARE (CONTRACTS) LTD
Adults Services,Adult Social Care,Older People (Aged 65 or over) including Older Mental Ill,Older People Commissioning,Social Care - Homecare,11/11/2015,3546807,735.30,REDSPOT HOMECARE (CONTRACTS) LTD
Adults Services,Adult Social Care,Older People (Aged 65 or over) including Older Mental Ill,Older People Commissioning,Social Care - Homecare,11/11/2015,3546813,586.95,REDSPOT HOMECARE (CONTRACTS) LTD
Adults Services,Adult Social Care,Older People (Aged 65 or over) including Older Mental Ill,Older People Commissioning,Social Care - Homecare,11/11/2015,3546817,"1,912.68",FOCUS CARE LINK LTD
Adults Services,Adult Social Care,Older People (Aged 65 or over) including Older Mental Ill,Mental Health Commissioning,Social Care - Homecare,11/11/2015,3546818,796.95,FOCUS CARE LINK LTD
Adults Services,Adult Social Care,Older People (Aged 65 or over) including Older Mental Ill,Physical Dis Commissioning,Social Care - Homecare,11/11/2015,3546819,883.89,FOCUS CARE LINK LTD
Adults Services,Adult Social Care,Older People (Aged 65 or over) including Older Mental Ill,Physical Dis Commissioning,Social Care - Homecare,11/11/2015,3546820,825.93,FOCUS CARE LINK LTD
Adults Services,Adult Social Care,Older People (Aged 65 or over) including Older Mental Ill,Older People Commissioning,Social Care - Residential Care,11/11/2015,3546822,"3,354.63",Scimitar Care Hotels PLC
Adults Services,Adult Social Care,Older People (Aged 65 or over) including Older Mental Ill,Older People Commissioning,Social Care - Residential Care,11/11/2015,3546822,-942.66,Scimitar Care Hotels PLC
Adults Services,Adult Social Care,Older People (Aged 65 or over) including Older Mental Ill,Older People Commissioning,Social Care - Homecare,11/11/2015,3546823,"1,928.55",COMMUNITY CARE CONSORTIUM
Adults Services,Adult Social Care,Older People (Aged 65 or over) including Older Mental Ill,Older People Commissioning,Social Care - Homecare,11/11/2015,3546824,"1,330.55",COMMUNITY CARE CONSORTIUM
Adults Services,Adult Social Care,Older People (Aged 65 or over) including Older Mental Ill,Mental Health Commissioning,Social Care - Homecare,11/11/2015,3546825,"1,255.80",COMMUNITY CARE CONSORTIUM
Adults Services,Adult Social Care,Older People (Aged 65 or over) including Older Mental Ill,Learning Dis Commissioning,Social Care - Homecare,11/11/2015,3546826,"1,210.95",COMMUNITY CARE CONSORTIUM
Adults Services,Adult Social Care,Older People (Aged 65 or over) including Older Mental Ill,Older People Commissioning,Social Care - Homecare,11/11/2015,3546827,"1,121.25",COMMUNITY CARE CONSORTIUM
Adults Services,Adult Social Care,Older People (Aged 65 or over) including Older Mental Ill,Learning Dis Commissioning,Social Care - Homecare,11/11/2015,3546828,"1,061.45",COMMUNITY CARE CONSORTIUM
Adults Services,Adult Social Care,Older People (Aged 65 or over) including Older Mental Ill,Learning Dis Commissioning,Social Care - Homecare,11/11/2015,3546829,"1,046.50",COMMUNITY CARE CONSORTIUM
Adults Services,Adult Social Care,Older People (Aged 65 or over) including Older Mental Ill,Older People Commissioning,Social Care - Homecare,11/11/2015,3546830,799.83,COMMUNITY CARE CONSORTIUM
Adults Services,Adult Social Care,Older People (Aged 65 or over) including Older Mental Ill,Older People Commissioning,Social Care - Homecare,11/11/2015,3546831,762.45,COMMUNITY CARE CONSORTIUM
Adults Services,Adult Social Care,Older People (Aged 65 or over) including Older Mental Ill,Physical Dis Commissioning,Social Care - Homecare,11/11/2015,3546832,754.98,COMMUNITY CARE CONSORTIUM
Adults Services,Adult Social Care,Older People (Aged 65 or over) including Older Mental Ill,Learning Dis Commissioning,Social Care - Homecare,11/11/2015,3546833,717.60,COMMUNITY CARE CONSORTIUM
Adults Services,Adult Social Care,Older People (Aged 65 or over) including Older Mental Ill,Older People Commissioning,Social Care - Homecare,11/11/2015,3546834,687.70,COMMUNITY CARE CONSORTIUM
Adults Services,Adult Social Care,Older People (Aged 65 or over) including Older Mental Ill,Older People Commissioning,Social Care - Homecare,11/11/2015,3546835,665.28,COMMUNITY CARE CONSORTIUM
Adults Services,Adult Social Care,Older People (Aged 65 or over) including Older Mental Ill,Older People Commissioning,Social Care - Homecare,11/11/2015,3546836,642.85,COMMUNITY CARE CONSORTIUM
Adults Services,Adult Social Care,Older People (Aged 65 or over) including Older Mental Ill,Learning Dis Commissioning,Social Care - Homecare,11/11/2015,3546837,627.90,COMMUNITY CARE CONSORTIUM
Adults Services,Adult Social Care,Older People (Aged 65 or over) including Older Mental Ill,Learning Dis Commissioning,Social Care - Homecare,11/11/2015,3546838,627.90,COMMUNITY CARE CONSORTIUM
Adults Services,Adult Social Care,Older People (Aged 65 or over) including Older Mental Ill,Learning Dis Commissioning,Social Care - Homecare,11/11/2015,3546839,612.95,COMMUNITY CARE CONSORTIUM
Adults Services,Adult Social Care,Older People (Aged 65 or over) including Older Mental Ill,Physical Dis Commissioning,Social Care - Homecare,11/11/2015,3546840,612.95,COMMUNITY CARE CONSORTIUM
Adults Services,Adult Social Care,Older People (Aged 65 or over) including Older Mental Ill,Learning Dis Commissioning,Social Care - Homecare,11/11/2015,3546841,598.00,COMMUNITY CARE CONSORTIUM
Adults Services,Adult Social Care,Older People (Aged 65 or over) including Older Mental Ill,Learning Dis Commissioning,Social Care - Homecare,11/11/2015,3546842,598.00,COMMUNITY CARE CONSORTIUM
Adults Services,Adult Social Care,Older People (Aged 65 or over) including Older Mental Ill,Physical Dis Commissioning,Social Care - Homecare,11/11/2015,3546843,583.05,COMMUNITY CARE CONSORTIUM
Adults Services,Adult Social Care,Older People (Aged 65 or over) including Older Mental Ill,Learning Dis Commissioning,Social Care - Homecare,11/11/2015,3546844,568.10,COMMUNITY CARE CONSORTIUM
Adults Services,Adult Social Care,Older People (Aged 65 or over) including Older Mental Ill,Older People Commissioning,Social Care - Homecare,11/11/2015,3546845,545.67,COMMUNITY CARE CONSORTIUM
Adults Services,Adult Social Care,Older People (Aged 65 or over) including Older Mental Ill,Older People Commissioning,Social Care - Homecare,11/11/2015,3546846,538.20,COMMUNITY CARE CONSORTIUM
Adults Services,Adult Social Care,Older People (Aged 65 or over) including Older Mental Ill,Learning Dis Commissioning,Social Care - Homecare,11/11/2015,3546847,508.30,COMMUNITY CARE CONSORTIUM
Adults Services,Adult Social Care,Older People (Aged 65 or over) including Older Mental Ill,Physical Dis Commissioning,Social Care - Homecare,11/11/2015,3546848,500.83,COMMUNITY CARE CONSORTIUM
Adults Services,Adult Social Care,Older People (Aged 65 or over) including Older Mental Ill,Learning Dis Commissioning,Client Contributions for Social Care - Residential Care,11/11/2015,3546857,"1,722.47",NEXUS Programme Ltd
Adults Services,Adult Social Care,Older People (Aged 65 or over) including Older Mental Ill,Learning Dis Commissioning,Social Care - Day Care,11/11/2015,3546858,727.76,APASENTH
Adults Services,Adult Social Care,Older People (Aged 65 or over) including Older Mental Ill,Learning Dis Commissioning,Social Care - Day Care,11/11/2015,3546859,694.68,APASENTH
Adults Services,Adult Social Care,Older People (Aged 65 or over) including Older Mental Ill,Learning Dis Commissioning,Social Care - Day Care,11/11/2015,3546861,"2,007.83",APASENTH
Adults Services,Adult Social Care,Older People (Aged 65 or over) including Older Mental Ill,Learning Dis Commissioning,Social Care - Day Care,11/11/2015,3546862,918.28,APASENTH
Adults Services,Adult Social Care,Older People (Aged 65 or over) including Older Mental Ill,Learning Dis Commissioning,Social Care - Day Care,11/11/2015,3546863,727.76,APASENTH
Adults Services,Adult Social Care,Older People (Aged 65 or over) including Older Mental Ill,Learning Dis Commissioning,Social Care - Day Care,11/11/2015,3546864,808.02,APASENTH
Adults Services,Adult Social Care,Older People (Aged 65 or over) including Older Mental Ill,Learning Dis Commissioning,Social Care - Day Care,11/11/2015,3546865,576.00,APASENTH
Adults Services,Adult Social Care,Older People (Aged 65 or over) including Older Mental Ill,Learning Dis Commissioning,Social Care - Day Care,11/11/2015,3546866,562.36,APASENTH
Adults Services,Adult Social Care,Older People (Aged 65 or over) including Older Mental Ill,Learning Dis Commissioning,Social Care - Day Care,11/11/2015,3546867,987.58,APASENTH
Adults Services,Adult Social Care,Older People (Aged 65 or over) including Older Mental Ill,Learning Dis Commissioning,Social Care - Day Care,11/11/2015,3546868,727.76,APASENTH
Adults Services,Adult Social Care,Older People (Aged 65 or over) including Older Mental Ill,Learning Dis Commissioning,Social Care - Day Care,11/11/2015,3546869,987.58,APASENTH
Adults Services,Adult Social Care,Older People (Aged 65 or over) including Older Mental Ill,Learning Dis Commissioning,Social Care - Day Care,11/11/2015,3546871,942.69,APASENTH
Adults Services,Adult Social Care,Older People (Aged 65 or over) including Older Mental Ill,Learning Dis Commissioning,Social Care - Day Care,11/11/2015,3546872,"1,836.56",APASENTH
Adults Services,Adult Social Care,Older People (Aged 65 or over) including Older Mental Ill,Learning Dis Commissioning,Social Care - Day Care,11/11/2015,3546874,694.68,APASENTH
Adults Services,Adult Social Care,Older People (Aged 65 or over) including Older Mental Ill,Learning Dis Commissioning,Social Care - Day Care,11/11/2015,3546876,529.28,APASENTH
Adults Services,Adult Social Care,Older People (Aged 65 or over) including Older Mental Ill,Learning Dis Commissioning,Social Care - Day Care,11/11/2015,3546879,987.58,APASENTH
Adults Services,Adult Social Care,Older People (Aged 65 or over) including Older Mental Ill,Learning Dis Commissioning,Social Care - Day Care,11/11/2015,3546880,727.76,APASENTH
Adults Services,Adult Social Care,Older People (Aged 65 or over) including Older Mental Ill,Learning Dis Commissioning,Social Care - Day Care,11/11/2015,3546881,727.76,APASENTH
Adults Services,Adult Social Care,Older People (Aged 65 or over) including Older Mental Ill,Learning Dis Commissioning,Social Care - Day Care,11/11/2015,3546883,"1,836.56",APASENTH
Adults Services,Adult Social Care,Older People (Aged 65 or over) including Older Mental Ill,Learning Dis Commissioning,Social Care - Day Care,11/11/2015,3546884,"1,276.59",APASENTH
Adults Services,Adult Social Care,Older People (Aged 65 or over) including Older Mental Ill,Learning Dis Commissioning,Social Care - Day Care,11/11/2015,3546885,727.76,APASENTH
Adults Services,Adult Social Care,Older People (Aged 65 or over) including Older Mental Ill,Learning Dis Commissioning,Social Care - Day Care,11/11/2015,3546886,"1,499.19",APASENTH
Adults Services,Adult Social Care,Older People (Aged 65 or over) including Older Mental Ill,Learning Dis Commissioning,Social Care - Day Care,11/11/2015,3546887,583.57,APASENTH
Adults Services,Adult Social Care,Older People (Aged 65 or over) including Older Mental Ill,Learning Dis Commissioning,Social Care - Day Care,11/11/2015,3546888,661.60,APASENTH
Adults Services,Adult Social Care,Older People (Aged 65 or over) including Older Mental Ill,Learning Dis Commissioning,Social Care - Day Care,11/11/2015,3546892,763.13,APASENTH
Adults Services,Adult Social Care,Older People (Aged 65 or over) including Older Mental Ill,Learning Dis Commissioning,Social Care - Day Care,11/11/2015,3546893,661.60,APASENTH
Adults Services,Adult Social Care,Older People (Aged 65 or over) including Older Mental Ill,Learning Dis Commissioning,Social Care - Day Care,11/11/2015,3546896,727.76,APASENTH
Adults Services,Adult Social Care,Older People (Aged 65 or over) including Older Mental Ill,Learning Dis Commissioning,Social Care - Day Care,11/11/2015,3546899,987.58,APASENTH
Adults Services,Adult Social Care,Older People (Aged 65 or over) including Older Mental Ill,Learning Dis Commissioning,Social Care - Day Care,11/11/2015,3546901,538.68,APASENTH
Adults Services,Adult Social Care,Older People (Aged 65 or over) including Older Mental Ill,Learning Dis Commissioning,Social Care - Day Care,11/11/2015,3546901,561.64,APASENTH
Adults Services,Adult Social Care,Older People (Aged 65 or over) including Older Mental Ill,Learning Dis Commissioning,Social Care - Day Care,11/11/2015,3546902,727.76,APASENTH
Adults Services,Adult Social Care,Older People (Aged 65 or over) including Older Mental Ill,Learning Dis Commissioning,Social Care - Day Care,11/11/2015,3546903,727.76,APASENTH
Adults Services,Adult Social Care,Older People (Aged 65 or over) including Older Mental Ill,Learning Dis Commissioning,Social Care - Day Care,11/11/2015,3546905,987.58,APASENTH
Adults Services,Adult Social Care,Older People (Aged 65 or over) including Older Mental Ill,Learning Dis Commissioning,Social Care - Day Care,11/11/2015,3546906,834.80,APASENTH
Adults Services,Adult Social Care,Older People (Aged 65 or over) including Older Mental Ill,Learning Dis Commissioning,Social Care - Day Care,11/11/2015,3546907,583.57,APASENTH
Adults Services,Adult Social Care,Older People (Aged 65 or over) including Older Mental Ill,Learning Dis Commissioning,Social Care - Day Care,11/11/2015,3546908,"1,574.32",APASENTH
Adults Services,Adult Social Care,Older People (Aged 65 or over) including Older Mental Ill,Learning Dis Commissioning,Social Care - Day Care,11/11/2015,3546912,667.84,APASENTH
Adults Services,Adult Social Care,Older People (Aged 65 or over) including Older Mental Ill,Learning Dis Commissioning,Social Care - Day Care,11/11/2015,3546915,"1,272.57",APASENTH
Adults Services,Adult Social Care,Older People (Aged 65 or over) including Older Mental Ill,Learning Dis Commissioning,Social Care - Day Care,11/11/2015,3546918,881.01,APASENTH
Adults Services,Adult Social Care,Older People (Aged 65 or over) including Older Mental Ill,Learning Dis Commissioning,Social Care - Day Care,11/11/2015,3546921,"2,079.22",Tower Project
Adults Services,Adult Social Care,Older People (Aged 65 or over) including Older Mental Ill,Learning Dis Commissioning,Social Care - Day Care,11/11/2015,3546922,"2,079.22",Tower Project
Adults Services,Adult Social Care,Older People (Aged 65 or over) including Older Mental Ill,Learning Dis Commissioning,Social Care - Day Care,11/11/2015,3546923,"2,079.22",Tower Project
Adults Services,Adult Social Care,Older People (Aged 65 or over) including Older Mental Ill,Learning Dis Commissioning,Social Care - Day Care,11/11/2015,3546924,"2,079.22",Tower Project
Adults Services,Adult Social Care,Older People (Aged 65 or over) including Older Mental Ill,Learning Dis Commissioning,Social Care - Day Care,11/11/2015,3546925,"1,466.96",Tower Project
Adults Services,Adult Social Care,Older People (Aged 65 or over) including Older Mental Ill,Learning Dis Commissioning,Social Care - Day Care,11/11/2015,3546926,"2,079.22",Tower Project
Adults Services,Adult Social Care,Older People (Aged 65 or over) including Older Mental Ill,Learning Dis Commissioning,Social Care - Day Care,11/11/2015,3546927,"2,079.22",Tower Project
Adults Services,Adult Social Care,Older People (Aged 65 or over) including Older Mental Ill,Learning Dis Commissioning,Social Care - Day Care,11/11/2015,3546928,"1,466.96",Tower Project
Adults Services,Adult Social Care,Older People (Aged 65 or over) including Older Mental Ill,Learning Dis Commissioning,Social Care - Day Care,11/11/2015,3546929,666.80,Tower Project
Adults Services,Adult Social Care,Older People (Aged 65 or over) including Older Mental Ill,Learning Dis Commissioning,Social Care - Day Care,11/11/2015,3546930,"1,000.20",Tower Project
Adults Services,Adult Social Care,Older People (Aged 65 or over) including Older Mental Ill,Physical Dis Commissioning,Social Care - Day Care,11/11/2015,3546931,660.52,Tower Project
Adults Services,Adult Social Care,Older People (Aged 65 or over) including Older Mental Ill,Learning Dis Commissioning,Social Care - Day Care,11/11/2015,3546932,"2,079.22",Tower Project
Adults Services,Adult Social Care,Older People (Aged 65 or over) including Older Mental Ill,Learning Dis Commissioning,Social Care - Day Care,11/11/2015,3546933,"2,079.22",Tower Project
Adults Services,Adult Social Care,Older People (Aged 65 or over) including Older Mental Ill,Learning Dis Commissioning,Social Care - Day Care,11/11/2015,3546934,"1,466.96",Tower Project
Adults Services,Adult Social Care,Older People (Aged 65 or over) including Older Mental Ill,Learning Dis Commissioning,Social Care - Day Care,11/11/2015,3546935,"2,079.22",Tower Project
Adults Services,Adult Social Care,Older People (Aged 65 or over) including Older Mental Ill,Learning Dis Commissioning,Social Care - Day Care,11/11/2015,3546936,"2,079.22",Tower Project
Adults Services,Adult Social Care,Older People (Aged 65 or over) including Older Mental Ill,Learning Dis Commissioning,Social Care - Day Care,11/11/2015,3546937,"1,466.96",Tower Project
Adults Services,Adult Social Care,Older People (Aged 65 or over) including Older Mental Ill,Learning Dis Commissioning,Social Care - Day Care,11/11/2015,3546938,"1,466.96",Tower Project
Adults Services,Adult Social Care,Older People (Aged 65 or over) including Older Mental Ill,Learning Dis Commissioning,Social Care - Day Care,11/11/2015,3546940,"2,079.22",Tower Project
Adults Services,Adult Social Care,Older People (Aged 65 or over) including Older Mental Ill,Learning Dis Commissioning,Social Care - Day Care,11/11/2015,3546941,"2,079.22",Tower Project
Adults Services,Adult Social Care,Older People (Aged 65 or over) including Older Mental Ill,Learning Dis Commissioning,Social Care - Day Care,11/11/2015,3546942,"2,079.22",Tower Project
Adults Services,Adult Social Care,Older People (Aged 65 or over) including Older Mental Ill,Learning Dis Commissioning,Social Care - Day Care,11/11/2015,3546943,"2,079.22",Tower Project
Adults Services,Adult Social Care,Older People (Aged 65 or over) including Older Mental Ill,Learning Dis Commissioning,Social Care - Day Care,11/11/2015,3546945,"2,079.22",Tower Project
Adults Services,Adult Social Care,Older People (Aged 65 or over) including Older Mental Ill,Learning Dis Commissioning,Social Care - Day Care,11/11/2015,3546946,"2,398.22",Tower Project
Adults Services,Adult Social Care,Older People (Aged 65 or over) including Older Mental Ill,Learning Dis Commissioning,Social Care - Day Care,11/11/2015,3546947,"1,466.96",Tower Project
Adults Services,Adult Social Care,Older People (Aged 65 or over) including Older Mental Ill,Learning Dis Commissioning,Social Care - Day Care,11/11/2015,3546948,"1,226.92",Tower Project
Adults Services,Adult Social Care,Older People (Aged 65 or over) including Older Mental Ill,Learning Dis Commissioning,Social Care - Day Care,11/11/2015,3546949,"1,226.92",Tower Project
Adults Services,Adult Social Care,Older People (Aged 65 or over) including Older Mental Ill,Learning Dis Commissioning,Social Care - Day Care,11/11/2015,3546950,"2,079.22",Tower Project
Adults Services,Adult Social Care,Older People (Aged 65 or over) including Older Mental Ill,Learning Dis Commissioning,Social Care - Day Care,11/11/2015,3546951,"1,323.14",Tower Project
Adults Services,Adult Social Care,Older People (Aged 65 or over) including Older Mental Ill,Learning Dis Commissioning,Social Care - Day Care,11/11/2015,3546952,"2,079.22",Tower Project
Adults Services,Adult Social Care,Older People (Aged 65 or over) including Older Mental Ill,Learning Dis Commissioning,Social Care - Day Care,11/11/2015,3546953,756.08,Tower Project
Adults Services,Adult Social Care,Older People (Aged 65 or over) including Older Mental Ill,Learning Dis Commissioning,Social Care - Day Care,11/11/2015,3546955,"2,079.22",Tower Project
Adults Services,Adult Social Care,Older People (Aged 65 or over) including Older Mental Ill,Learning Dis Commissioning,Social Care - Day Care,11/11/2015,3546956,"1,466.96",Tower Project
Adults Services,Adult Social Care,Older People (Aged 65 or over) including Older Mental Ill,Learning Dis Commissioning,Social Care - Day Care,11/11/2015,3546957,"1,037.96",Tower Project
Adults Services,Adult Social Care,Older People (Aged 65 or over) including Older Mental Ill,Learning Dis Commissioning,Social Care - Day Care,11/11/2015,3546958,"2,079.22",Tower Project
Adults Services,Adult Social Care,Older People (Aged 65 or over) including Older Mental Ill,Learning Dis Commissioning,Social Care - Day Care,11/11/2015,3546959,"1,037.96",Tower Project
Adults Services,Adult Social Care,Older People (Aged 65 or over) including Older Mental Ill,Learning Dis Commissioning,Social Care - Day Care,11/11/2015,3546960,"2,079.22",Tower Project
Adults Services,Adult Social Care,Older People (Aged 65 or over) including Older Mental Ill,Learning Dis Commissioning,Social Care - Day Care,11/11/2015,3546961,"2,079.22",Tower Project
Adults Services,Adult Social Care,Older People (Aged 65 or over) including Older Mental Ill,Mental Health Commissioning,Social Care - Prevention & Support,11/11/2015,3546962,"1,042.50",Alma Attic Ltd T/A Glorydale Inn
Adults Services,Adult Social Care,Older People (Aged 65 or over) including Older Mental Ill,Mental Health Commissioning,Social Care - Prevention & Support,11/11/2015,3546963,946.67,Alma Attic Ltd T/A Glorydale Inn
Adults Services,Adult Social Care,Older People (Aged 65 or over) including Older Mental Ill,Older People Commissioning,Social Care - Homecare,11/11/2015,3546964,531.82,MiHOMECARE LIMITED
Adults Services,Adult Social Care,Older People (Aged 65 or over) including Older Mental Ill,Older People Commissioning,Social Care - Homecare,11/11/2015,3546966,507.00,MiHOMECARE LIMITED
Adults Services,Adult Social Care,Older People (Aged 65 or over) including Older Mental Ill,Older People Commissioning,Social Care - Homecare,11/11/2015,3546967,503.40,MiHOMECARE LIMITED
Adults Services,Adult Social Care,Older People (Aged 65 or over) including Older Mental Ill,Older People Commissioning,Social Care - Homecare,11/11/2015,3546973,886.25,MiHOMECARE LIMITED
Adults Services,Adult Social Care,Older People (Aged 65 or over) including Older Mental Ill,Physical Dis Commissioning,Social Care - Homecare,11/11/2015,3546988,599.16,MiHOMECARE LIMITED
Adults Services,Adult Social Care,Older People (Aged 65 or over) including Older Mental Ill,Older People Commissioning,Social Care - Homecare,11/11/2015,3546992,850.94,MiHOMECARE LIMITED
Adults Services,Adult Social Care,Older People (Aged 65 or over) including Older Mental Ill,Learning Dis Commissioning,Social Care - Homecare,11/11/2015,3547009,538.84,MiHOMECARE LIMITED
Adults Services,Adult Social Care,Older People (Aged 65 or over) including Older Mental Ill,Older People Commissioning,Social Care - Homecare,11/11/2015,3547022,510.48,MiHOMECARE LIMITED
Adults Services,Adult Social Care,Older People (Aged 65 or over) including Older Mental Ill,Older People Commissioning,Social Care - Homecare,11/11/2015,3547032,507.50,CIRCLE SUPPORT CONSORTIUM
Adults Services,Adult Social Care,Older People (Aged 65 or over) including Older Mental Ill,Physical Dis Commissioning,Social Care - Homecare,11/11/2015,3547039,"1,160.00",CIRCLE SUPPORT CONSORTIUM
Adults Services,Adult Social Care,Older People (Aged 65 or over) including Older Mental Ill,Older People Commissioning,Social Care - Homecare,11/11/2015,3547041,507.50,CIRCLE SUPPORT CONSORTIUM
Adults Services,Adult Social Care,Older People (Aged 65 or over) including Older Mental Ill,Learning Dis Commissioning,Social Care - Residential Care,11/11/2015,3547050,"5,797.00",North Down Villa
Adults Services,Adult Social Care,Older People (Aged 65 or over) including Older Mental Ill,Learning Dis Commissioning,Social Care - Day Care,11/11/2015,3547051,"5,115.00",APASENTH
Adults Services,Adult Social Care,Older People (Aged 65 or over) including Older Mental Ill,Learning Dis Commissioning,Social Care - Residential Care,11/11/2015,3547052,"5,115.00",APASENTH
Adults Services,Adult Social Care,Older People (Aged 65 or over) including Older Mental Ill,Learning Dis Commissioning,Social Care - Residential Care,11/11/2015,3547053,"4,650.00",APASENTH
Adults Services,Adult Social Care,Older People (Aged 65 or over) including Older Mental Ill,Learning Dis Commissioning,Social Care - Residential Care,11/11/2015,3547054,"3,746.04",APASENTH
Adults Services,Adult Social Care,Older People (Aged 65 or over) including Older Mental Ill,Learning Dis Commissioning,Social Care - Residential Care,11/11/2015,3547055,"4,650.00",APASENTH
Adults Services,Adult Social Care,Older People (Aged 65 or over) including Older Mental Ill,Learning Dis Commissioning,Social Care - Respite Care,11/11/2015,3547056,990.00,APASENTH
Adults Services,Adult Social Care,Older People (Aged 65 or over) including Older Mental Ill,Learning Dis Commissioning,Social Care - Respite Care,11/11/2015,3547057,660.00,APASENTH
Adults Services,Adult Social Care,Older People (Aged 65 or over) including Older Mental Ill,Physical Dis Commissioning,Social Care - Prevention & Support,11/11/2015,3547059,"1,400.00",Plaza London Hotel
Adults Services,Adult Social Care,Older People (Aged 65 or over) including Older Mental Ill,Older People Commissioning,Social Care - Homecare,11/11/2015,3547060,"2,384.20",APASENTH
Adults Services,Adult Social Care,Older People (Aged 65 or over) including Older Mental Ill,Learning Dis Commissioning,Social Care - Homecare,11/11/2015,3547061,"2,318.70",APASENTH
Adults Services,Adult Social Care,Older People (Aged 65 or over) including Older Mental Ill,Learning Dis Commissioning,Social Care - Homecare,11/11/2015,3547062,"1,519.60",APASENTH
Adults Services,Adult Social Care,Older People (Aged 65 or over) including Older Mental Ill,Older People Commissioning,Social Care - Homecare,11/11/2015,3547063,"1,467.20",APASENTH
Adults Services,Adult Social Care,Older People (Aged 65 or over) including Older Mental Ill,Learning Dis Commissioning,Social Care - Homecare,11/11/2015,3547064,"1,388.60",APASENTH
Adults Services,Adult Social Care,Older People (Aged 65 or over) including Older Mental Ill,Learning Dis Commissioning,Social Care - Homecare,11/11/2015,3547065,"1,179.00",APASENTH
Adults Services,Adult Social Care,Older People (Aged 65 or over) including Older Mental Ill,Learning Dis Commissioning,Social Care - Homecare,11/11/2015,3547066,"1,165.90",APASENTH
Adults Services,Adult Social Care,Older People (Aged 65 or over) including Older Mental Ill,Older People Commissioning,Social Care - Homecare,11/11/2015,3547067,903.90,APASENTH
Adults Services,Adult Social Care,Older People (Aged 65 or over) including Older Mental Ill,Learning Dis Commissioning,Social Care - Homecare,11/11/2015,3547068,890.80,APASENTH
Adults Services,Adult Social Care,Older People (Aged 65 or over) including Older Mental Ill,Learning Dis Commissioning,Social Care - Homecare,11/11/2015,3547069,864.60,APASENTH
Adults Services,Adult Social Care,Older People (Aged 65 or over) including Older Mental Ill,Learning Dis Commissioning,Social Care - Homecare,11/11/2015,3547070,700.85,APASENTH
Adults Services,Adult Social Care,Older People (Aged 65 or over) including Older Mental Ill,Learning Dis Commissioning,Social Care - Homecare,11/11/2015,3547071,655.00,APASENTH
Adults Services,Adult Social Care,Older People (Aged 65 or over) including Older Mental Ill,Learning Dis Commissioning,Social Care - Homecare,11/11/2015,3547072,628.80,APASENTH
Adults Services,Adult Social Care,Older People (Aged 65 or over) including Older Mental Ill,Learning Dis Commissioning,Social Care - Homecare,11/11/2015,3547073,589.50,APASENTH
Adults Services,Adult Social Care,Older People (Aged 65 or over) including Older Mental Ill,Learning Dis Commissioning,Social Care - Homecare,11/11/2015,3547074,566.58,APASENTH
Adults Services,Adult Social Care,Older People (Aged 65 or over) including Older Mental Ill,Learning Dis Commissioning,Social Care - Homecare,11/11/2015,3547075,550.20,APASENTH
Adults Services,Adult Social Care,Older People (Aged 65 or over) including Older Mental Ill,Learning Dis Commissioning,Social Care - Homecare,11/11/2015,3547076,537.10,APASENTH
Adults Services,Adult Social Care,Older People (Aged 65 or over) including Older Mental Ill,Learning Dis Commissioning,Social Care - Homecare,11/11/2015,3547077,524.00,APASENTH
Adults Services,Adult Social Care,Older People (Aged 65 or over) including Older Mental Ill,Learning Dis Commissioning,Social Care - Homecare,11/11/2015,3547078,524.00,APASENTH
Adults Services,Adult Social Care,Older People (Aged 65 or over) including Older Mental Ill,Older People Commissioning,Social Care - Homecare,11/11/2015,3547079,517.45,APASENTH
Adults Services,Adult Social Care,Older People (Aged 65 or over) including Older Mental Ill,Carers,Social Care - Carers Act Services,11/11/2015,3547146,"17,544.50",Alzheimer's Society
Adults Services,Adult Social Care,Older People (Aged 65 or over) including Older Mental Ill,Learning Dis Commissioning,Social Care - Homecare,11/11/2015,3547153,826.19,East Thames Group Ltd
Adults Services,Adult Social Care,Older People (Aged 65 or over) including Older Mental Ill,Learning Dis Commissioning,Social Care - Help to Live at Home,11/11/2015,3547154,"4,320.78",East Thames Group Ltd
Adults Services,Adult Social Care,Older People (Aged 65 or over) including Older Mental Ill,Learning Dis Commissioning,Social Care - Help to Live at Home,11/11/2015,3547155,"4,320.78",East Thames Group Ltd
Adults Services,Adult Social Care,Older People (Aged 65 or over) including Older Mental Ill,Carers,Social Care - St Hilda's ST Flexible Respite,11/11/2015,3547156,"17,302.93",St Hilda's East Community Centre
Adults Services,Adult Social Care,Older People (Aged 65 or over) including Older Mental Ill,Older People Commissioning,Social Care - Residential Care,11/11/2015,3547157,"1,919.84",RUNWOOD HOMES PLC
Adults Services,Adult Social Care,Older People (Aged 65 or over) including Older Mental Ill,Older People Commissioning,Social Care - Residential Care,11/11/2015,3547157,-748.70,RUNWOOD HOMES PLC
Adults Services,Adult Social Care,Older People (Aged 65 or over) including Older Mental Ill,Older People Commissioning,Social Care - Residential Care,11/11/2015,3547158,"1,990.16",RUNWOOD HOMES PLC
Adults Services,Adult Social Care,Older People (Aged 65 or over) including Older Mental Ill,Older People Commissioning,Social Care - Residential Care,11/11/2015,3547159,"2,019.70",RUNWOOD HOMES PLC
Adults Services,Adult Social Care,Older People (Aged 65 or over) including Older Mental Ill,Older People Commissioning,Social Care - Residential Care,11/11/2015,3547159,-584.13,RUNWOOD HOMES PLC
Adults Services,Adult Social Care,Older People (Aged 65 or over) including Older Mental Ill,Strategic Commissioning,Social Care - Prevention & Support - Block,11/11/2015,3547160,"12,311.00",POhWER
Adults Services,Adult Social Care,Older People (Aged 65 or over) including Older Mental Ill,Strategic Commissioning,Social Care - Prevention & Support - Block,11/11/2015,3547161,"12,311.00",POhWER
Adults Services,Adult Social Care,Older People (Aged 65 or over) including Older Mental Ill,Learning Dis Commissioning,Social Care - Day Care,11/11/2015,3547164,"3,923.44",Outward Housing
Adults Services,Adult Social Care,Older People (Aged 65 or over) including Older Mental Ill,Learning Dis Commissioning,Social Care - Homecare,11/11/2015,3547164,"2,766.56",Outward Housing
Adults Services,Adult Social Care,Older People (Aged 65 or over) including Older Mental Ill,Learning Dis Commissioning,Social Care - Help to Live at Home,11/11/2015,3547165,"1,427.21",Outward Housing
Adults Services,Adult Social Care,Older People (Aged 65 or over) including Older Mental Ill,Learning Dis Commissioning,Social Care - Homecare,11/11/2015,3547167,864.36,Outward Housing
Adults Services,Adult Social Care,Older People (Aged 65 or over) including Older Mental Ill,Learning Dis Commissioning,Social Care - Homecare,11/11/2015,3547168,"1,095.61",Outward Housing
Adults Services,Adult Social Care,Older People (Aged 65 or over) including Older Mental Ill,Learning Dis Commissioning,Social Care - Homecare,11/11/2015,3547170,"1,081.41",Outward Housing
Adults Services,Adult Social Care,Older People (Aged 65 or over) including Older Mental Ill,Learning Dis Commissioning,Social Care - Homecare,11/11/2015,3547171,612.48,Outward Housing
Adults Services,Adult Social Care,Older People (Aged 65 or over) including Older Mental Ill,Learning Dis Commissioning,Social Care - Homecare,11/11/2015,3547172,864.36,Outward Housing
Adults Services,General Fund/Council Fund,Homelessness,Supporting People Services,SP - Block-Gross - Old People-Supp Needs,13/11/2015,3534826,585.00,London Borough Of Newham
Adults Services,General Fund/Council Fund,Homelessness,Supporting People Services,SP - Block-Gross - Old People-Supp Needs,13/11/2015,3534903,585.00,London Borough Of Newham
Adults Services,General Fund/Council Fund,Homelessness,Supporting People Services,SP - Block-Gross - Old People-Supp Needs,13/11/2015,3534922,585.00,London Borough Of Newham
Adults Services,General Fund/Council Fund,Homelessness,Supporting People Services,SP - Block-Gross - Old People-Supp Needs,13/11/2015,3534934,585.00,London Borough Of Newham
Adults Services,General Fund/Council Fund,Homelessness,Supporting People Services,SP - Block-Gross - Old People-Supp Needs,13/11/2015,3534944,585.00,London Borough Of Newham
Adults Services,Adult Social Care,Older People (Aged 65 or over) including Older Mental Ill,Older People Commissioning,Social Care - Residential Care,13/11/2015,3538962,-593.16,MILLARD HOUSE RESIDENTAIL CARE HOME
Adults Services,Adult Social Care,Older People (Aged 65 or over) including Older Mental Ill,Older People Commissioning,Social Care - Residential Care,13/11/2015,3538962,"2,160.39",MILLARD HOUSE RESIDENTAIL CARE HOME
Adults Services,Adult Social Care,Older People (Aged 65 or over) including Older Mental Ill,Older People Commissioning,Social Care - Residential Care,13/11/2015,3539942,"3,719.40",HOLLY HOUSE CARE HOME
Adults Services,Public Health,Miscellaneous Public Health Services,Public Health Team - 3,Payments to Private Contractors - Other Contractors,13/11/2015,3541635,"56,000.75",Greenwich Leisure LTD
Adults Services,Adult Social Care,Adults Aged Under 65 with Mental Health Needs,"Service User Liaison Team		",Repairs and Maintenance - Responsive - Repair & Maintenance,13/11/2015,3541863,"1,210.77",RGE Services
Adults Services,No Service Specified,No Division Specified,Create S.E.C,Catering - Non Kitchen Supplies - Contract Catering (General),13/11/2015,3541902,700.00,Backup Coffee and Service Ltd
Adults Services,Adult Social Care,Older People (Aged 65 or over) including Older Mental Ill,Learning Dis Commissioning,Social Care - Day Care,13/11/2015,3542678,961.88,HEREWARD CARE SERVICES
Adults Services,Adult Social Care,Adults Aged Under 65 with Mental Health Needs,MH Commissioner,Social Care - Nursing Care,13/11/2015,3548196,"4,990.00",TOWER HAMLETS COUNCIL FOR VOLUNTARY SERV
Adults Services,FS & P-IOD/Poplar South,FS & P-IOD/Poplar South,FS & P-IOD/Poplar South,General,15/11/2015,Payment Card,560.00,travell inn ltd
Adults Services,Adult Social Care,Older People (Aged 65 or over) including Older Mental Ill,Mental Health Commissioning,Social Care - Supported Accommodation,16/11/2015,3538898,"2,192.14",BAXTER HOUSE SUPPORTED LIVING PROJECT
Adults Services,Adult Social Care,Older People (Aged 65 or over) including Older Mental Ill,Learning Dis Commissioning,Social Care - Residential Care,16/11/2015,3539789,"6,720.80",OVERLEY HALL SCHOOL LTD
Adults Services,Adult Social Care,Older People (Aged 65 or over) including Older Mental Ill,Older People Commissioning,Social Care - Nursing Care,16/11/2015,3539939,"4,662.86",Highgate Nursing Home (BUPA)
Adults Services,Adult Social Care,Older People (Aged 65 or over) including Older Mental Ill,Physical Dis Commissioning,Social Care - Homecare,16/11/2015,3546451,"3,920.00",SPINAL & DISABLED HOMECARE
Adults Services,Adult Social Care,Older People (Aged 65 or over) including Older Mental Ill,Older People Commissioning,Social Care - Nursing Care,16/11/2015,3547024,"1,649.14",Havelock Court (Bupa)
Adults Services,Adult Social Care,Older People (Aged 65 or over) including Older Mental Ill,Learning Dis Commissioning,Social Care - Residential Care,16/11/2015,3547147,"5,360.00",ROSELOCK LTD
Adults Services,Public Health,Miscellaneous Public Health Services,Public Health Team - 3,Third Party Payments - Voluntary Associations,16/11/2015,3548585,"6,622.25",Womens Health & Family Services
Adults Services,Adults Services,Adults Services,Adults Services,Adults Services,16/11/2015,Payment Card,678.98,currys online
Adults Services,Public Health,Smoking and Tobacco,Public Health Team - 2,Third Party Payments - Other Establishments,18/11/2015,3530646,"49,458.87",Barts Health NHS Trust
Adults Services,Public Health,Smoking and Tobacco,Public Health Team - 2,Third Party Payments - Other Establishments,18/11/2015,3531053,"22,336.27",Barts Health NHS Trust
Adults Services,Adult Social Care,Older People (Aged 65 or over) including Older Mental Ill,Strategic Commissioning,Social Care - MSG Prevention Health & Wellbeing,18/11/2015,3540095,"2,625.00",TOWER HAMLETS FRIENDS AND NEIGHBOOURS
Adults Services,Adult Social Care,Older People (Aged 65 or over) including Older Mental Ill,Older People Commissioning,Social Care - Personal Budgets - Cash,18/11/2015,3542955,-938.10,DAVID HOWARD LTD CLIENT ACCOUNT
Adults Services,Adult Social Care,Older People (Aged 65 or over) including Older Mental Ill,Learning Dis Commissioning,Social Care - Day Care,18/11/2015,3543168,"1,144.00",The Bromley by Bow Centre
Adults Services,Adult Social Care,Older People (Aged 65 or over) including Older Mental Ill,Learning Dis Commissioning,Social Care - Day Care,18/11/2015,3543169,"1,448.00",The Bromley by Bow Centre
Adults Services,Adult Social Care,Older People (Aged 65 or over) including Older Mental Ill,Learning Dis Commissioning,Social Care - Day Care,18/11/2015,3543171,876.00,The Bromley by Bow Centre
Adults Services,Adult Social Care,Older People (Aged 65 or over) including Older Mental Ill,Learning Dis Commissioning,Social Care - Day Care,18/11/2015,3543175,"1,460.00",The Bromley by Bow Centre
Adults Services,Adult Social Care,Older People (Aged 65 or over) including Older Mental Ill,Learning Dis Commissioning,Social Care - Day Care,18/11/2015,3543177,727.52,The Bromley by Bow Centre
Adults Services,Adult Social Care,Older People (Aged 65 or over) including Older Mental Ill,Learning Dis Commissioning,Social Care - Day Care,18/11/2015,3543180,584.00,The Bromley by Bow Centre
Adults Services,Adult Social Care,Older People (Aged 65 or over) including Older Mental Ill,Learning Dis Commissioning,Social Care - Day Care,18/11/2015,3543185,792.00,The Bromley by Bow Centre
Adults Services,Adult Social Care,Older People (Aged 65 or over) including Older Mental Ill,Learning Dis Commissioning,Social Care - Day Care,18/11/2015,3543188,"2,125.29",NAS Services Ltd
Adults Services,Adult Social Care,Older People (Aged 65 or over) including Older Mental Ill,Older People Commissioning,Social Care - Personal Budgets - Cash,18/11/2015,3546524,"-2,900.00",DAVID HOWARD LTD CLIENT ACCOUNT
Adults Services,No Service Specified,No Division Specified,Front Door,Services - Professional Fees - Consultants Fees,18/11/2015,3548961,787.50,Carers UK
Adults Services,No Service Specified,No Division Specified,Community Equipment Store,Electricity,18/11/2015,3550735,543.80,British Gas Business
Adults Services,Adult Social Care,Older People (Aged 65 or over) including Older Mental Ill,Learning Dis Commissioning,Social Care - Help to Live at Home,18/11/2015,3552583,"8,871.24",PEMBROKE HOUSE
Adults Services,Adult Social Care,Older People (Aged 65 or over) including Older Mental Ill,Physical Dis Commissioning,Social Care - Homecare,18/11/2015,3552594,"5,043.84",Interserve Healthcare
Adults Services,Adult Social Care,Older People (Aged 65 or over) including Older Mental Ill,Physical Dis Commissioning,Social Care - Homecare,18/11/2015,3552595,"4,723.68",Interserve Healthcare
Adults Services,Adult Social Care,Older People (Aged 65 or over) including Older Mental Ill,Physical Dis Commissioning,Social Care - Homecare,18/11/2015,3552596,"4,420.00",Interserve Healthcare
Adults Services,Adult Social Care,Older People (Aged 65 or over) including Older Mental Ill,Physical Dis Commissioning,Social Care - Homecare,18/11/2015,3552598,640.32,Interserve Healthcare
Adults Services,Adult Social Care,Older People (Aged 65 or over) including Older Mental Ill,Physical Dis Commissioning,Social Care - Homecare,18/11/2015,3552599,"5,043.84",Interserve Healthcare
Adults Services,Adult Social Care,Older People (Aged 65 or over) including Older Mental Ill,Physical Dis Commissioning,Social Care - Homecare,18/11/2015,3552600,"4,688.64",Interserve Healthcare
Adults Services,Adult Social Care,Older People (Aged 65 or over) including Older Mental Ill,Older People Commissioning,Social Care - Homecare,18/11/2015,3552609,"1,912.68",FOCUS CARE LINK LTD
Adults Services,Adult Social Care,Older People (Aged 65 or over) including Older Mental Ill,Older People Commissioning,Social Care - Homecare,18/11/2015,3552610,840.42,FOCUS CARE LINK LTD
Adults Services,Adult Social Care,Older People (Aged 65 or over) including Older Mental Ill,Physical Dis Commissioning,Social Care - Homecare,18/11/2015,3552611,536.13,FOCUS CARE LINK LTD
Adults Services,Adult Social Care,Older People (Aged 65 or over) including Older Mental Ill,Mental Health Commissioning,Social Care - Homecare,18/11/2015,3552612,796.95,FOCUS CARE LINK LTD
Adults Services,Adult Social Care,Older People (Aged 65 or over) including Older Mental Ill,Physical Dis Commissioning,Social Care - Homecare,18/11/2015,3552617,681.03,FOCUS CARE LINK LTD
Adults Services,Adult Social Care,Older People (Aged 65 or over) including Older Mental Ill,Physical Dis Commissioning,Social Care - Homecare,18/11/2015,3552618,"1,267.88",FOCUS CARE LINK LTD
Adults Services,Adult Social Care,Older People (Aged 65 or over) including Older Mental Ill,Older People Commissioning,Social Care - Homecare,18/11/2015,3552623,673.79,FOCUS CARE LINK LTD
Adults Services,Adult Social Care,Older People (Aged 65 or over) including Older Mental Ill,Older People Commissioning,Social Care - Homecare,18/11/2015,3552624,"1,912.68",FOCUS CARE LINK LTD
Adults Services,Adult Social Care,Older People (Aged 65 or over) including Older Mental Ill,Physical Dis Commissioning,Social Care - Homecare,18/11/2015,3552628,565.11,FOCUS CARE LINK LTD
Adults Services,Adult Social Care,Older People (Aged 65 or over) including Older Mental Ill,Older People Commissioning,Social Care - Homecare,18/11/2015,3552633,519.26,ATHLONE CARE LTD
Adults Services,Adult Social Care,Older People (Aged 65 or over) including Older Mental Ill,Older People Commissioning,Social Care - Homecare,18/11/2015,3552636,"1,668.80",FOCUS CARE LINK LTD
Adults Services,Adult Social Care,Older People (Aged 65 or over) including Older Mental Ill,Older People Commissioning,Social Care - Homecare,18/11/2015,3552645,912.87,FOCUS CARE LINK LTD
Adults Services,Adult Social Care,Older People (Aged 65 or over) including Older Mental Ill,Older People Commissioning,Social Care - Homecare,18/11/2015,3552655,525.87,ATHLONE CARE LTD
Adults Services,Adult Social Care,Older People (Aged 65 or over) including Older Mental Ill,Older People Commissioning,Social Care - Homecare,18/11/2015,3552659,586.57,ATHLONE CARE LTD
Adults Services,Adult Social Care,Older People (Aged 65 or over) including Older Mental Ill,Physical Dis Commissioning,Social Care - Homecare,18/11/2015,3552662,"1,682.87",ATHLONE CARE LTD
Adults Services,Adult Social Care,Older People (Aged 65 or over) including Older Mental Ill,Mental Health Commissioning,Social Care - Homecare,18/11/2015,3552663,796.95,FOCUS CARE LINK LTD
Adults Services,Adult Social Care,Older People (Aged 65 or over) including Older Mental Ill,Older People Commissioning,Social Care - Homecare,18/11/2015,3552664,840.42,FOCUS CARE LINK LTD
Adults Services,Adult Social Care,Older People (Aged 65 or over) including Older Mental Ill,Physical Dis Commissioning,Social Care - Homecare,18/11/2015,3552669,"1,405.53",FOCUS CARE LINK LTD
Adults Services,Adult Social Care,Older People (Aged 65 or over) including Older Mental Ill,Mental Health Commissioning,Social Care - Homecare,18/11/2015,3552673,796.95,FOCUS CARE LINK LTD
Adults Services,Adult Social Care,Older People (Aged 65 or over) including Older Mental Ill,Mental Health Commissioning,Social Care - Nursing Care,18/11/2015,3552674,"3,268.29",Twinglobe Care Homes Ltd
Adults Services,Adult Social Care,Older People (Aged 65 or over) including Older Mental Ill,Learning Dis Commissioning,Social Care - Residential Care,18/11/2015,3552678,"42,762.70",The Camden Society
Adults Services,Adult Social Care,Older People (Aged 65 or over) including Older Mental Ill,Older People Commissioning,Social Care - Homecare,18/11/2015,3552682,840.42,FOCUS CARE LINK LTD
Adults Services,Adult Social Care,Older People (Aged 65 or over) including Older Mental Ill,Learning Dis Commissioning,Social Care - Residential Care,18/11/2015,3552683,"6,642.99",INDEPENDENCE HOMES LTD
Adults Services,Adult Social Care,Older People (Aged 65 or over) including Older Mental Ill,Older People Commissioning,Social Care - Nursing Care,18/11/2015,3552684,"2,035.71",Craven Park Nursing (GSG Nursing Homes Ltd)
Adults Services,Adult Social Care,Older People (Aged 65 or over) including Older Mental Ill,Mental Health Commissioning,Social Care - Prevention & Support,18/11/2015,3552686,"1,960.00",City Inn Express Limited
Adults Services,Adult Social Care,Older People (Aged 65 or over) including Older Mental Ill,Mental Health Commissioning,Social Care - Prevention & Support,18/11/2015,3552687,"1,960.00",City Inn Express Limited
Adults Services,Adult Social Care,Older People (Aged 65 or over) including Older Mental Ill,Mental Health Commissioning,Social Care - Prevention & Support,18/11/2015,3552688,"1,960.00",City Inn Express Limited
Adults Services,Adult Social Care,Older People (Aged 65 or over) including Older Mental Ill,Mental Health Commissioning,Social Care - Prevention & Support,18/11/2015,3552689,"1,960.00",City Inn Express Limited
Adults Services,Adult Social Care,Older People (Aged 65 or over) including Older Mental Ill,Mental Health Commissioning,Social Care - Prevention & Support,18/11/2015,3552690,"1,960.00",City Inn Express Limited
Adults Services,Adult Social Care,Older People (Aged 65 or over) including Older Mental Ill,Older People Commissioning,Social Care - Homecare,18/11/2015,3552693,"1,090.44",Carewatch Newham Ltd
Adults Services,Adult Social Care,Older People (Aged 65 or over) including Older Mental Ill,Physical Dis Commissioning,Social Care - Homecare,18/11/2015,3552694,"1,013.56",Carewatch Newham Ltd
Adults Services,Adult Social Care,Older People (Aged 65 or over) including Older Mental Ill,Mental Health Commissioning,Social Care - Homecare,18/11/2015,3552695,559.20,Carewatch Newham Ltd
Adults Services,Adult Social Care,Older People (Aged 65 or over) including Older Mental Ill,Older People Commissioning,Social Care - Homecare,18/11/2015,3552705,576.82,Carewatch Newham Ltd
Adults Services,Adult Social Care,Older People (Aged 65 or over) including Older Mental Ill,Older People Commissioning,Social Care - Homecare,18/11/2015,3552715,978.60,Carewatch Newham Ltd
Adults Services,Adult Social Care,Older People (Aged 65 or over) including Older Mental Ill,Physical Dis Commissioning,Social Care - Homecare,18/11/2015,3552717,566.20,Carewatch Newham Ltd
Adults Services,Adult Social Care,Older People (Aged 65 or over) including Older Mental Ill,Older People Commissioning,Social Care - Homecare,18/11/2015,3552725,559.20,Carewatch Newham Ltd
Adults Services,Adult Social Care,Older People (Aged 65 or over) including Older Mental Ill,Older People Commissioning,Social Care - Homecare,18/11/2015,3552734,680.40,Mantra Recruitment
Adults Services,Adult Social Care,Older People (Aged 65 or over) including Older Mental Ill,Older People Commissioning,Social Care - Homecare,18/11/2015,3552741,"1,342.08",Carewatch Newham Ltd
Adults Services,Adult Social Care,Older People (Aged 65 or over) including Older Mental Ill,Learning Dis Commissioning,Social Care - Homecare,18/11/2015,3552750,"1,227.15",Mantra Recruitment
Adults Services,Adult Social Care,Older People (Aged 65 or over) including Older Mental Ill,Older People Commissioning,Social Care - Homecare,18/11/2015,3552752,721.93,Mantra Recruitment
Adults Services,Adult Social Care,Older People (Aged 65 or over) including Older Mental Ill,Physical Dis Commissioning,Social Care - Homecare,18/11/2015,3552771,"1,078.84",Mantra Recruitment
Adults Services,Adult Social Care,Older People (Aged 65 or over) including Older Mental Ill,Older People Commissioning,Social Care - Homecare,18/11/2015,3552789,"4,082.40",Mantra Recruitment
Adults Services,Adult Social Care,Older People (Aged 65 or over) including Older Mental Ill,Older People Commissioning,Social Care - Homecare,18/11/2015,3552814,510.30,Mantra Recruitment
Adults Services,Adult Social Care,Older People (Aged 65 or over) including Older Mental Ill,Physical Dis Commissioning,Social Care - Homecare,18/11/2015,3552823,"3,953.60",Excelcare (Home Care Division) LTD
Adults Services,Adult Social Care,Older People (Aged 65 or over) including Older Mental Ill,Older People Commissioning,Social Care - Homecare,18/11/2015,3552824,954.86,Excelcare (Home Care Division) LTD
Adults Services,Adult Social Care,Older People (Aged 65 or over) including Older Mental Ill,Older People Commissioning,Social Care - Homecare,18/11/2015,3552832,935.06,Excelcare (Home Care Division) LTD
Adults Services,Adult Social Care,Older People (Aged 65 or over) including Older Mental Ill,Older People Commissioning,Social Care - Homecare,18/11/2015,3552836,586.76,Excelcare (Home Care Division) LTD
Adults Services,Adult Social Care,Older People (Aged 65 or over) including Older Mental Ill,Older People Commissioning,Social Care - Homecare,18/11/2015,3552837,"1,078.70",Excelcare (Home Care Division) LTD
Adults Services,Adult Social Care,Older People (Aged 65 or over) including Older Mental Ill,Older People Commissioning,Social Care - Homecare,18/11/2015,3552840,662.17,Excelcare (Home Care Division) LTD
Adults Services,Adult Social Care,Older People (Aged 65 or over) including Older Mental Ill,Physical Dis Commissioning,Social Care - Homecare,18/11/2015,3552850,"4,586.40",Excelcare (Home Care Division) LTD
Adults Services,Adult Social Care,Older People (Aged 65 or over) including Older Mental Ill,Older People Commissioning,Social Care - Homecare,18/11/2015,3552853,"1,146.88",Excelcare (Home Care Division) LTD
Adults Services,Adult Social Care,Older People (Aged 65 or over) including Older Mental Ill,Older People Commissioning,Social Care - Homecare,18/11/2015,3552854,552.58,Excelcare (Home Care Division) LTD
Adults Services,Adult Social Care,Older People (Aged 65 or over) including Older Mental Ill,Older People Commissioning,Social Care - Homecare,18/11/2015,3552859,675.78,Excelcare (Home Care Division) LTD
Adults Services,Adult Social Care,Older People (Aged 65 or over) including Older Mental Ill,Older People Commissioning,Social Care - Homecare,18/11/2015,3552860,996.88,Excelcare (Home Care Division) LTD
Adults Services,Adult Social Care,Older People (Aged 65 or over) including Older Mental Ill,Older People Commissioning,Social Care - Homecare,18/11/2015,3552864,"1,157.08",Excelcare (Home Care Division) LTD
Adults Services,Adult Social Care,Older People (Aged 65 or over) including Older Mental Ill,Older People Commissioning,Social Care - Homecare,18/11/2015,3552871,"2,061.20",Excelcare (Home Care Division) LTD
Adults Services,Adult Social Care,Older People (Aged 65 or over) including Older Mental Ill,Older People Commissioning,Social Care - Homecare,18/11/2015,3552886,805.36,Excelcare (Home Care Division) LTD
Adults Services,Adult Social Care,Older People (Aged 65 or over) including Older Mental Ill,Learning Dis Commissioning,Social Care - Homecare,18/11/2015,3552889,"1,044.28",Excelcare (Home Care Division) LTD
Adults Services,Adult Social Care,Older People (Aged 65 or over) including Older Mental Ill,Learning Dis Commissioning,Social Care - Homecare,18/11/2015,3552893,717.60,MEARS CARE LTD
Adults Services,Adult Social Care,Older People (Aged 65 or over) including Older Mental Ill,Learning Dis Commissioning,Social Care - Homecare,18/11/2015,3552894,"1,743.33",MEARS CARE LTD
Adults Services,Adult Social Care,Older People (Aged 65 or over) including Older Mental Ill,Learning Dis Commissioning,Social Care - Homecare,18/11/2015,3552895,"2,599.80",MEARS CARE LTD
Adults Services,Adult Social Care,Older People (Aged 65 or over) including Older Mental Ill,Mental Health Commissioning,Social Care - Day Care,18/11/2015,3552898,900.00,BANGLADESHI PARENTS & CARERS ASSOCIATION
Adults Services,Adult Social Care,Older People (Aged 65 or over) including Older Mental Ill,Mental Health Commissioning,Social Care - Day Care,18/11/2015,3552900,990.00,BANGLADESHI PARENTS & CARERS ASSOCIATION
Adults Services,Adult Social Care,Older People (Aged 65 or over) including Older Mental Ill,Mental Health Commissioning,Social Care - Prevention & Support,18/11/2015,3552901,"1,750.00",OLD FRIEND HOTEL
Adults Services,Adult Social Care,Older People (Aged 65 or over) including Older Mental Ill,Older People Commissioning,Social Care - Extra Care Sheltered Housing,18/11/2015,3552904,"25,826.33",Creative Support
Adults Services,Adult Social Care,Older People (Aged 65 or over) including Older Mental Ill,Older People Commissioning,Social Care - Extra Care Sheltered Housing,18/11/2015,3552905,"25,536.73",Creative Support
Adults Services,Adult Social Care,Older People (Aged 65 or over) including Older Mental Ill,Older People Commissioning,Social Care - Extra Care Sheltered Housing,18/11/2015,3552906,"25,753.93",Creative Support
Adults Services,Adult Social Care,Older People (Aged 65 or over) including Older Mental Ill,Older People Commissioning,Social Care - Extra Care Sheltered Housing,18/11/2015,3552907,"26,582.91",Creative Support
Adults Services,General Fund/Council Fund,Homelessness,Supporting People Services,SP - Block-Gross - Others,18/11/2015,3552908,"12,522.92",THE EX-SERVICE FELLOWSHIP CENTRES
Adults Services,General Fund/Council Fund,Homelessness,Supporting People Services,SP - Block-Gross - Single Homeless,18/11/2015,3552909,"75,781.05",Salvation Army
Adults Services,General Fund/Council Fund,Homelessness,Supporting People Services,SP - Block-Gross - Mental Health,18/11/2015,3552910,"6,651.25",Providence Row Housing Association
Adults Services,General Fund/Council Fund,Homelessness,Supporting People Services,SP - Block-Gross - Single Homeless,18/11/2015,3552910,"147,492.66",Providence Row Housing Association
Adults Services,General Fund/Council Fund,Homelessness,Supporting People Services,SP - Block-Gross - Learning Disabilities,18/11/2015,3552911,"40,768.62",Outward Housing
Adults Services,General Fund/Council Fund,Homelessness,Supporting People Services,SP - Block-Gross - Domestic Violence,18/11/2015,3552912,"25,722.58",HESTIA HOUSING & SUPPORT
Adults Services,General Fund/Council Fund,Homelessness,Supporting People Services,SP - Block-Gross - Mental Health,18/11/2015,3552912,"57,064.19",HESTIA HOUSING & SUPPORT
Adults Services,General Fund/Council Fund,Homelessness,Supporting People Services,SP - Block-Gross - Y People Risk/Care Lev,18/11/2015,3552913,"46,283.17",Kipper Project
Adults Services,General Fund/Council Fund,Homelessness,Supporting People Services,SP - Block-Gross - Old People-Supp Needs,18/11/2015,3552915,606.67,CIRCLE SUPPORT CONSORTIUM
Adults Services,General Fund/Council Fund,Homelessness,Supporting People Services,SP - Block-Gross - Y People Risk/Care Lev,18/11/2015,3552917,"7,507.50",One Housing Group
Adults Services,General Fund/Council Fund,Homelessness,Supporting People Services,SP - Block-Gross - Generic,18/11/2015,3552918,"58,006.92",Look Ahead Care & Support Ltd
Adults Services,General Fund/Council Fund,Homelessness,Supporting People Services,SP - Block-Gross - Learning Disabilities,18/11/2015,3552918,"50,388.14",Look Ahead Care & Support Ltd
Adults Services,General Fund/Council Fund,Homelessness,Supporting People Services,SP - Block-Gross - Mental Health,18/11/2015,3552918,"207,367.27",Look Ahead Care & Support Ltd
Adults Services,General Fund/Council Fund,Homelessness,Supporting People Services,SP - Block-Gross - Single Homeless,18/11/2015,3552918,"143,530.83",Look Ahead Care & Support Ltd
Adults Services,General Fund/Council Fund,Homelessness,Supporting People Services,SP - Block-Gross - Y People Risk/Care Lev,18/11/2015,3552918,"62,943.49",Look Ahead Care & Support Ltd
Adults Services,Adult Social Care,Older People (Aged 65 or over) including Older Mental Ill,Older People Commissioning,Social Care - Extra Care Sheltered Housing,18/11/2015,3552919,"39,507.19",NOTTING HILL HOUSING TRUST
Adults Services,Adult Social Care,Older People (Aged 65 or over) including Older Mental Ill,Older People Commissioning,Social Care - Residential Care - Block,18/11/2015,3552920,"6,734.04",H-C ONE
Adults Services,Adult Social Care,Older People (Aged 65 or over) including Older Mental Ill,Older People Commissioning,Social Care - Direct Payments,18/11/2015,3552925,710.52,D D PAYROLL SERVICES
Adults Services,Adult Social Care,Older People (Aged 65 or over) including Older Mental Ill,Older People Commissioning,Social Care - Direct Payments,18/11/2015,3552927,"-1,839.01",Excelcare (Home Care Division) LTD
Adults Services,Adult Social Care,Older People (Aged 65 or over) including Older Mental Ill,Older People Commissioning,Social Care - Direct Payments,18/11/2015,3552928,"-2,070.19",Excelcare (Home Care Division) LTD
Adults Services,Adult Social Care,Older People (Aged 65 or over) including Older Mental Ill,Older People Commissioning,Social Care - Direct Payments,18/11/2015,3552929,"-6,330.96",Excelcare (Home Care Division) LTD
Adults Services,Adult Social Care,Older People (Aged 65 or over) including Older Mental Ill,Learning Dis Commissioning,Social Care - Direct Payments,18/11/2015,3552932,"2,350.86",D D PAYROLL SERVICES
Adults Services,Adult Social Care,Older People (Aged 65 or over) including Older Mental Ill,Older People Commissioning,Social Care - Direct Payments,18/11/2015,3552933,909.00,D D PAYROLL SERVICES
Adults Services,Adult Social Care,Older People (Aged 65 or over) including Older Mental Ill,Older People Commissioning,Social Care - Direct Payments,18/11/2015,3552934,705.51,DAVID HOWARD LTD CLIENT ACCOUNT
Adults Services,Adult Social Care,Older People (Aged 65 or over) including Older Mental Ill,Physical Dis Commissioning,Social Care - Direct Payments,18/11/2015,3552948,"1,476.98",DAVID HOWARD LTD CLIENT ACCOUNT
Adults Services,Adult Social Care,Older People (Aged 65 or over) including Older Mental Ill,Older People Commissioning,Social Care - Direct Payments,18/11/2015,3552956,909.45,DAVID HOWARD LTD CLIENT ACCOUNT
Adults Services,Adult Social Care,Older People (Aged 65 or over) including Older Mental Ill,Older People Commissioning,Social Care - Direct Payments,18/11/2015,3552964,"3,086.00",DAVID HOWARD LTD CLIENT ACCOUNT
Adults Services,Adult Social Care,Older People (Aged 65 or over) including Older Mental Ill,Older People Commissioning,Social Care - Direct Payments,18/11/2015,3552966,694.00,Soma Healthcare Ltd
Adults Services,Adult Social Care,Older People (Aged 65 or over) including Older Mental Ill,Older People Commissioning,Social Care - Direct Payments,18/11/2015,3552968,"1,287.26",DAVID HOWARD LTD CLIENT ACCOUNT
Adults Services,Adult Social Care,Older People (Aged 65 or over) including Older Mental Ill,Physical Dis Commissioning,Social Care - Direct Payments,18/11/2015,3552971,"2,298.34",DAVID HOWARD LTD CLIENT ACCOUNT
Adults Services,Adult Social Care,Older People (Aged 65 or over) including Older Mental Ill,Older People Commissioning,Social Care - Direct Payments,18/11/2015,3552976,749.53,DAVID HOWARD LTD CLIENT ACCOUNT
Adults Services,Adult Social Care,Older People (Aged 65 or over) including Older Mental Ill,Older People Commissioning,Social Care - Direct Payments,18/11/2015,3552978,725.14,DAVID HOWARD LTD CLIENT ACCOUNT
Adults Services,Adult Social Care,Older People (Aged 65 or over) including Older Mental Ill,Older People Commissioning,Social Care - Direct Payments,18/11/2015,3552985,980.84,DAVID HOWARD LTD CLIENT ACCOUNT
Adults Services,Adult Social Care,Older People (Aged 65 or over) including Older Mental Ill,Physical Dis Commissioning,Social Care - Direct Payments,18/11/2015,3553001,"6,603.00",D D PAYROLL SERVICES
Adults Services,Adult Social Care,Older People (Aged 65 or over) including Older Mental Ill,Physical Dis Commissioning,Social Care - Direct Payments,18/11/2015,3553013,"1,127.95",DAVID HOWARD LTD CLIENT ACCOUNT
Adults Services,Adult Social Care,Older People (Aged 65 or over) including Older Mental Ill,Older People Commissioning,Social Care - Direct Payments,18/11/2015,3553018,"1,736.00",DAVID HOWARD LTD CLIENT ACCOUNT
Adults Services,Adult Social Care,Older People (Aged 65 or over) including Older Mental Ill,Older People Commissioning,Social Care - Direct Payments,18/11/2015,3553020,"1,423.21",DAVID HOWARD LTD CLIENT ACCOUNT
Adults Services,Adult Social Care,Older People (Aged 65 or over) including Older Mental Ill,Physical Dis Commissioning,Social Care - Direct Payments,18/11/2015,3553026,"2,149.49",DAVID HOWARD LTD CLIENT ACCOUNT
Adults Services,Adult Social Care,Older People (Aged 65 or over) including Older Mental Ill,Physical Dis Commissioning,Social Care - Direct Payments,18/11/2015,3553035,648.35,DAVID HOWARD LTD CLIENT ACCOUNT
Adults Services,Adult Social Care,Older People (Aged 65 or over) including Older Mental Ill,Older People Commissioning,Social Care - Direct Payments,18/11/2015,3553037,527.31,DAVID HOWARD LTD CLIENT ACCOUNT
Adults Services,Adult Social Care,Older People (Aged 65 or over) including Older Mental Ill,Physical Dis Commissioning,Social Care - Direct Payments,18/11/2015,3553042,"1,014.94",DAVID HOWARD LTD CLIENT ACCOUNT
Adults Services,Adult Social Care,Older People (Aged 65 or over) including Older Mental Ill,Older People Commissioning,Social Care - Direct Payments,18/11/2015,3553044,709.64,DAVID HOWARD LTD CLIENT ACCOUNT
Adults Services,Adult Social Care,Older People (Aged 65 or over) including Older Mental Ill,Older People Commissioning,Social Care - Direct Payments,18/11/2015,3553047,871.10,DAVID HOWARD LTD CLIENT ACCOUNT
Adults Services,Adult Social Care,Older People (Aged 65 or over) including Older Mental Ill,Physical Dis Commissioning,Social Care - Direct Payments,18/11/2015,3553048,535.77,D D PAYROLL SERVICES
Adults Services,Adult Social Care,Older People (Aged 65 or over) including Older Mental Ill,Physical Dis Commissioning,Social Care - Direct Payments,18/11/2015,3553050,584.18,DAVID HOWARD LTD CLIENT ACCOUNT
Adults Services,Adult Social Care,Older People (Aged 65 or over) including Older Mental Ill,Older People Commissioning,Social Care - Direct Payments,18/11/2015,3553059,"1,639.45",D D PAYROLL SERVICES
Adults Services,Adult Social Care,Older People (Aged 65 or over) including Older Mental Ill,Physical Dis Commissioning,Social Care - Direct Payments,18/11/2015,3553068,750.60,DAVID HOWARD LTD CLIENT ACCOUNT
Adults Services,Adult Social Care,Older People (Aged 65 or over) including Older Mental Ill,Physical Dis Commissioning,Social Care - Direct Payments,18/11/2015,3553069,737.18,DAVID HOWARD LTD CLIENT ACCOUNT
Adults Services,Adult Social Care,Older People (Aged 65 or over) including Older Mental Ill,Older People Commissioning,Social Care - Direct Payments,18/11/2015,3553077,"1,211.48",DAVID HOWARD LTD CLIENT ACCOUNT
Adults Services,Adult Social Care,Older People (Aged 65 or over) including Older Mental Ill,Older People Commissioning,Social Care - Direct Payments,18/11/2015,3553078,808.39,DAVID HOWARD LTD CLIENT ACCOUNT
Adults Services,Adult Social Care,Older People (Aged 65 or over) including Older Mental Ill,Older People Commissioning,Social Care - Direct Payments,18/11/2015,3553079,751.04,DAVID HOWARD LTD CLIENT ACCOUNT
Adults Services,Adult Social Care,Older People (Aged 65 or over) including Older Mental Ill,Older People Commissioning,Social Care - Direct Payments,18/11/2015,3553080,"1,068.79",DAVID HOWARD LTD CLIENT ACCOUNT
Adults Services,Adult Social Care,Older People (Aged 65 or over) including Older Mental Ill,Mental Health Commissioning,Social Care - Direct Payments,18/11/2015,3553081,663.57,D D PAYROLL SERVICES
Adults Services,Adult Social Care,Older People (Aged 65 or over) including Older Mental Ill,Older People Commissioning,Social Care - Direct Payments,18/11/2015,3553083,542.50,DAVID HOWARD LTD CLIENT ACCOUNT
Adults Services,Adult Social Care,Older People (Aged 65 or over) including Older Mental Ill,Older People Commissioning,Social Care - Direct Payments,18/11/2015,3553084,851.13,DAVID HOWARD LTD CLIENT ACCOUNT
Adults Services,Adult Social Care,Older People (Aged 65 or over) including Older Mental Ill,Physical Dis Commissioning,Social Care - Direct Payments,18/11/2015,3553086,814.90,D D PAYROLL SERVICES
Adults Services,Adult Social Care,Older People (Aged 65 or over) including Older Mental Ill,Mental Health Commissioning,Social Care - Direct Payments,18/11/2015,3553087,514.24,DAVID HOWARD LTD CLIENT ACCOUNT
Adults Services,Adult Social Care,Older People (Aged 65 or over) including Older Mental Ill,Older People Commissioning,Social Care - Direct Payments,18/11/2015,3553100,699.98,DAVID HOWARD LTD CLIENT ACCOUNT
Adults Services,Adult Social Care,Older People (Aged 65 or over) including Older Mental Ill,Physical Dis Commissioning,Social Care - Direct Payments,18/11/2015,3553101,612.61,DAVID HOWARD LTD CLIENT ACCOUNT
Adults Services,Adult Social Care,Older People (Aged 65 or over) including Older Mental Ill,Older People Commissioning,Social Care - Direct Payments,18/11/2015,3553103,500.65,DAVID HOWARD LTD CLIENT ACCOUNT
Adults Services,Adult Social Care,Older People (Aged 65 or over) including Older Mental Ill,Older People Commissioning,Social Care - Direct Payments,18/11/2015,3553104,642.37,DAVID HOWARD LTD CLIENT ACCOUNT
Adults Services,Adult Social Care,Older People (Aged 65 or over) including Older Mental Ill,Older People Commissioning,Social Care - Direct Payments,18/11/2015,3553107,"1,808.49",D D PAYROLL SERVICES
Adults Services,Adult Social Care,Older People (Aged 65 or over) including Older Mental Ill,Physical Dis Commissioning,Social Care - Direct Payments,18/11/2015,3553108,"1,183.27",DAVID HOWARD LTD CLIENT ACCOUNT
Adults Services,Adult Social Care,Older People (Aged 65 or over) including Older Mental Ill,Older People Commissioning,Social Care - Direct Payments,18/11/2015,3553111,755.16,D D PAYROLL SERVICES
Adults Services,Adult Social Care,Older People (Aged 65 or over) including Older Mental Ill,Physical Dis Commissioning,Social Care - Direct Payments,18/11/2015,3553114,"1,275.65",D D PAYROLL SERVICES
Adults Services,Adult Social Care,Older People (Aged 65 or over) including Older Mental Ill,Physical Dis Commissioning,Social Care - Direct Payments,18/11/2015,3553117,517.08,D D PAYROLL SERVICES
Adults Services,Adult Social Care,Older People (Aged 65 or over) including Older Mental Ill,Older People Commissioning,Social Care - Direct Payments,18/11/2015,3553118,999.92,DAVID HOWARD LTD CLIENT ACCOUNT
Adults Services,Adult Social Care,Older People (Aged 65 or over) including Older Mental Ill,Learning Dis Commissioning,Social Care - Direct Payments,18/11/2015,3553124,"1,948.35",D D PAYROLL SERVICES
Adults Services,Adult Social Care,Older People (Aged 65 or over) including Older Mental Ill,Older People Commissioning,Social Care - Direct Payments,18/11/2015,3553125,789.88,DAVID HOWARD LTD CLIENT ACCOUNT
Adults Services,Adult Social Care,Older People (Aged 65 or over) including Older Mental Ill,Older People Commissioning,Social Care - Direct Payments,18/11/2015,3553126,"1,770.72",DAVID HOWARD LTD CLIENT ACCOUNT
Adults Services,Adult Social Care,Older People (Aged 65 or over) including Older Mental Ill,Older People Commissioning,Social Care - Direct Payments,18/11/2015,3553128,912.64,DAVID HOWARD LTD CLIENT ACCOUNT
Adults Services,Adult Social Care,Older People (Aged 65 or over) including Older Mental Ill,Physical Dis Commissioning,Social Care - Direct Payments,18/11/2015,3553129,"1,126.23",D D PAYROLL SERVICES
Adults Services,Adult Social Care,Older People (Aged 65 or over) including Older Mental Ill,Physical Dis Commissioning,Social Care - Direct Payments,18/11/2015,3553131,"2,589.21",DAVID HOWARD LTD CLIENT ACCOUNT
Adults Services,Adult Social Care,Older People (Aged 65 or over) including Older Mental Ill,Physical Dis Commissioning,Social Care - Direct Payments,18/11/2015,3553133,702.24,DAVID HOWARD LTD CLIENT ACCOUNT
Adults Services,Adult Social Care,Older People (Aged 65 or over) including Older Mental Ill,Older People Commissioning,Social Care - Direct Payments,18/11/2015,3553136,813.08,D D PAYROLL SERVICES
Adults Services,Adult Social Care,Older People (Aged 65 or over) including Older Mental Ill,Older People Commissioning,Social Care - Direct Payments,18/11/2015,3553138,"1,060.77",DAVID HOWARD LTD CLIENT ACCOUNT
Adults Services,Adult Social Care,Older People (Aged 65 or over) including Older Mental Ill,Learning Dis Commissioning,Social Care - Direct Payments,18/11/2015,3553140,707.20,DAVID HOWARD LTD CLIENT ACCOUNT
Adults Services,Adult Social Care,Older People (Aged 65 or over) including Older Mental Ill,Physical Dis Commissioning,Social Care - Direct Payments,18/11/2015,3553141,"6,691.35",D D PAYROLL SERVICES
Adults Services,Adult Social Care,Older People (Aged 65 or over) including Older Mental Ill,Physical Dis Commissioning,Social Care - Direct Payments,18/11/2015,3553142,896.66,DAVID HOWARD LTD CLIENT ACCOUNT
Adults Services,Adult Social Care,Older People (Aged 65 or over) including Older Mental Ill,Older People Commissioning,Social Care - Direct Payments,18/11/2015,3553144,922.92,DAVID HOWARD LTD CLIENT ACCOUNT
Adults Services,Adult Social Care,Older People (Aged 65 or over) including Older Mental Ill,Older People Commissioning,Social Care - Direct Payments,18/11/2015,3553145,599.63,DAVID HOWARD LTD CLIENT ACCOUNT
Adults Services,Adult Social Care,Older People (Aged 65 or over) including Older Mental Ill,Older People Commissioning,Social Care - Direct Payments,18/11/2015,3553146,554.59,DAVID HOWARD LTD CLIENT ACCOUNT
Adults Services,Adult Social Care,Older People (Aged 65 or over) including Older Mental Ill,Physical Dis Commissioning,Social Care - Direct Payments,18/11/2015,3553150,"1,158.61",D D PAYROLL SERVICES
Adults Services,Adult Social Care,Older People (Aged 65 or over) including Older Mental Ill,Older People Commissioning,Social Care - Direct Payments,18/11/2015,3553151,"1,521.53",DAVID HOWARD LTD CLIENT ACCOUNT
Adults Services,Adult Social Care,Older People (Aged 65 or over) including Older Mental Ill,Older People Commissioning,Social Care - Direct Payments,18/11/2015,3553154,697.98,D D PAYROLL SERVICES
Adults Services,Adult Social Care,Older People (Aged 65 or over) including Older Mental Ill,Older People Commissioning,Social Care - Direct Payments,18/11/2015,3553155,965.82,D D PAYROLL SERVICES
Adults Services,Adult Social Care,Older People (Aged 65 or over) including Older Mental Ill,Older People Commissioning,Social Care - Direct Payments,18/11/2015,3553159,610.08,D D PAYROLL SERVICES
Adults Services,Adult Social Care,Older People (Aged 65 or over) including Older Mental Ill,Older People Commissioning,Social Care - Direct Payments,18/11/2015,3553161,723.85,DAVID HOWARD LTD CLIENT ACCOUNT
Adults Services,Adult Social Care,Older People (Aged 65 or over) including Older Mental Ill,Physical Dis Commissioning,Social Care - Direct Payments,18/11/2015,3553163,883.67,DAVID HOWARD LTD CLIENT ACCOUNT
Adults Services,Adult Social Care,Older People (Aged 65 or over) including Older Mental Ill,Physical Dis Commissioning,Social Care - Direct Payments,18/11/2015,3553165,562.29,DAVID HOWARD LTD CLIENT ACCOUNT
Adults Services,Adult Social Care,Older People (Aged 65 or over) including Older Mental Ill,Physical Dis Commissioning,Social Care - Direct Payments,18/11/2015,3553167,988.90,DAVID HOWARD LTD CLIENT ACCOUNT
Adults Services,Adult Social Care,Older People (Aged 65 or over) including Older Mental Ill,Physical Dis Commissioning,Social Care - Direct Payments,18/11/2015,3553169,591.57,DAVID HOWARD LTD CLIENT ACCOUNT
Adults Services,Adult Social Care,Older People (Aged 65 or over) including Older Mental Ill,Learning Dis Commissioning,Social Care - Direct Payments,18/11/2015,3553174,"1,127.47",DAVID HOWARD LTD CLIENT ACCOUNT
Adults Services,Adult Social Care,Older People (Aged 65 or over) including Older Mental Ill,Mental Health Commissioning,Social Care - Direct Payments,18/11/2015,3553176,742.19,D D PAYROLL SERVICES
Adults Services,Adult Social Care,Older People (Aged 65 or over) including Older Mental Ill,Physical Dis Commissioning,Social Care - Direct Payments,18/11/2015,3553177,969.37,DAVID HOWARD LTD CLIENT ACCOUNT
Adults Services,Adult Social Care,Older People (Aged 65 or over) including Older Mental Ill,Physical Dis Commissioning,Social Care - Direct Payments,18/11/2015,3553178,"2,340.33",DAVID HOWARD LTD CLIENT ACCOUNT
Adults Services,Adult Social Care,Older People (Aged 65 or over) including Older Mental Ill,Learning Dis Commissioning,Social Care - Direct Payments,18/11/2015,3553188,"1,104.27",D D PAYROLL SERVICES
Adults Services,Adult Social Care,Older People (Aged 65 or over) including Older Mental Ill,Older People Commissioning,Social Care - Direct Payments,18/11/2015,3553194,"1,083.76",DAVID HOWARD LTD CLIENT ACCOUNT
Adults Services,Adult Social Care,Older People (Aged 65 or over) including Older Mental Ill,Physical Dis Commissioning,Social Care - Direct Payments,18/11/2015,3553196,550.56,DAVID HOWARD LTD CLIENT ACCOUNT
Adults Services,Adult Social Care,Older People (Aged 65 or over) including Older Mental Ill,Older People Commissioning,Social Care - Direct Payments,18/11/2015,3553200,672.65,DAVID HOWARD LTD CLIENT ACCOUNT
Adults Services,Adult Social Care,Older People (Aged 65 or over) including Older Mental Ill,Older People Commissioning,Social Care - Direct Payments,18/11/2015,3553207,"2,669.81",D D PAYROLL SERVICES
Adults Services,Adult Social Care,Older People (Aged 65 or over) including Older Mental Ill,Physical Dis Commissioning,Social Care - Direct Payments,18/11/2015,3553208,"13,157.59",DAVID HOWARD LTD CLIENT ACCOUNT
Adults Services,Adult Social Care,Older People (Aged 65 or over) including Older Mental Ill,Physical Dis Commissioning,Social Care - Direct Payments,18/11/2015,3553210,"1,171.75",DAVID HOWARD LTD CLIENT ACCOUNT
Adults Services,Adult Social Care,Older People (Aged 65 or over) including Older Mental Ill,Physical Dis Commissioning,Social Care - Direct Payments,18/11/2015,3553211,"2,524.28",D D PAYROLL SERVICES
Adults Services,Adult Social Care,Older People (Aged 65 or over) including Older Mental Ill,Older People Commissioning,Social Care - Direct Payments,18/11/2015,3553212,726.64,D D PAYROLL SERVICES
Adults Services,Adult Social Care,Older People (Aged 65 or over) including Older Mental Ill,Learning Dis Commissioning,Social Care - Direct Payments,18/11/2015,3553213,"1,124.94",DAVID HOWARD LTD CLIENT ACCOUNT
Adults Services,Adult Social Care,Older People (Aged 65 or over) including Older Mental Ill,Physical Dis Commissioning,Social Care - Direct Payments,18/11/2015,3553215,"1,138.80",DAVID HOWARD LTD CLIENT ACCOUNT
Adults Services,Adult Social Care,Older People (Aged 65 or over) including Older Mental Ill,Older People Commissioning,Social Care - Direct Payments,18/11/2015,3553218,"2,491.78",D D PAYROLL SERVICES
Adults Services,Adult Social Care,Older People (Aged 65 or over) including Older Mental Ill,Older People Commissioning,Social Care - Direct Payments,18/11/2015,3553222,891.39,D D PAYROLL SERVICES
Adults Services,Adult Social Care,Older People (Aged 65 or over) including Older Mental Ill,Older People Commissioning,Social Care - Direct Payments,18/11/2015,3553223,922.73,D D PAYROLL SERVICES
Adults Services,Adult Social Care,Older People (Aged 65 or over) including Older Mental Ill,Older People Commissioning,Social Care - Direct Payments,18/11/2015,3553224,"1,095.59",DAVID HOWARD LTD CLIENT ACCOUNT
Adults Services,Adult Social Care,Older People (Aged 65 or over) including Older Mental Ill,Physical Dis Commissioning,Social Care - Direct Payments,18/11/2015,3553226,"1,024.69",DAVID HOWARD LTD CLIENT ACCOUNT
Adults Services,Adult Social Care,Older People (Aged 65 or over) including Older Mental Ill,Physical Dis Commissioning,Social Care - Direct Payments,18/11/2015,3553228,"2,530.84",DAVID HOWARD LTD CLIENT ACCOUNT
Adults Services,Adult Social Care,Older People (Aged 65 or over) including Older Mental Ill,Physical Dis Commissioning,Social Care - Direct Payments,18/11/2015,3553230,904.13,DAVID HOWARD LTD CLIENT ACCOUNT
Adults Services,Adult Social Care,Older People (Aged 65 or over) including Older Mental Ill,Physical Dis Commissioning,Social Care - Direct Payments,18/11/2015,3553231,675.04,DAVID HOWARD LTD CLIENT ACCOUNT
Adults Services,Adult Social Care,Older People (Aged 65 or over) including Older Mental Ill,Older People Commissioning,Social Care - Direct Payments,18/11/2015,3553233,571.95,DAVID HOWARD LTD CLIENT ACCOUNT
Adults Services,Adult Social Care,Older People (Aged 65 or over) including Older Mental Ill,Physical Dis Commissioning,Social Care - Direct Payments,18/11/2015,3553235,"1,150.89",D D PAYROLL SERVICES
Adults Services,Adult Social Care,Older People (Aged 65 or over) including Older Mental Ill,Learning Dis Commissioning,Social Care - Direct Payments,18/11/2015,3553236,"1,159.71",DAVID HOWARD LTD CLIENT ACCOUNT
Adults Services,Adult Social Care,Older People (Aged 65 or over) including Older Mental Ill,Physical Dis Commissioning,Social Care - Direct Payments,18/11/2015,3553237,692.80,D D PAYROLL SERVICES
Adults Services,Adult Social Care,Older People (Aged 65 or over) including Older Mental Ill,Physical Dis Commissioning,Social Care - Direct Payments,18/11/2015,3553240,"1,330.97",D D PAYROLL SERVICES
Adults Services,Adult Social Care,Older People (Aged 65 or over) including Older Mental Ill,Older People Commissioning,Social Care - Direct Payments,18/11/2015,3553241,"1,018.97",DAVID HOWARD LTD CLIENT ACCOUNT
Adults Services,Adult Social Care,Older People (Aged 65 or over) including Older Mental Ill,Older People Commissioning,Social Care - Direct Payments,18/11/2015,3553244,"1,813.50",D D PAYROLL SERVICES
Adults Services,Adult Social Care,Older People (Aged 65 or over) including Older Mental Ill,Learning Dis Commissioning,Social Care - Direct Payments,18/11/2015,3553248,"1,548.00",D D PAYROLL SERVICES
Adults Services,Adult Social Care,Older People (Aged 65 or over) including Older Mental Ill,Older People Commissioning,Social Care - Direct Payments,18/11/2015,3553251,975.31,D D PAYROLL SERVICES
Adults Services,Adult Social Care,Older People (Aged 65 or over) including Older Mental Ill,Physical Dis Commissioning,Social Care - Direct Payments,18/11/2015,3553252,888.37,D D PAYROLL SERVICES
Adults Services,Adult Social Care,Older People (Aged 65 or over) including Older Mental Ill,Older People Commissioning,Social Care - Direct Payments,18/11/2015,3553254,502.34,D D PAYROLL SERVICES
Adults Services,Adult Social Care,Older People (Aged 65 or over) including Older Mental Ill,Physical Dis Commissioning,Social Care - Direct Payments,18/11/2015,3553257,967.34,D D PAYROLL SERVICES
Adults Services,Adult Social Care,Older People (Aged 65 or over) including Older Mental Ill,Older People Commissioning,Social Care - Direct Payments,18/11/2015,3553259,"1,128.57",D D PAYROLL SERVICES
Adults Services,Adult Social Care,Older People (Aged 65 or over) including Older Mental Ill,Physical Dis Commissioning,Social Care - Direct Payments,18/11/2015,3553260,748.65,DAVID HOWARD LTD CLIENT ACCOUNT
Adults Services,Adult Social Care,Older People (Aged 65 or over) including Older Mental Ill,Learning Dis Commissioning,Social Care - Direct Payments,18/11/2015,3553261,797.15,D D PAYROLL SERVICES
Adults Services,Adult Social Care,Older People (Aged 65 or over) including Older Mental Ill,Learning Dis Commissioning,Social Care - Direct Payments,18/11/2015,3553264,"3,849.01",D D PAYROLL SERVICES
Adults Services,Adult Social Care,Older People (Aged 65 or over) including Older Mental Ill,Physical Dis Commissioning,Social Care - Direct Payments,18/11/2015,3553266,776.19,DAVID HOWARD LTD CLIENT ACCOUNT
Adults Services,Adult Social Care,Older People (Aged 65 or over) including Older Mental Ill,Physical Dis Commissioning,Social Care - Direct Payments,18/11/2015,3553267,852.19,DAVID HOWARD LTD CLIENT ACCOUNT
Adults Services,Adult Social Care,Older People (Aged 65 or over) including Older Mental Ill,Mental Health Commissioning,Social Care - Direct Payments,18/11/2015,3553269,711.28,DAVID HOWARD LTD CLIENT ACCOUNT
Adults Services,Adult Social Care,Older People (Aged 65 or over) including Older Mental Ill,Physical Dis Commissioning,Social Care - Direct Payments,18/11/2015,3553273,"1,152.89",DAVID HOWARD LTD CLIENT ACCOUNT
Adults Services,Adult Social Care,Older People (Aged 65 or over) including Older Mental Ill,Physical Dis Commissioning,Social Care - Direct Payments,18/11/2015,3553275,"2,173.36",DAVID HOWARD LTD CLIENT ACCOUNT
Adults Services,Adult Social Care,Older People (Aged 65 or over) including Older Mental Ill,Physical Dis Commissioning,Social Care - Direct Payments,18/11/2015,3553276,"3,630.67",DAVID HOWARD LTD CLIENT ACCOUNT
Adults Services,Adult Social Care,Older People (Aged 65 or over) including Older Mental Ill,Physical Dis Commissioning,Social Care - Direct Payments,18/11/2015,3553277,"1,493.89",DAVID HOWARD LTD CLIENT ACCOUNT
Adults Services,Adult Social Care,Older People (Aged 65 or over) including Older Mental Ill,Learning Dis Commissioning,Social Care - Direct Payments,18/11/2015,3553278,"3,392.24",DAVID HOWARD LTD CLIENT ACCOUNT
Adults Services,Adult Social Care,Older People (Aged 65 or over) including Older Mental Ill,Older People Commissioning,Social Care - Direct Payments,18/11/2015,3553280,"5,770.43",DAVID HOWARD LTD CLIENT ACCOUNT
Adults Services,Adult Social Care,Older People (Aged 65 or over) including Older Mental Ill,Physical Dis Commissioning,Social Care - Direct Payments,18/11/2015,3553282,"1,293.37",DAVID HOWARD LTD CLIENT ACCOUNT
